Transaction Date,Local Authority Department,BENEFICIARY,Purpose,Amount,Non Recoverable,Merchant Category
01-09-2022,Adults & Health,Three Cs,Payment To Health Authorities,4350,0,VENDOR
01-09-2022,Marketing,Personal Information - Redacted,Events,1350,0,INDIVIDUALS
01-09-2022,Children and Young People,Seca Ltd,"Purchase - Equipment, Furniture And Materials",1754.5,0,COMMERCIAL SUPPLIER
01-09-2022,Dedicated Schools Budget,Personal Information - Redacted,Private Contractors Payment - Other,5793.33,0,VENDOR
01-09-2022,RMS,Till & Whitehead Ltd T/A UK Fasteners Ltd,Building Alterations And Materials,1611.28,0,
01-09-2022,Adults & Health,T J Building Services,Private Contractors Payment - Other,6218.2,0,VENDOR
01-09-2022,Adults & Health,T J Building Services,Private Contractors Payment - Other,5727,0,VENDOR
01-09-2022,Adults & Health,T J Building Services,Private Contractors Payment - Other,9207.1,0,VENDOR
01-09-2022,Adults & Health,T J Building Services,Private Contractors Payment - Other,6460.27,0,VENDOR
01-09-2022,Adults & Health,T J Building Services,Private Contractors Payment - Other,7209.4,0,VENDOR
01-09-2022,Resources,Limeyard Trustee 1 Limited & Limeyard Trustee 2 Limited as Trustees of the Limeyard Property Unit Trust,Rents Payable,945224.56,0,LEASE RENTS
01-09-2022,Inclusive Economy & Housing,Adam Khan Architects,"Maintenance - Equipment, Furniture And Materials",42276.28,0,COMMERCIAL SUPPLIER
01-09-2022,oneSource - Non Shared,Bellrock Property & Facilities Management Ltd,"Maintenance - Equipment, Furniture And Materials",410.05,0,
01-09-2022,oneSource,Daisy Corporate Services Trading Ltd,Land Line Telephone Costs,4074.2,0,COMMERCIAL SUPPLIER
01-09-2022,oneSource,Daisy Corporate Services Trading Ltd,Land Line Telephone Costs,1398.19,0,COMMERCIAL SUPPLIER
01-09-2022,oneSource,Daisy Corporate Services Trading Ltd,Land Line Telephone Costs,2122.02,0,COMMERCIAL SUPPLIER
01-09-2022,oneSource,Daisy Corporate Services Trading Ltd,Land Line Telephone Costs,8459.57,0,COMMERCIAL SUPPLIER
01-09-2022,oneSource,Daisy Corporate Services Trading Ltd,Land Line Telephone Costs,5784.01,0,COMMERCIAL SUPPLIER
01-09-2022,Housing Revenue Account,Daisy Corporate Services Trading Ltd,Land Line Telephone Costs,3103.47,0,COMMERCIAL SUPPLIER
01-09-2022,Environment and Sustainable Transport,Greener Solutions,Highway Services,513,0,VENDOR
01-09-2022,oneSource - Non Shared,Personal Information - Redacted,Salaries,2472,0,INDIVIDUALS
01-09-2022,Adults & Health,Elan Management Solutions T/A Joy Foundation,Supported Other Accommodation - Private Contractors Payment,357,0,VENDOR
01-09-2022,Adults & Health,Elan Management Solutions T/A Joy Foundation,Supported Other Accommodation - Private Contractors Payment,357,0,VENDOR
01-09-2022,Adults & Health,Elan Management Solutions T/A Joy Foundation,Supported Other Accommodation - Private Contractors Payment,357,0,VENDOR
01-09-2022,Adults & Health,Elan Management Solutions T/A Joy Foundation,Supported Other Accommodation - Private Contractors Payment,357,0,VENDOR
01-09-2022,Adults & Health,Elan Management Solutions T/A Joy Foundation,Supported Other Accommodation - Private Contractors Payment,385,0,VENDOR
01-09-2022,Adults & Health,Elan Management Solutions T/A Joy Foundation,Supported Other Accommodation - Private Contractors Payment,385,0,VENDOR
01-09-2022,Adults & Health,Elan Management Solutions T/A Joy Foundation,Supported Other Accommodation - Private Contractors Payment,385,0,VENDOR
01-09-2022,Adults & Health,Elan Management Solutions T/A Joy Foundation,Supported Other Accommodation - Private Contractors Payment,385,0,VENDOR
01-09-2022,Adults & Health,Elan Management Solutions T/A Joy Foundation,Supported Other Accommodation - Private Contractors Payment,55,0,VENDOR
01-09-2022,Adults & Health,Elan Management Solutions T/A Joy Foundation,Supported Other Accommodation - Private Contractors Payment,55,0,VENDOR
01-09-2022,Adults & Health,Elan Management Solutions T/A Joy Foundation,Supported Other Accommodation - Private Contractors Payment,55,0,VENDOR
01-09-2022,Adults & Health,Elan Management Solutions T/A Joy Foundation,Supported Other Accommodation - Private Contractors Payment,55,0,VENDOR
01-09-2022,Adults & Health,Elan Management Solutions T/A Joy Foundation,Supported Other Accommodation - Private Contractors Payment,55,0,VENDOR
01-09-2022,Adults & Health,Elan Management Solutions T/A Joy Foundation,Supported Other Accommodation - Private Contractors Payment,55,0,VENDOR
01-09-2022,Adults & Health,Elan Management Solutions T/A Joy Foundation,Supported Other Accommodation - Private Contractors Payment,55,0,VENDOR
01-09-2022,Adults & Health,Elan Management Solutions T/A Joy Foundation,Supported Other Accommodation - Private Contractors Payment,55,0,VENDOR
01-09-2022,Adults & Health,Elan Management Solutions T/A Joy Foundation,Supported Other Accommodation - Private Contractors Payment,55,0,VENDOR
01-09-2022,Adults & Health,Elan Management Solutions T/A Joy Foundation,Supported Other Accommodation - Private Contractors Payment,330,0,VENDOR
01-09-2022,Adults & Health,Elan Management Solutions T/A Joy Foundation,Supported Other Accommodation - Private Contractors Payment,55,0,VENDOR
01-09-2022,Adults & Health,Elan Management Solutions T/A Joy Foundation,Supported Other Accommodation - Private Contractors Payment,385,0,VENDOR
01-09-2022,Adults & Health,Elan Management Solutions T/A Joy Foundation,Supported Other Accommodation - Private Contractors Payment,55,0,VENDOR
01-09-2022,Adults & Health,Elan Management Solutions T/A Joy Foundation,Supported Other Accommodation - Private Contractors Payment,55,0,VENDOR
01-09-2022,Adults & Health,Elan Management Solutions T/A Joy Foundation,Supported Other Accommodation - Private Contractors Payment,55,0,VENDOR
01-09-2022,Adults & Health,Elan Management Solutions T/A Joy Foundation,Supported Other Accommodation - Private Contractors Payment,55,0,VENDOR
01-09-2022,Adults & Health,Elan Management Solutions T/A Joy Foundation,Supported Other Accommodation - Private Contractors Payment,55,0,VENDOR
01-09-2022,Adults & Health,Elan Management Solutions T/A Joy Foundation,Supported Other Accommodation - Private Contractors Payment,385,0,VENDOR
01-09-2022,Adults & Health,Elan Management Solutions T/A Joy Foundation,Supported Other Accommodation - Private Contractors Payment,385,0,VENDOR
01-09-2022,Adults & Health,Elan Management Solutions T/A Joy Foundation,Supported Other Accommodation - Private Contractors Payment,385,0,VENDOR
01-09-2022,Adults & Health,Elan Management Solutions T/A Joy Foundation,Supported Other Accommodation - Private Contractors Payment,385,0,VENDOR
01-09-2022,Adults & Health,Elan Management Solutions T/A Joy Foundation,Supported Other Accommodation - Private Contractors Payment,576.1,0,VENDOR
01-09-2022,Adults & Health,Elan Management Solutions T/A Joy Foundation,Supported Other Accommodation - Private Contractors Payment,321.3,0,VENDOR
01-09-2022,Adults & Health,Elan Management Solutions T/A Joy Foundation,Supported Other Accommodation - Private Contractors Payment,321.3,0,VENDOR
01-09-2022,Adults & Health,Elan Management Solutions T/A Joy Foundation,Supported Other Accommodation - Private Contractors Payment,321.3,0,VENDOR
01-09-2022,Inclusive Economy & Housing,Urbik Ltd,General Office Expenses,400,0,VENDOR
01-09-2022,Inclusive Economy & Housing,Arkwood,Consultancy Fees,7200,0,COMMERCIAL SUPPLIER
01-09-2022,Adults & Health,Futures for Shared Lives Ltd,Adult Placement Scheme - Private Contractors Payment,766.1,0,NON COMMERCIAL SUPPLIER
01-09-2022,Adults & Health,Futures for Shared Lives Ltd,Adult Placement Scheme - Private Contractors Payment,536.27,0,NON COMMERCIAL SUPPLIER
01-09-2022,Adults & Health,Futures for Shared Lives Ltd,Adult Placement Scheme - Private Contractors Payment,536.27,0,NON COMMERCIAL SUPPLIER
01-09-2022,Adults & Health,Futures for Shared Lives Ltd,Adult Placement Scheme - Private Contractors Payment,536.27,0,NON COMMERCIAL SUPPLIER
01-09-2022,Housing Revenue Account,The Design Cabin Community C.I.C,Events,1125,0,COMMERCIAL SUPPLIER
01-09-2022,Housing Revenue Account,RGE Services Ltd,Cyclical/Planned Maintenance - Mechanical And Electrical,723,0,CIS
01-09-2022,Environment and Sustainable Transport,Safeplay Playground Services Ltd,"Maintenance - Equipment, Furniture And Materials",4480,0,CIS
01-09-2022,Environment and Sustainable Transport,Toomey Motor Group,Highway Services,200.03,0,COMMERCIAL SUPPLIER
01-09-2022,Environment and Sustainable Transport,Toomey Motor Group,Highway Services,196.71,0,COMMERCIAL SUPPLIER
01-09-2022,Environment and Sustainable Transport,Toomey Motor Group,Highway Services,136.55,0,COMMERCIAL SUPPLIER
01-09-2022,Environment and Sustainable Transport,Toomey Motor Group,Highway Services,909.03,0,COMMERCIAL SUPPLIER
01-09-2022,Environment and Sustainable Transport,Toomey Motor Group,Highway Services,247.17,0,COMMERCIAL SUPPLIER
01-09-2022,Environment and Sustainable Transport,Toomey Motor Group,Highway Services,129.57,0,COMMERCIAL SUPPLIER
01-09-2022,Environment and Sustainable Transport,Toomey Motor Group,Highway Services,32.83,0,COMMERCIAL SUPPLIER
01-09-2022,oneSource,Bdi Securities,Security Services (Excluding Premises),1208.25,0,COMMERCIAL SUPPLIER
01-09-2022,Adults & Health,Designserve Architectural And Project Management Services Ltd,Private Contractors Payment - Other,7298.48,0,COMMERCIAL SUPPLIER
01-09-2022,Children and Young People,Resources for Autism,Professional Services - General,138614,0,COMMERCIAL SUPPLIER
01-09-2022,Housing Revenue Account,Certus Security,Responsive Repairs - Mechanical And Electrical,1350,0,COMMERCIAL SUPPLIER
01-09-2022,RMS,Glass System Ltd,Building Alterations And Materials,584.37,0,COMMERCIAL SUPPLIER
01-09-2022,RMS,Glass System Ltd,Building Alterations And Materials,676.42,0,COMMERCIAL SUPPLIER
01-09-2022,RMS,Glass System Ltd,Building Alterations And Materials,311.1,0,COMMERCIAL SUPPLIER
01-09-2022,RMS,Glass System Ltd,Building Alterations And Materials,572.21,0,COMMERCIAL SUPPLIER
01-09-2022,RMS,Glass System Ltd,Building Alterations And Materials,618.12,0,COMMERCIAL SUPPLIER
01-09-2022,RMS,Glass System Ltd,Building Alterations And Materials,565.08,0,COMMERCIAL SUPPLIER
01-09-2022,RMS,Travis Perkins Trading Company Ltd,Building Alterations And Materials,432.8,0,COMMERCIAL SUPPLIER
01-09-2022,RMS,Travis Perkins Trading Company Ltd,Building Alterations And Materials,276.48,0,COMMERCIAL SUPPLIER
01-09-2022,RMS,Travis Perkins Trading Company Ltd,Building Alterations And Materials,963.75,0,COMMERCIAL SUPPLIER
01-09-2022,RMS,Travis Perkins Trading Company Ltd,Building Alterations And Materials,568.8,0,COMMERCIAL SUPPLIER
01-09-2022,RMS,Travis Perkins Trading Company Ltd,Building Alterations And Materials,251.26,0,COMMERCIAL SUPPLIER
01-09-2022,RMS,Travis Perkins Trading Company Ltd,Building Alterations And Materials,1166.7,0,COMMERCIAL SUPPLIER
01-09-2022,RMS,Travis Perkins Trading Company Ltd,Building Alterations And Materials,376.8,0,COMMERCIAL SUPPLIER
01-09-2022,RMS,Travis Perkins Trading Company Ltd,Building Alterations And Materials,97.78,0,COMMERCIAL SUPPLIER
01-09-2022,RMS,Travis Perkins Trading Company Ltd,Building Alterations And Materials,60.13,0,COMMERCIAL SUPPLIER
01-09-2022,RMS,Travis Perkins Trading Company Ltd,Building Alterations And Materials,884.4,0,COMMERCIAL SUPPLIER
01-09-2022,RMS,Travis Perkins Trading Company Ltd,Building Alterations And Materials,842.4,0,COMMERCIAL SUPPLIER
01-09-2022,RMS,Travis Perkins Trading Company Ltd,Building Alterations And Materials,95.2,0,COMMERCIAL SUPPLIER
01-09-2022,RMS,Travis Perkins Trading Company Ltd,Building Alterations And Materials,405.8,0,COMMERCIAL SUPPLIER
01-09-2022,RMS,Travis Perkins Trading Company Ltd,Building Alterations And Materials,3130,0,COMMERCIAL SUPPLIER
01-09-2022,Adults & Health,Sweettree Home Care Services,Daycare - Private Contractors Payment,249.5,0,NON COMMERCIAL SUPPLIER
01-09-2022,Adults & Health,Sweettree Home Care Services,Daycare - Private Contractors Payment,249.5,0,NON COMMERCIAL SUPPLIER
01-09-2022,Adults & Health,Sweettree Home Care Services,Daycare - Private Contractors Payment,249.5,0,NON COMMERCIAL SUPPLIER
01-09-2022,Adults & Health,Sweettree Home Care Services,Daycare - Private Contractors Payment,249.5,0,NON COMMERCIAL SUPPLIER
01-09-2022,Adults & Health,DACS Care & Repair,Private Contractors Payment - Other,6634.85,0,COMMERCIAL SUPPLIER
01-09-2022,oneSource - Non Shared,GatenbySanderson Ltd,Agency Staff,2360,0,COMMERCIAL SUPPLIER
01-09-2022,RMS,AMA Security Ltd,Private Contractors Payment - Other,259.43,0,COMMERCIAL SUPPLIER
01-09-2022,RMS,AMA Security Ltd,Private Contractors Payment - Other,482.89,0,COMMERCIAL SUPPLIER
01-09-2022,RMS,AMA Security Ltd,Private Contractors Payment - Other,538.11,0,COMMERCIAL SUPPLIER
01-09-2022,Environment and Sustainable Transport,Worldline IT Services UK Ltd Re Fuel Genie,Transport Fuel,269.35,0,COMMERCIAL SUPPLIER
01-09-2022,Environment and Sustainable Transport,Worldline IT Services UK Ltd Re Fuel Genie,Transport Fuel,480.97,0,COMMERCIAL SUPPLIER
01-09-2022,Children and Young People,Kent County Council,Supported Other Accommodation - Private Contractors Payment,1542,0,LOCAL AUTHORITY SERVICES
01-09-2022,Environment and Sustainable Transport,Portakabin Ltd,Premises Hire - Facilities,2373.33,0,COMMERCIAL SUPPLIER
01-09-2022,oneSource - Non Shared,Building A Future (Newham Schools) Limited,"Maintenance - Equipment, Furniture And Materials",276481.1,0,VENDOR
01-09-2022,oneSource - Non Shared,Building A Future (Newham Schools) Limited,"Maintenance - Equipment, Furniture And Materials",72819.36,0,VENDOR
01-09-2022,oneSource - Non Shared,Building A Future (Newham Schools) Limited,"Maintenance - Equipment, Furniture And Materials",72313.93,0,VENDOR
01-09-2022,oneSource - Non Shared,Newham Learning Partnership (Project Co) Limited,"Maintenance - Equipment, Furniture And Materials",318521.23,0,VENDOR
01-09-2022,oneSource - Non Shared,Newham Learning Partnership (Project Co) Limited,"Maintenance - Equipment, Furniture And Materials",393678.07,0,VENDOR
01-09-2022,Housing Revenue Account,Moore's (Fencing & Building services Ltd,"Maintenance - Equipment, Furniture And Materials",1982.12,0,COMMERCIAL SUPPLIER
01-09-2022,RMS,Benchmarx Kitchens and Joinery,Building Alterations And Materials,862.9,0,COMMERCIAL SUPPLIER
01-09-2022,RMS,Benchmarx Kitchens and Joinery,Building Alterations And Materials,657.46,0,COMMERCIAL SUPPLIER
01-09-2022,Adults & Health,The Regard Partnership Ltd,Daycare - Private Contractors Payment,448,0,NON COMMERCIAL SUPPLIER
01-09-2022,Adults & Health,The Regard Partnership Ltd,Daycare - Private Contractors Payment,448,0,NON COMMERCIAL SUPPLIER
01-09-2022,Adults & Health,The Regard Partnership Ltd,Daycare - Private Contractors Payment,448,0,NON COMMERCIAL SUPPLIER
01-09-2022,Adults & Health,The Regard Partnership Ltd,Daycare - Private Contractors Payment,448,0,NON COMMERCIAL SUPPLIER
01-09-2022,Environment and Sustainable Transport,Computer & Design Services Ltd,Ict Licences,1248,0,VENDOR
01-09-2022,oneSource,Bytes Software Services Ltd,Ict Licences,4040.96,0,NON COMMERCIAL SUPPLIER
01-09-2022,Adults & Health,Kalsi Care,Daycare - Private Contractors Payment,47083.6,0,VENDOR
01-09-2022,Marketing,Personal Information - Redacted,Client Expenses - Third Party,251.4,0,INDIVIDUALS
01-09-2022,Children and Young People,Alpha Nursery (Canning Town) Limited,Contact Costs (Placements),903.33,0,NON COMMERCIAL SUPPLIER
01-09-2022,Housing Revenue Account,The Transcription Agency,Legal Fees,823.2,0,COMMERCIAL SUPPLIER
01-09-2022,Environment and Sustainable Transport,WaterLogic GB Limited,Catering And Vending Supplies,298.08,0,COMMERCIAL SUPPLIER
01-09-2022,Dedicated Schools Budget,Personal Information - Redacted,Independent Units Within The Council,1161738,0,NON COMMERCIAL SUPPLIER
01-09-2022,Dedicated Schools Budget,Personal Information - Redacted,Independent Units Within The Council,1075955,0,VENDOR
01-09-2022,Dedicated Schools Budget,Personal Information - Redacted,Independent Units Within The Council,127036,0,VENDOR
01-09-2022,Dedicated Schools Budget,Personal Information - Redacted,Independent Units Within The Council,838991,0,NON COMMERCIAL SUPPLIER
01-09-2022,Dedicated Schools Budget,Personal Information - Redacted,Independent Units Within The Council,906718,0,VENDOR
01-09-2022,Dedicated Schools Budget,Personal Information - Redacted,Independent Units Within The Council,107255,0,COMMERCIAL SUPPLIER
01-09-2022,Dedicated Schools Budget,Personal Information - Redacted,Independent Units Within The Council,89696,0,VENDOR
01-09-2022,Dedicated Schools Budget,Personal Information - Redacted,Independent Units Within The Council,91181,0,VENDOR
01-09-2022,Dedicated Schools Budget,Personal Information - Redacted,Independent Units Within The Council,92322,0,VENDOR
01-09-2022,Dedicated Schools Budget,Personal Information - Redacted,Independent Units Within The Council,118966,0,VENDOR
01-09-2022,Dedicated Schools Budget,Personal Information - Redacted,Independent Units Within The Council,1209169,0,VENDOR
01-09-2022,Dedicated Schools Budget,Personal Information - Redacted,Independent Units Within The Council,60484,0,VENDOR
01-09-2022,Dedicated Schools Budget,Personal Information - Redacted,Independent Units Within The Council,292994,0,VENDOR
01-09-2022,Dedicated Schools Budget,Personal Information - Redacted,Independent Units Within The Council,192629,0,VENDOR
01-09-2022,oneSource - Non Shared,Local Pensions Partnership Administration Ltd,Miscellaneous Expenses,2764.44,0,COMMERCIAL SUPPLIER
01-09-2022,Children and Young People,Performance Coaching International,Staff Development And Training,1081.92,0,COMMERCIAL SUPPLIER
01-09-2022,Children and Young People,Early Start Group Ltd,Private Contractors Payment - Other,62410,0,COMMERCIAL SUPPLIER
01-09-2022,Adults & Health,Topman Construction Ltd,Private Contractors Payment - Other,6095.5,0,CIS
01-09-2022,Adults & Health,Topman Construction Ltd,Private Contractors Payment - Other,1977,0,CIS
01-09-2022,Adults & Health,Topman Construction Ltd,Private Contractors Payment - Other,6604.8,0,CIS
01-09-2022,Inclusive Economy & Housing,Personal Information - Redacted,Legal Fees,2750,0,COMMERCIAL SUPPLIER
01-09-2022,RMS,Door-Stop International Ltd,Building Alterations And Materials,595.59,0,VENDOR
01-09-2022,RMS,Door-Stop International Ltd,Building Alterations And Materials,605.25,0,VENDOR
01-09-2022,Children and Young People,Personal Information - Redacted,Legal Fees,730,0,COMMERCIAL SUPPLIER
01-09-2022,RMS,Door-Stop International Ltd,Building Alterations And Materials,590.15,0,VENDOR
01-09-2022,RMS,Door-Stop International Ltd,Building Alterations And Materials,564.26,0,VENDOR
01-09-2022,Housing Revenue Account,Matthews & Co,Private Contractors Payment - Other,9975,0,COMMERCIAL SUPPLIER
01-09-2022,Dedicated Schools Budget,Personal Information - Redacted,Independent Units Within The Council,131273,0,VENDOR
01-09-2022,Dedicated Schools Budget,Personal Information - Redacted,Independent Units Within The Council,320516,0,NON COMMERCIAL SUPPLIER
01-09-2022,Dedicated Schools Budget,Personal Information - Redacted,Independent Units Within The Council,369241,0,VENDOR
01-09-2022,Dedicated Schools Budget,Personal Information - Redacted,Independent Units Within The Council,162885,0,VENDOR
01-09-2022,Dedicated Schools Budget,Personal Information - Redacted,Independent Units Within The Council,563197,0,VENDOR
01-09-2022,Dedicated Schools Budget,Personal Information - Redacted,Independent Units Within The Council,163514,0,VENDOR
01-09-2022,Dedicated Schools Budget,Personal Information - Redacted,Independent Units Within The Council,417829,0,LOCAL AUTHORITY SERVICES
01-09-2022,Dedicated Schools Budget,Personal Information - Redacted,Independent Units Within The Council,457137,0,VENDOR
01-09-2022,Dedicated Schools Budget,Personal Information - Redacted,Independent Units Within The Council,218097,0,VENDOR
01-09-2022,Dedicated Schools Budget,Personal Information - Redacted,Independent Units Within The Council,365868,0,VENDOR
01-09-2022,Dedicated Schools Budget,Personal Information - Redacted,Independent Units Within The Council,224471,0,VENDOR
01-09-2022,Dedicated Schools Budget,Personal Information - Redacted,Independent Units Within The Council,358497,0,NON COMMERCIAL SUPPLIER
01-09-2022,Dedicated Schools Budget,Personal Information - Redacted,Independent Units Within The Council,150549,0,VENDOR
01-09-2022,Housing Revenue Account,Personal Information - Redacted,Compensation,1320,0,INDIVIDUALS
01-09-2022,Children and Young People,Residential Group,Supported Other Accommodation - Private Contractors Payment,3950,0,COMMERCIAL SUPPLIER
01-09-2022,Children and Young People,Residential Group,Supported Other Accommodation - Private Contractors Payment,3950,0,COMMERCIAL SUPPLIER
01-09-2022,Children and Young People,Residential Group,Supported Other Accommodation - Private Contractors Payment,3950,0,COMMERCIAL SUPPLIER
01-09-2022,Children and Young People,Residential Group,Supported Other Accommodation - Private Contractors Payment,3950,0,COMMERCIAL SUPPLIER
01-09-2022,Children and Young People,Majestic Family Services Limited,Legal Fees,20142.9,0,NON COMMERCIAL SUPPLIER
01-09-2022,Environment and Sustainable Transport,Chipside Ltd,Private Contractors Payment - Other,667.5,0,COMMERCIAL SUPPLIER
01-09-2022,RMS,McCann & Co Ltd,Staff Development And Training,11400,0,COMMERCIAL SUPPLIER
01-09-2022,Dedicated Schools Budget,Plinth Medical Ltd,Professional Services - General,1585,0,NON COMMERCIAL SUPPLIER
01-09-2022,oneSource - Non Shared,Education Support (Newham) Ltd,"Maintenance - Equipment, Furniture And Materials",329487.81,0,VENDOR
01-09-2022,Inclusive Economy & Housing,Single Homeless Project,Private Contractors Payment - Other,10000,0,COMMERCIAL SUPPLIER
01-09-2022,Children and Young People,Russell Up Events Ltd t/a P & J Entertainments Ltd,Arts And Leisure Costs,1010,0,COMMERCIAL SUPPLIER
01-09-2022,Adults & Health,Kalsi Care,Daycare - Private Contractors Payment,70917.49,0,VENDOR
01-09-2022,Housing Revenue Account,Swan Housing Group,Professional Services - General,865267.34,0,VENDOR
01-09-2022,oneSource - Non Shared,W Hardy Ltd,Building Alterations And Materials,19850,0,CIS
01-09-2022,oneSource - Non Shared,W Hardy Ltd,Building Alterations And Materials,345,0,CIS
02-09-2022,oneSource - Non Shared,Juniper Ventures Ltd,Cleaning Services,548.09,0,COMMERCIAL SUPPLIER
02-09-2022,oneSource - Non Shared,Juniper Ventures Ltd,Cleaning Services,559.97,0,COMMERCIAL SUPPLIER
02-09-2022,oneSource - Non Shared,Juniper Ventures Ltd,Cleaning Services,805.43,0,COMMERCIAL SUPPLIER
02-09-2022,Marketing,Arts PR London Ltd,Events,9950,0,COMMERCIAL SUPPLIER
02-09-2022,oneSource,Law Morgan Ltd,Agency Staff,3288.8,0,COMMERCIAL SUPPLIER
02-09-2022,Housing Revenue Account,Jackies Love Kitchen Ltd,Catering And Vending Supplies,584.5,0,INDIVIDUALS
02-09-2022,Children and Young People,Personal Information - Redacted,Legal Fees,252,0,INDIVIDUALS
02-09-2022,Children and Young People,Personal Information - Redacted,Legal Fees,1076.4,0,INDIVIDUALS
02-09-2022,Adults & Health,Aevus Ltd t/a Home Instead,Home Care - Private Contractors Payment,712.5,0,INDIVIDUALS
02-09-2022,Adults & Health,Aevus Ltd t/a Home Instead,Home Care - Private Contractors Payment,1852.5,0,INDIVIDUALS
02-09-2022,Adults & Health,Aevus Ltd t/a Home Instead,Home Care - Private Contractors Payment,57,0,INDIVIDUALS
02-09-2022,Adults & Health,Aevus Ltd t/a Home Instead,Home Care - Private Contractors Payment,285,0,INDIVIDUALS
02-09-2022,RMS,Winkhaus Ltd,Building Alterations And Materials,389.66,0,COMMERCIAL SUPPLIER
02-09-2022,RMS,Winkhaus Ltd,Building Alterations And Materials,649.43,0,COMMERCIAL SUPPLIER
02-09-2022,Inclusive Economy & Housing,Hays Specialist Recruitment Ltd,Staff Recruitment Costs,2586.2,0,VENDOR
02-09-2022,Inclusive Economy & Housing,Hays Specialist Recruitment Ltd,Staff Recruitment Costs,1199.32,0,VENDOR
02-09-2022,Inclusive Economy & Housing,Hays Specialist Recruitment Ltd,Staff Recruitment Costs,972.23,0,VENDOR
02-09-2022,Inclusive Economy & Housing,Hays Specialist Recruitment Ltd,Staff Recruitment Costs,1326.3,0,VENDOR
02-09-2022,Adults & Health,Aevus Ltd t/a Home Instead,Home Care - Private Contractors Payment,598.5,0,INDIVIDUALS
02-09-2022,Adults & Health,Aevus Ltd t/a Home Instead,Home Care - Private Contractors Payment,598.5,0,INDIVIDUALS
02-09-2022,Adults & Health,Aevus Ltd t/a Home Instead,Home Care - Private Contractors Payment,598.5,0,INDIVIDUALS
02-09-2022,Adults & Health,Aevus Ltd t/a Home Instead,Home Care - Private Contractors Payment,484.5,0,INDIVIDUALS
02-09-2022,Adults & Health,Aevus Ltd t/a Home Instead,Home Care - Private Contractors Payment,256.5,0,INDIVIDUALS
02-09-2022,Adults & Health,Aevus Ltd t/a Home Instead,Home Care - Private Contractors Payment,598.5,0,INDIVIDUALS
02-09-2022,Adults & Health,Aevus Ltd t/a Home Instead,Home Care - Private Contractors Payment,598.5,0,INDIVIDUALS
02-09-2022,Adults & Health,Aevus Ltd t/a Home Instead,Home Care - Private Contractors Payment,598.5,0,INDIVIDUALS
02-09-2022,Adults & Health,Aevus Ltd t/a Home Instead,Home Care - Private Contractors Payment,256.5,0,INDIVIDUALS
02-09-2022,Adults & Health,Supply Chain Coordination Ltd (SCCL),Salaries,5305.28,0,NHS BODIES
02-09-2022,Adults & Health,Ellingham Employment Services Ltd,Daycare - Private Contractors Payment,150,0,VENDOR
02-09-2022,Adults & Health,Ellingham Employment Services Ltd,Daycare - Private Contractors Payment,150,0,VENDOR
02-09-2022,Adults & Health,Ellingham Employment Services Ltd,Daycare - Private Contractors Payment,150,0,VENDOR
02-09-2022,Adults & Health,Ellingham Employment Services Ltd,Daycare - Private Contractors Payment,150,0,VENDOR
02-09-2022,Adults & Health,Ellingham Employment Services Ltd,Daycare - Private Contractors Payment,-45.76,0,VENDOR
02-09-2022,Adults & Health,Ellingham Employment Services Ltd,Daycare - Private Contractors Payment,160,0,VENDOR
02-09-2022,Adults & Health,Ellingham Employment Services Ltd,Daycare - Private Contractors Payment,160,0,VENDOR
02-09-2022,Adults & Health,Ellingham Employment Services Ltd,Daycare - Private Contractors Payment,160,0,VENDOR
02-09-2022,Adults & Health,Ellingham Employment Services Ltd,Daycare - Private Contractors Payment,150,0,VENDOR
02-09-2022,Adults & Health,Ellingham Employment Services Ltd,Daycare - Private Contractors Payment,150,0,VENDOR
02-09-2022,Adults & Health,Ellingham Employment Services Ltd,Daycare - Private Contractors Payment,150,0,VENDOR
02-09-2022,Adults & Health,Ellingham Employment Services Ltd,Daycare - Private Contractors Payment,150,0,VENDOR
02-09-2022,Adults & Health,Ellingham Employment Services Ltd,Daycare - Private Contractors Payment,120,0,VENDOR
02-09-2022,Adults & Health,Ellingham Employment Services Ltd,Daycare - Private Contractors Payment,120,0,VENDOR
02-09-2022,Adults & Health,Ellingham Employment Services Ltd,Daycare - Private Contractors Payment,120,0,VENDOR
02-09-2022,Adults & Health,Ellingham Employment Services Ltd,Daycare - Private Contractors Payment,120,0,VENDOR
02-09-2022,Adults & Health,Ellingham Employment Services Ltd,Daycare - Private Contractors Payment,275,0,VENDOR
02-09-2022,Adults & Health,Ellingham Employment Services Ltd,Daycare - Private Contractors Payment,275,0,VENDOR
02-09-2022,Adults & Health,Ellingham Employment Services Ltd,Daycare - Private Contractors Payment,275,0,VENDOR
02-09-2022,Adults & Health,Ellingham Employment Services Ltd,Daycare - Private Contractors Payment,286,0,VENDOR
02-09-2022,Adults & Health,Caronne Care Ltd,Reablement,71.85,0,NON COMMERCIAL SUPPLIER
02-09-2022,Adults & Health,Caronne Care Ltd,Home Care - Private Contractors Payment,5.84,0,NON COMMERCIAL SUPPLIER
02-09-2022,Adults & Health,Caronne Care Ltd,Home Care - Private Contractors Payment,234.71,0,NON COMMERCIAL SUPPLIER
02-09-2022,Adults & Health,Caronne Care Ltd,Home Care - Private Contractors Payment,86.22,0,NON COMMERCIAL SUPPLIER
02-09-2022,Adults & Health,Caronne Care Ltd,Home Care - Private Contractors Payment,100.59,0,NON COMMERCIAL SUPPLIER
02-09-2022,Adults & Health,Caronne Care Ltd,Home Care - Private Contractors Payment,167.65,0,NON COMMERCIAL SUPPLIER
02-09-2022,Adults & Health,Caronne Care Ltd,Home Care - Private Contractors Payment,28.74,0,NON COMMERCIAL SUPPLIER
02-09-2022,Adults & Health,Caronne Care Ltd,Home Care - Private Contractors Payment,407.15,0,NON COMMERCIAL SUPPLIER
02-09-2022,Adults & Health,Caronne Care Ltd,Home Care - Private Contractors Payment,167.65,0,NON COMMERCIAL SUPPLIER
02-09-2022,Adults & Health,Caronne Care Ltd,Home Care - Private Contractors Payment,182.02,0,NON COMMERCIAL SUPPLIER
02-09-2022,Adults & Health,Caronne Care Ltd,Home Care - Private Contractors Payment,19.16,0,NON COMMERCIAL SUPPLIER
02-09-2022,Adults & Health,Caronne Care Ltd,Home Care - Private Contractors Payment,28.74,0,NON COMMERCIAL SUPPLIER
02-09-2022,Adults & Health,Caronne Care Ltd,Home Care - Private Contractors Payment,402.36,0,NON COMMERCIAL SUPPLIER
02-09-2022,Adults & Health,Caronne Care Ltd,Reablement,91.01,0,NON COMMERCIAL SUPPLIER
02-09-2022,Adults & Health,Caronne Care Ltd,Home Care - Private Contractors Payment,86.22,0,NON COMMERCIAL SUPPLIER
02-09-2022,Adults & Health,Caronne Care Ltd,Home Care - Private Contractors Payment,570.01,0,NON COMMERCIAL SUPPLIER
02-09-2022,Adults & Health,Caronne Care Ltd,Home Care - Private Contractors Payment,19.16,0,NON COMMERCIAL SUPPLIER
02-09-2022,Adults & Health,Caronne Care Ltd,Home Care - Private Contractors Payment,234.71,0,NON COMMERCIAL SUPPLIER
02-09-2022,Adults & Health,Caronne Care Ltd,Home Care - Private Contractors Payment,167.65,0,NON COMMERCIAL SUPPLIER
02-09-2022,Adults & Health,Caronne Care Ltd,Home Care - Private Contractors Payment,469.42,0,NON COMMERCIAL SUPPLIER
02-09-2022,Adults & Health,Caronne Care Ltd,Home Care - Private Contractors Payment,570.01,0,NON COMMERCIAL SUPPLIER
02-09-2022,Adults & Health,Caronne Care Ltd,Home Care - Private Contractors Payment,67.06,0,NON COMMERCIAL SUPPLIER
02-09-2022,Adults & Health,Caronne Care Ltd,Home Care - Private Contractors Payment,19.16,0,NON COMMERCIAL SUPPLIER
02-09-2022,Adults & Health,Caronne Care Ltd,Home Care - Private Contractors Payment,67.06,0,NON COMMERCIAL SUPPLIER
02-09-2022,Adults & Health,Caronne Care Ltd,Home Care - Private Contractors Payment,67.06,0,NON COMMERCIAL SUPPLIER
02-09-2022,Adults & Health,Caronne Care Ltd,Home Care - Private Contractors Payment,86.22,0,NON COMMERCIAL SUPPLIER
02-09-2022,Adults & Health,Caronne Care Ltd,Daycare - Private Contractors Payment,38.32,0,NON COMMERCIAL SUPPLIER
02-09-2022,Adults & Health,Caronne Care Ltd,Home Care - Private Contractors Payment,167.65,0,NON COMMERCIAL SUPPLIER
02-09-2022,Adults & Health,Caronne Care Ltd,Home Care - Private Contractors Payment,67.06,0,NON COMMERCIAL SUPPLIER
02-09-2022,Adults & Health,Caronne Care Ltd,Home Care - Private Contractors Payment,134.12,0,NON COMMERCIAL SUPPLIER
02-09-2022,Adults & Health,Caronne Care Ltd,Home Care - Private Contractors Payment,67.06,0,NON COMMERCIAL SUPPLIER
02-09-2022,Adults & Health,Caronne Care Ltd,Home Care - Private Contractors Payment,167.65,0,NON COMMERCIAL SUPPLIER
02-09-2022,Adults & Health,Caronne Care Ltd,Home Care - Private Contractors Payment,301.77,0,NON COMMERCIAL SUPPLIER
02-09-2022,Adults & Health,Caronne Care Ltd,Home Care - Private Contractors Payment,33.53,0,NON COMMERCIAL SUPPLIER
02-09-2022,Adults & Health,Caronne Care Ltd,Home Care - Private Contractors Payment,19.16,0,NON COMMERCIAL SUPPLIER
02-09-2022,Adults & Health,Caronne Care Ltd,Reablement,71.85,0,NON COMMERCIAL SUPPLIER
02-09-2022,Adults & Health,Caronne Care Ltd,Daycare - Private Contractors Payment,19.16,0,NON COMMERCIAL SUPPLIER
02-09-2022,Adults & Health,Caronne Care Ltd,Home Care - Private Contractors Payment,268.24,0,NON COMMERCIAL SUPPLIER
02-09-2022,Adults & Health,Caronne Care Ltd,Home Care - Private Contractors Payment,86.22,0,NON COMMERCIAL SUPPLIER
02-09-2022,Adults & Health,Caronne Care Ltd,Home Care - Private Contractors Payment,67.06,0,NON COMMERCIAL SUPPLIER
02-09-2022,Adults & Health,Caronne Care Ltd,Home Care - Private Contractors Payment,19.16,0,NON COMMERCIAL SUPPLIER
02-09-2022,Adults & Health,Caronne Care Ltd,Home Care - Private Contractors Payment,38.32,0,NON COMMERCIAL SUPPLIER
02-09-2022,Adults & Health,Caronne Care Ltd,Reablement,67.06,0,NON COMMERCIAL SUPPLIER
02-09-2022,Adults & Health,Caronne Care Ltd,Home Care - Private Contractors Payment,134.12,0,NON COMMERCIAL SUPPLIER
02-09-2022,Adults & Health,Caronne Care Ltd,Home Care - Private Contractors Payment,570.01,0,NON COMMERCIAL SUPPLIER
02-09-2022,Adults & Health,Caronne Care Ltd,Home Care - Private Contractors Payment,301.77,0,NON COMMERCIAL SUPPLIER
02-09-2022,Adults & Health,Caronne Care Ltd,Home Care - Private Contractors Payment,100.59,0,NON COMMERCIAL SUPPLIER
02-09-2022,Adults & Health,Caronne Care Ltd,Home Care - Private Contractors Payment,167.65,0,NON COMMERCIAL SUPPLIER
02-09-2022,Adults & Health,Caronne Care Ltd,Home Care - Private Contractors Payment,234.71,0,NON COMMERCIAL SUPPLIER
02-09-2022,Adults & Health,Caronne Care Ltd,Home Care - Private Contractors Payment,167.65,0,NON COMMERCIAL SUPPLIER
02-09-2022,Adults & Health,Caronne Care Ltd,Reablement,100.59,0,NON COMMERCIAL SUPPLIER
02-09-2022,Adults & Health,Caronne Care Ltd,Home Care - Private Contractors Payment,114.96,0,NON COMMERCIAL SUPPLIER
02-09-2022,Adults & Health,Caronne Care Ltd,Home Care - Private Contractors Payment,536.48,0,NON COMMERCIAL SUPPLIER
02-09-2022,Adults & Health,Caronne Care Ltd,Home Care - Private Contractors Payment,167.65,0,NON COMMERCIAL SUPPLIER
02-09-2022,Adults & Health,Caronne Care Ltd,Home Care - Private Contractors Payment,67.06,0,NON COMMERCIAL SUPPLIER
02-09-2022,Adults & Health,Caronne Care Ltd,Home Care - Private Contractors Payment,134.12,0,NON COMMERCIAL SUPPLIER
02-09-2022,Adults & Health,Caronne Care Ltd,Home Care - Private Contractors Payment,95.8,0,NON COMMERCIAL SUPPLIER
02-09-2022,Adults & Health,Caronne Care Ltd,Reablement,71.85,0,NON COMMERCIAL SUPPLIER
02-09-2022,Adults & Health,Caronne Care Ltd,Home Care - Private Contractors Payment,19.16,0,NON COMMERCIAL SUPPLIER
02-09-2022,Adults & Health,Caronne Care Ltd,Home Care - Private Contractors Payment,19.16,0,NON COMMERCIAL SUPPLIER
02-09-2022,Adults & Health,Caronne Care Ltd,Reablement,67.06,0,NON COMMERCIAL SUPPLIER
02-09-2022,Adults & Health,Caronne Care Ltd,Home Care - Private Contractors Payment,134.12,0,NON COMMERCIAL SUPPLIER
02-09-2022,Adults & Health,Caronne Care Ltd,Home Care - Private Contractors Payment,234.71,0,NON COMMERCIAL SUPPLIER
02-09-2022,Adults & Health,Caronne Care Ltd,Daycare - Private Contractors Payment,38.32,0,NON COMMERCIAL SUPPLIER
02-09-2022,Adults & Health,Caronne Care Ltd,Home Care - Private Contractors Payment,100.59,0,NON COMMERCIAL SUPPLIER
02-09-2022,Adults & Health,Caronne Care Ltd,Home Care - Private Contractors Payment,19.16,0,NON COMMERCIAL SUPPLIER
02-09-2022,Adults & Health,Caronne Care Ltd,Home Care - Private Contractors Payment,38.32,0,NON COMMERCIAL SUPPLIER
02-09-2022,Adults & Health,Caronne Care Ltd,Home Care - Private Contractors Payment,167.65,0,NON COMMERCIAL SUPPLIER
02-09-2022,Adults & Health,Caronne Care Ltd,Home Care - Private Contractors Payment,100.59,0,NON COMMERCIAL SUPPLIER
02-09-2022,Adults & Health,Caronne Care Ltd,Home Care - Private Contractors Payment,167.65,0,NON COMMERCIAL SUPPLIER
02-09-2022,Adults & Health,Caronne Care Ltd,Home Care - Private Contractors Payment,38.32,0,NON COMMERCIAL SUPPLIER
02-09-2022,Adults & Health,Caronne Care Ltd,Home Care - Private Contractors Payment,570.01,0,NON COMMERCIAL SUPPLIER
02-09-2022,Adults & Health,Caronne Care Ltd,Home Care - Private Contractors Payment,895.73,0,NON COMMERCIAL SUPPLIER
02-09-2022,Adults & Health,Caronne Care Ltd,Home Care - Private Contractors Payment,536.48,0,NON COMMERCIAL SUPPLIER
02-09-2022,Adults & Health,Caronne Care Ltd,Home Care - Private Contractors Payment,201.18,0,NON COMMERCIAL SUPPLIER
02-09-2022,Adults & Health,Caronne Care Ltd,Reablement,100.59,0,NON COMMERCIAL SUPPLIER
02-09-2022,Adults & Health,Caronne Care Ltd,Home Care - Private Contractors Payment,469.42,0,NON COMMERCIAL SUPPLIER
02-09-2022,Adults & Health,Caronne Care Ltd,Home Care - Private Contractors Payment,167.65,0,NON COMMERCIAL SUPPLIER
02-09-2022,Adults & Health,Caronne Care Ltd,Home Care - Private Contractors Payment,234.71,0,NON COMMERCIAL SUPPLIER
02-09-2022,Adults & Health,Caronne Care Ltd,Home Care - Private Contractors Payment,67.06,0,NON COMMERCIAL SUPPLIER
02-09-2022,Adults & Health,Caronne Care Ltd,Reablement,114.96,0,NON COMMERCIAL SUPPLIER
02-09-2022,Adults & Health,Caronne Care Ltd,Home Care - Private Contractors Payment,38.32,0,NON COMMERCIAL SUPPLIER
02-09-2022,Adults & Health,Caronne Care Ltd,Reablement,100.59,0,NON COMMERCIAL SUPPLIER
02-09-2022,Adults & Health,Caronne Care Ltd,Home Care - Private Contractors Payment,268.24,0,NON COMMERCIAL SUPPLIER
02-09-2022,Adults & Health,Caronne Care Ltd,Home Care - Private Contractors Payment,234.71,0,NON COMMERCIAL SUPPLIER
02-09-2022,Adults & Health,Caronne Care Ltd,Home Care - Private Contractors Payment,100.59,0,NON COMMERCIAL SUPPLIER
02-09-2022,Adults & Health,Caronne Care Ltd,Home Care - Private Contractors Payment,536.48,0,NON COMMERCIAL SUPPLIER
02-09-2022,Adults & Health,Caronne Care Ltd,Home Care - Private Contractors Payment,167.65,0,NON COMMERCIAL SUPPLIER
02-09-2022,Adults & Health,Caronne Care Ltd,Home Care - Private Contractors Payment,234.71,0,NON COMMERCIAL SUPPLIER
02-09-2022,Adults & Health,Caronne Care Ltd,Home Care - Private Contractors Payment,67.06,0,NON COMMERCIAL SUPPLIER
02-09-2022,Adults & Health,Caronne Care Ltd,Home Care - Private Contractors Payment,167.65,0,NON COMMERCIAL SUPPLIER
02-09-2022,Adults & Health,Caronne Care Ltd,Daycare - Private Contractors Payment,38.32,0,NON COMMERCIAL SUPPLIER
02-09-2022,Adults & Health,Caronne Care Ltd,Home Care - Private Contractors Payment,100.59,0,NON COMMERCIAL SUPPLIER
02-09-2022,Adults & Health,Caronne Care Ltd,Daycare - Private Contractors Payment,57.48,0,NON COMMERCIAL SUPPLIER
02-09-2022,Adults & Health,Caronne Care Ltd,Home Care - Private Contractors Payment,67.06,0,NON COMMERCIAL SUPPLIER
02-09-2022,Adults & Health,Caronne Care Ltd,Home Care - Private Contractors Payment,201.18,0,NON COMMERCIAL SUPPLIER
02-09-2022,Adults & Health,Caronne Care Ltd,Home Care - Private Contractors Payment,67.06,0,NON COMMERCIAL SUPPLIER
02-09-2022,Adults & Health,Caronne Care Ltd,Home Care - Private Contractors Payment,14.37,0,NON COMMERCIAL SUPPLIER
02-09-2022,Adults & Health,Caronne Care Ltd,Home Care - Private Contractors Payment,167.65,0,NON COMMERCIAL SUPPLIER
02-09-2022,Adults & Health,Caronne Care Ltd,Home Care - Private Contractors Payment,38.32,0,NON COMMERCIAL SUPPLIER
02-09-2022,Adults & Health,Caronne Care Ltd,Home Care - Private Contractors Payment,301.77,0,NON COMMERCIAL SUPPLIER
02-09-2022,Adults & Health,Caronne Care Ltd,Home Care - Private Contractors Payment,19.16,0,NON COMMERCIAL SUPPLIER
02-09-2022,Adults & Health,Caronne Care Ltd,Home Care - Private Contractors Payment,167.65,0,NON COMMERCIAL SUPPLIER
02-09-2022,Adults & Health,Caronne Care Ltd,Home Care - Private Contractors Payment,19.16,0,NON COMMERCIAL SUPPLIER
02-09-2022,Adults & Health,Caronne Care Ltd,Reablement,71.85,0,NON COMMERCIAL SUPPLIER
02-09-2022,Adults & Health,Caronne Care Ltd,Home Care - Private Contractors Payment,134.12,0,NON COMMERCIAL SUPPLIER
02-09-2022,Adults & Health,Caronne Care Ltd,Home Care - Private Contractors Payment,570.01,0,NON COMMERCIAL SUPPLIER
02-09-2022,Adults & Health,Caronne Care Ltd,Home Care - Private Contractors Payment,143.7,0,NON COMMERCIAL SUPPLIER
02-09-2022,Adults & Health,Caronne Care Ltd,Home Care - Private Contractors Payment,570.01,0,NON COMMERCIAL SUPPLIER
02-09-2022,Adults & Health,Caronne Care Ltd,Home Care - Private Contractors Payment,469.42,0,NON COMMERCIAL SUPPLIER
02-09-2022,Adults & Health,Caronne Care Ltd,Home Care - Private Contractors Payment,134.12,0,NON COMMERCIAL SUPPLIER
02-09-2022,Adults & Health,Caronne Care Ltd,Home Care - Private Contractors Payment,234.71,0,NON COMMERCIAL SUPPLIER
02-09-2022,Adults & Health,Caronne Care Ltd,Home Care - Private Contractors Payment,469.42,0,NON COMMERCIAL SUPPLIER
02-09-2022,Adults & Health,Caronne Care Ltd,Home Care - Private Contractors Payment,134.12,0,NON COMMERCIAL SUPPLIER
02-09-2022,Adults & Health,Caronne Care Ltd,Reablement,57.48,0,NON COMMERCIAL SUPPLIER
02-09-2022,Adults & Health,Caronne Care Ltd,Home Care - Private Contractors Payment,91.01,0,NON COMMERCIAL SUPPLIER
02-09-2022,Adults & Health,Caronne Care Ltd,Daycare - Private Contractors Payment,47.9,0,NON COMMERCIAL SUPPLIER
02-09-2022,Adults & Health,Caronne Care Ltd,Home Care - Private Contractors Payment,38.32,0,NON COMMERCIAL SUPPLIER
02-09-2022,Adults & Health,Caronne Care Ltd,Home Care - Private Contractors Payment,67.06,0,NON COMMERCIAL SUPPLIER
02-09-2022,Adults & Health,Caronne Care Ltd,Home Care - Private Contractors Payment,570.01,0,NON COMMERCIAL SUPPLIER
02-09-2022,Adults & Health,Caronne Care Ltd,Home Care - Private Contractors Payment,167.65,0,NON COMMERCIAL SUPPLIER
02-09-2022,Adults & Health,Caronne Care Ltd,Reablement,71.85,0,NON COMMERCIAL SUPPLIER
02-09-2022,Adults & Health,Caronne Care Ltd,Home Care - Private Contractors Payment,167.65,0,NON COMMERCIAL SUPPLIER
02-09-2022,Adults & Health,Caronne Care Ltd,Home Care - Private Contractors Payment,19.16,0,NON COMMERCIAL SUPPLIER
02-09-2022,Adults & Health,Caronne Care Ltd,Daycare - Private Contractors Payment,38.32,0,NON COMMERCIAL SUPPLIER
02-09-2022,Adults & Health,Caronne Care Ltd,Home Care - Private Contractors Payment,186.81,0,NON COMMERCIAL SUPPLIER
02-09-2022,Adults & Health,Caronne Care Ltd,Home Care - Private Contractors Payment,71.85,0,NON COMMERCIAL SUPPLIER
02-09-2022,Adults & Health,Caronne Care Ltd,Home Care - Private Contractors Payment,143.7,0,NON COMMERCIAL SUPPLIER
02-09-2022,Adults & Health,Caronne Care Ltd,Home Care - Private Contractors Payment,67.06,0,NON COMMERCIAL SUPPLIER
02-09-2022,Adults & Health,Caronne Care Ltd,Home Care - Private Contractors Payment,19.16,0,NON COMMERCIAL SUPPLIER
02-09-2022,Adults & Health,Caronne Care Ltd,Home Care - Private Contractors Payment,76.64,0,NON COMMERCIAL SUPPLIER
02-09-2022,Adults & Health,Caronne Care Ltd,Home Care - Private Contractors Payment,234.71,0,NON COMMERCIAL SUPPLIER
02-09-2022,Adults & Health,Caronne Care Ltd,Home Care - Private Contractors Payment,9.58,0,NON COMMERCIAL SUPPLIER
02-09-2022,Adults & Health,Caronne Care Ltd,Home Care - Private Contractors Payment,335.3,0,NON COMMERCIAL SUPPLIER
02-09-2022,Adults & Health,Caronne Care Ltd,Home Care - Private Contractors Payment,86.22,0,NON COMMERCIAL SUPPLIER
02-09-2022,Adults & Health,Caronne Care Ltd,Home Care - Private Contractors Payment,38.32,0,NON COMMERCIAL SUPPLIER
02-09-2022,Adults & Health,Caronne Care Ltd,Home Care - Private Contractors Payment,167.65,0,NON COMMERCIAL SUPPLIER
02-09-2022,Adults & Health,Caronne Care Ltd,Daycare - Private Contractors Payment,38.32,0,NON COMMERCIAL SUPPLIER
02-09-2022,Adults & Health,Caronne Care Ltd,Home Care - Private Contractors Payment,570.01,0,NON COMMERCIAL SUPPLIER
02-09-2022,Adults & Health,Caronne Care Ltd,Home Care - Private Contractors Payment,301.77,0,NON COMMERCIAL SUPPLIER
02-09-2022,Adults & Health,Caronne Care Ltd,Home Care - Private Contractors Payment,67.06,0,NON COMMERCIAL SUPPLIER
02-09-2022,Adults & Health,Caronne Care Ltd,Daycare - Private Contractors Payment,19.16,0,NON COMMERCIAL SUPPLIER
02-09-2022,Adults & Health,Caronne Care Ltd,Home Care - Private Contractors Payment,397.57,0,NON COMMERCIAL SUPPLIER
02-09-2022,Adults & Health,Caronne Care Ltd,Daycare - Private Contractors Payment,19.16,0,NON COMMERCIAL SUPPLIER
02-09-2022,Adults & Health,Caronne Care Ltd,Home Care - Private Contractors Payment,38.32,0,NON COMMERCIAL SUPPLIER
02-09-2022,Adults & Health,Caronne Care Ltd,Home Care - Private Contractors Payment,67.06,0,NON COMMERCIAL SUPPLIER
02-09-2022,Adults & Health,Caronne Care Ltd,Home Care - Private Contractors Payment,19.16,0,NON COMMERCIAL SUPPLIER
02-09-2022,Adults & Health,Caronne Care Ltd,Home Care - Private Contractors Payment,167.65,0,NON COMMERCIAL SUPPLIER
02-09-2022,Adults & Health,Caronne Care Ltd,Home Care - Private Contractors Payment,234.71,0,NON COMMERCIAL SUPPLIER
02-09-2022,Adults & Health,Caronne Care Ltd,Home Care - Private Contractors Payment,19.16,0,NON COMMERCIAL SUPPLIER
02-09-2022,Adults & Health,Caronne Care Ltd,Home Care - Private Contractors Payment,268.24,0,NON COMMERCIAL SUPPLIER
02-09-2022,Adults & Health,Caronne Care Ltd,Home Care - Private Contractors Payment,71.85,0,NON COMMERCIAL SUPPLIER
02-09-2022,Adults & Health,Caronne Care Ltd,Daycare - Private Contractors Payment,38.32,0,NON COMMERCIAL SUPPLIER
02-09-2022,Adults & Health,Caronne Care Ltd,Home Care - Private Contractors Payment,100.59,0,NON COMMERCIAL SUPPLIER
02-09-2022,Adults & Health,Caronne Care Ltd,Home Care - Private Contractors Payment,167.65,0,NON COMMERCIAL SUPPLIER
02-09-2022,Adults & Health,Caronne Care Ltd,Home Care - Private Contractors Payment,67.06,0,NON COMMERCIAL SUPPLIER
02-09-2022,Adults & Health,Caronne Care Ltd,Home Care - Private Contractors Payment,440.68,0,NON COMMERCIAL SUPPLIER
02-09-2022,Adults & Health,Caronne Care Ltd,Home Care - Private Contractors Payment,335.3,0,NON COMMERCIAL SUPPLIER
02-09-2022,Adults & Health,Caronne Care Ltd,Home Care - Private Contractors Payment,38.32,0,NON COMMERCIAL SUPPLIER
02-09-2022,Adults & Health,Caronne Care Ltd,Home Care - Private Contractors Payment,71.85,0,NON COMMERCIAL SUPPLIER
02-09-2022,Adults & Health,Caronne Care Ltd,Home Care - Private Contractors Payment,67.06,0,NON COMMERCIAL SUPPLIER
02-09-2022,Adults & Health,Caronne Care Ltd,Home Care - Private Contractors Payment,167.65,0,NON COMMERCIAL SUPPLIER
02-09-2022,Adults & Health,Caronne Care Ltd,Home Care - Private Contractors Payment,9.58,0,NON COMMERCIAL SUPPLIER
02-09-2022,Adults & Health,Caronne Care Ltd,Home Care - Private Contractors Payment,134.12,0,NON COMMERCIAL SUPPLIER
02-09-2022,Adults & Health,Caronne Care Ltd,Home Care - Private Contractors Payment,234.71,0,NON COMMERCIAL SUPPLIER
02-09-2022,Adults & Health,Caronne Care Ltd,Home Care - Private Contractors Payment,570.01,0,NON COMMERCIAL SUPPLIER
02-09-2022,Adults & Health,Caronne Care Ltd,Home Care - Private Contractors Payment,268.24,0,NON COMMERCIAL SUPPLIER
02-09-2022,Adults & Health,Caronne Care Ltd,Home Care - Private Contractors Payment,301.77,0,NON COMMERCIAL SUPPLIER
02-09-2022,Adults & Health,Caronne Care Ltd,Home Care - Private Contractors Payment,469.42,0,NON COMMERCIAL SUPPLIER
02-09-2022,Adults & Health,Caronne Care Ltd,Home Care - Private Contractors Payment,67.06,0,NON COMMERCIAL SUPPLIER
02-09-2022,Adults & Health,Caronne Care Ltd,Home Care - Private Contractors Payment,38.32,0,NON COMMERCIAL SUPPLIER
02-09-2022,Adults & Health,Caronne Care Ltd,Home Care - Private Contractors Payment,134.12,0,NON COMMERCIAL SUPPLIER
02-09-2022,Adults & Health,Caronne Care Ltd,Home Care - Private Contractors Payment,86.22,0,NON COMMERCIAL SUPPLIER
02-09-2022,Adults & Health,Caronne Care Ltd,Reablement,43.11,0,NON COMMERCIAL SUPPLIER
02-09-2022,Adults & Health,Caronne Care Ltd,Home Care - Private Contractors Payment,167.65,0,NON COMMERCIAL SUPPLIER
02-09-2022,Adults & Health,Caronne Care Ltd,Daycare - Private Contractors Payment,57.48,0,NON COMMERCIAL SUPPLIER
02-09-2022,Adults & Health,Caronne Care Ltd,Daycare - Private Contractors Payment,19.16,0,NON COMMERCIAL SUPPLIER
02-09-2022,Adults & Health,Caronne Care Ltd,Home Care - Private Contractors Payment,201.18,0,NON COMMERCIAL SUPPLIER
02-09-2022,Adults & Health,Caronne Care Ltd,Home Care - Private Contractors Payment,167.65,0,NON COMMERCIAL SUPPLIER
02-09-2022,Adults & Health,Caronne Care Ltd,Home Care - Private Contractors Payment,167.65,0,NON COMMERCIAL SUPPLIER
02-09-2022,Adults & Health,Caronne Care Ltd,Home Care - Private Contractors Payment,311.35,0,NON COMMERCIAL SUPPLIER
02-09-2022,Adults & Health,Caronne Care Ltd,Home Care - Private Contractors Payment,19.16,0,NON COMMERCIAL SUPPLIER
02-09-2022,Adults & Health,Caronne Care Ltd,Home Care - Private Contractors Payment,301.77,0,NON COMMERCIAL SUPPLIER
02-09-2022,Adults & Health,Caronne Care Ltd,Daycare - Private Contractors Payment,38.32,0,NON COMMERCIAL SUPPLIER
02-09-2022,Adults & Health,Caronne Care Ltd,Home Care - Private Contractors Payment,268.24,0,NON COMMERCIAL SUPPLIER
02-09-2022,Adults & Health,Caronne Care Ltd,Home Care - Private Contractors Payment,4.79,0,NON COMMERCIAL SUPPLIER
02-09-2022,Adults & Health,Caronne Care Ltd,Home Care - Private Contractors Payment,570.01,0,NON COMMERCIAL SUPPLIER
02-09-2022,Adults & Health,Caronne Care Ltd,Home Care - Private Contractors Payment,167.65,0,NON COMMERCIAL SUPPLIER
02-09-2022,Adults & Health,Caronne Care Ltd,Home Care - Private Contractors Payment,124.54,0,NON COMMERCIAL SUPPLIER
02-09-2022,Adults & Health,Caronne Care Ltd,Home Care - Private Contractors Payment,536.48,0,NON COMMERCIAL SUPPLIER
02-09-2022,Adults & Health,Caronne Care Ltd,Home Care - Private Contractors Payment,134.12,0,NON COMMERCIAL SUPPLIER
02-09-2022,Adults & Health,Caronne Care Ltd,Home Care - Private Contractors Payment,19.16,0,NON COMMERCIAL SUPPLIER
02-09-2022,Adults & Health,Caronne Care Ltd,Home Care - Private Contractors Payment,234.71,0,NON COMMERCIAL SUPPLIER
02-09-2022,Adults & Health,Caronne Care Ltd,Home Care - Private Contractors Payment,469.42,0,NON COMMERCIAL SUPPLIER
02-09-2022,Adults & Health,Caronne Care Ltd,Daycare - Private Contractors Payment,38.32,0,NON COMMERCIAL SUPPLIER
02-09-2022,Adults & Health,Caronne Care Ltd,Home Care - Private Contractors Payment,19.16,0,NON COMMERCIAL SUPPLIER
02-09-2022,Adults & Health,Caronne Care Ltd,Home Care - Private Contractors Payment,249.08,0,NON COMMERCIAL SUPPLIER
02-09-2022,Adults & Health,Caronne Care Ltd,Reablement,43.11,0,NON COMMERCIAL SUPPLIER
02-09-2022,Adults & Health,Caronne Care Ltd,Home Care - Private Contractors Payment,167.65,0,NON COMMERCIAL SUPPLIER
02-09-2022,Adults & Health,Caronne Care Ltd,Home Care - Private Contractors Payment,86.22,0,NON COMMERCIAL SUPPLIER
02-09-2022,Adults & Health,Caronne Care Ltd,Home Care - Private Contractors Payment,25,0,NON COMMERCIAL SUPPLIER
02-09-2022,Adults & Health,Caronne Care Ltd,Home Care - Private Contractors Payment,234.71,0,NON COMMERCIAL SUPPLIER
02-09-2022,Adults & Health,Caronne Care Ltd,Home Care - Private Contractors Payment,100.59,0,NON COMMERCIAL SUPPLIER
02-09-2022,Adults & Health,Caronne Care Ltd,Home Care - Private Contractors Payment,38.32,0,NON COMMERCIAL SUPPLIER
02-09-2022,Adults & Health,Caronne Care Ltd,Home Care - Private Contractors Payment,67.06,0,NON COMMERCIAL SUPPLIER
02-09-2022,Adults & Health,Caronne Care Ltd,Reablement,71.85,0,NON COMMERCIAL SUPPLIER
02-09-2022,Adults & Health,Caronne Care Ltd,Reablement,4.79,0,NON COMMERCIAL SUPPLIER
02-09-2022,Adults & Health,Caronne Care Ltd,Home Care - Private Contractors Payment,19.16,0,NON COMMERCIAL SUPPLIER
02-09-2022,Adults & Health,Caronne Care Ltd,Home Care - Private Contractors Payment,167.65,0,NON COMMERCIAL SUPPLIER
02-09-2022,Adults & Health,Caronne Care Ltd,Home Care - Private Contractors Payment,9.58,0,NON COMMERCIAL SUPPLIER
02-09-2022,Adults & Health,Caronne Care Ltd,Home Care - Private Contractors Payment,296.98,0,NON COMMERCIAL SUPPLIER
02-09-2022,Adults & Health,Caronne Care Ltd,Home Care - Private Contractors Payment,469.42,0,NON COMMERCIAL SUPPLIER
02-09-2022,Adults & Health,Caronne Care Ltd,Home Care - Private Contractors Payment,38.32,0,NON COMMERCIAL SUPPLIER
02-09-2022,Adults & Health,Caronne Care Ltd,Home Care - Private Contractors Payment,67.06,0,NON COMMERCIAL SUPPLIER
02-09-2022,Adults & Health,Caronne Care Ltd,Home Care - Private Contractors Payment,67.06,0,NON COMMERCIAL SUPPLIER
02-09-2022,Adults & Health,Caronne Care Ltd,Home Care - Private Contractors Payment,86.22,0,NON COMMERCIAL SUPPLIER
02-09-2022,Adults & Health,Caronne Care Ltd,Home Care - Private Contractors Payment,234.71,0,NON COMMERCIAL SUPPLIER
02-09-2022,Adults & Health,Caronne Care Ltd,Home Care - Private Contractors Payment,47.9,0,NON COMMERCIAL SUPPLIER
02-09-2022,Adults & Health,Caronne Care Ltd,Home Care - Private Contractors Payment,134.12,0,NON COMMERCIAL SUPPLIER
02-09-2022,Adults & Health,Caronne Care Ltd,Home Care - Private Contractors Payment,234.71,0,NON COMMERCIAL SUPPLIER
02-09-2022,Adults & Health,Caronne Care Ltd,Home Care - Private Contractors Payment,268.24,0,NON COMMERCIAL SUPPLIER
02-09-2022,Adults & Health,Caronne Care Ltd,Home Care - Private Contractors Payment,229.92,0,NON COMMERCIAL SUPPLIER
02-09-2022,Adults & Health,Caronne Care Ltd,Home Care - Private Contractors Payment,134.12,0,NON COMMERCIAL SUPPLIER
02-09-2022,Adults & Health,Caronne Care Ltd,Home Care - Private Contractors Payment,67.06,0,NON COMMERCIAL SUPPLIER
02-09-2022,Adults & Health,Caronne Care Ltd,Daycare - Private Contractors Payment,38.32,0,NON COMMERCIAL SUPPLIER
02-09-2022,Adults & Health,Caronne Care Ltd,Home Care - Private Contractors Payment,201.18,0,NON COMMERCIAL SUPPLIER
02-09-2022,Adults & Health,Caronne Care Ltd,Home Care - Private Contractors Payment,134.12,0,NON COMMERCIAL SUPPLIER
02-09-2022,Adults & Health,Caronne Care Ltd,Home Care - Private Contractors Payment,167.65,0,NON COMMERCIAL SUPPLIER
02-09-2022,Adults & Health,Caronne Care Ltd,Reablement,71.85,0,NON COMMERCIAL SUPPLIER
02-09-2022,Adults & Health,Caronne Care Ltd,Home Care - Private Contractors Payment,469.42,0,NON COMMERCIAL SUPPLIER
02-09-2022,Adults & Health,Caronne Care Ltd,Home Care - Private Contractors Payment,134.12,0,NON COMMERCIAL SUPPLIER
02-09-2022,Adults & Health,Caronne Care Ltd,Home Care - Private Contractors Payment,402.36,0,NON COMMERCIAL SUPPLIER
02-09-2022,Adults & Health,Caronne Care Ltd,Home Care - Private Contractors Payment,67.06,0,NON COMMERCIAL SUPPLIER
02-09-2022,Adults & Health,Caronne Care Ltd,Daycare - Private Contractors Payment,38.32,0,NON COMMERCIAL SUPPLIER
02-09-2022,Adults & Health,Caronne Care Ltd,Home Care - Private Contractors Payment,19.16,0,NON COMMERCIAL SUPPLIER
02-09-2022,Adults & Health,Caronne Care Ltd,Home Care - Private Contractors Payment,100.59,0,NON COMMERCIAL SUPPLIER
02-09-2022,Adults & Health,Caronne Care Ltd,Home Care - Private Contractors Payment,234.71,0,NON COMMERCIAL SUPPLIER
02-09-2022,RMS,Master Locking Systems Ltd,Building Alterations And Materials,55.94,0,COMMERCIAL SUPPLIER
02-09-2022,RMS,Master Locking Systems Ltd,Building Alterations And Materials,177.14,0,COMMERCIAL SUPPLIER
02-09-2022,Environment and Sustainable Transport,Enterprise Flex-E-Rent,Client Transport,444.57,0,COMMERCIAL SUPPLIER
02-09-2022,Environment and Sustainable Transport,Enterprise Flex-E-Rent,Client Transport,581.4,0,COMMERCIAL SUPPLIER
02-09-2022,Environment and Sustainable Transport,Enterprise Flex-E-Rent,Client Transport,722.07,0,COMMERCIAL SUPPLIER
02-09-2022,Environment and Sustainable Transport,Enterprise Flex-E-Rent,Client Transport,615.7,0,COMMERCIAL SUPPLIER
02-09-2022,Environment and Sustainable Transport,Enterprise Flex-E-Rent,Client Transport,279.39,0,COMMERCIAL SUPPLIER
02-09-2022,Environment and Sustainable Transport,Enterprise Flex-E-Rent,Client Transport,444.57,0,COMMERCIAL SUPPLIER
02-09-2022,Environment and Sustainable Transport,Enterprise Flex-E-Rent,Client Transport,444.57,0,COMMERCIAL SUPPLIER
02-09-2022,Environment and Sustainable Transport,Enterprise Flex-E-Rent,Client Transport,444.57,0,COMMERCIAL SUPPLIER
02-09-2022,Environment and Sustainable Transport,Enterprise Flex-E-Rent,Client Transport,444.57,0,COMMERCIAL SUPPLIER
02-09-2022,Environment and Sustainable Transport,Enterprise Flex-E-Rent,Client Transport,444.57,0,COMMERCIAL SUPPLIER
02-09-2022,Environment and Sustainable Transport,Enterprise Flex-E-Rent,Client Transport,444.57,0,COMMERCIAL SUPPLIER
02-09-2022,Environment and Sustainable Transport,Enterprise Flex-E-Rent,Client Transport,444.57,0,COMMERCIAL SUPPLIER
02-09-2022,Environment and Sustainable Transport,Enterprise Flex-E-Rent,Client Transport,444.57,0,COMMERCIAL SUPPLIER
02-09-2022,Environment and Sustainable Transport,Enterprise Flex-E-Rent,Client Transport,444.57,0,COMMERCIAL SUPPLIER
02-09-2022,Environment and Sustainable Transport,Enterprise Flex-E-Rent,Client Transport,444.57,0,COMMERCIAL SUPPLIER
02-09-2022,Environment and Sustainable Transport,Enterprise Flex-E-Rent,Client Transport,678.86,0,COMMERCIAL SUPPLIER
02-09-2022,Environment and Sustainable Transport,Enterprise Flex-E-Rent,Client Transport,678.83,0,COMMERCIAL SUPPLIER
02-09-2022,Environment and Sustainable Transport,Enterprise Flex-E-Rent,Client Transport,258.81,0,COMMERCIAL SUPPLIER
02-09-2022,Environment and Sustainable Transport,Enterprise Flex-E-Rent,Client Transport,444.57,0,COMMERCIAL SUPPLIER
02-09-2022,Environment and Sustainable Transport,Enterprise Flex-E-Rent,Client Transport,667.16,0,COMMERCIAL SUPPLIER
02-09-2022,Environment and Sustainable Transport,Enterprise Flex-E-Rent,Client Transport,444.57,0,COMMERCIAL SUPPLIER
02-09-2022,Environment and Sustainable Transport,Enterprise Flex-E-Rent,Client Transport,279.39,0,COMMERCIAL SUPPLIER
02-09-2022,Environment and Sustainable Transport,Enterprise Flex-E-Rent,Client Transport,454.35,0,COMMERCIAL SUPPLIER
02-09-2022,Environment and Sustainable Transport,Enterprise Flex-E-Rent,Client Transport,444.54,0,COMMERCIAL SUPPLIER
02-09-2022,Environment and Sustainable Transport,Enterprise Flex-E-Rent,Client Transport,454.35,0,COMMERCIAL SUPPLIER
02-09-2022,Environment and Sustainable Transport,Enterprise Flex-E-Rent,Client Transport,405.13,0,COMMERCIAL SUPPLIER
02-09-2022,Environment and Sustainable Transport,Enterprise Flex-E-Rent,Client Transport,405.13,0,COMMERCIAL SUPPLIER
02-09-2022,Environment and Sustainable Transport,Enterprise Flex-E-Rent,Client Transport,415.89,0,COMMERCIAL SUPPLIER
02-09-2022,Environment and Sustainable Transport,Enterprise Flex-E-Rent,Client Transport,415.89,0,COMMERCIAL SUPPLIER
02-09-2022,Environment and Sustainable Transport,Enterprise Flex-E-Rent,Client Transport,415.89,0,COMMERCIAL SUPPLIER
02-09-2022,Environment and Sustainable Transport,Enterprise Flex-E-Rent,Client Transport,415.89,0,COMMERCIAL SUPPLIER
02-09-2022,Environment and Sustainable Transport,Enterprise Flex-E-Rent,Client Transport,613.53,0,COMMERCIAL SUPPLIER
02-09-2022,Inclusive Economy & Housing,British Gas Business,Electricity,2213.82,0,COMMERCIAL SUPPLIER
02-09-2022,Marketing,Personal Information - Redacted,Events,1250,0,INDIVIDUALS
02-09-2022,Dedicated Schools Budget,Personal Information - Redacted,Ict Maintenance And Support,2085,0,COMMERCIAL SUPPLIER
02-09-2022,Children and Young People,Papyrus Prevention of Young Suicide,Events,450,0,NON COMMERCIAL SUPPLIER
02-09-2022,Children and Young People,Papyrus Prevention of Young Suicide,Events,250,0,NON COMMERCIAL SUPPLIER
02-09-2022,Inclusive Economy & Housing,Capital Letters,Private Contractors Payment - Other,4137.01,0,LOCAL AUTHORITY SERVICES
02-09-2022,Children and Young People,Lavender Health & Social Care Limited,Payment To Health Authorities,2825,0,COMMERCIAL SUPPLIER
02-09-2022,Children and Young People,Lavender Health & Social Care Limited,Payment To Health Authorities,6750,0,COMMERCIAL SUPPLIER
02-09-2022,Children and Young People,Lextox,Legal Fees,696,0,COMMERCIAL SUPPLIER
02-09-2022,Adults & Health,Independent Living Alternatives,Home Care - Private Contractors Payment,2535.12,0,NON COMMERCIAL SUPPLIER
02-09-2022,Adults & Health,Independent Living Alternatives,Home Care - Private Contractors Payment,658.56,0,NON COMMERCIAL SUPPLIER
02-09-2022,Adults & Health,Independent Living Alternatives,Home Care - Private Contractors Payment,2535.12,0,NON COMMERCIAL SUPPLIER
02-09-2022,Adults & Health,Independent Living Alternatives,Home Care - Private Contractors Payment,2535.12,0,NON COMMERCIAL SUPPLIER
02-09-2022,Adults & Health,Independent Living Alternatives,Home Care - Private Contractors Payment,2535.12,0,NON COMMERCIAL SUPPLIER
02-09-2022,Environment and Sustainable Transport,Smart Platform Rental Ltd,Vehicle Hire,375,0,COMMERCIAL SUPPLIER
02-09-2022,RMS,Travis Perkins Trading Company Ltd,Building Alterations And Materials,1182.28,0,COMMERCIAL SUPPLIER
02-09-2022,RMS,Travis Perkins Trading Company Ltd,Building Alterations And Materials,360,0,COMMERCIAL SUPPLIER
02-09-2022,RMS,Travis Perkins Trading Company Ltd,Building Alterations And Materials,537.5,0,COMMERCIAL SUPPLIER
02-09-2022,RMS,Travis Perkins Trading Company Ltd,Building Alterations And Materials,1406.2,0,COMMERCIAL SUPPLIER
02-09-2022,RMS,Travis Perkins Trading Company Ltd,Building Alterations And Materials,48,0,COMMERCIAL SUPPLIER
02-09-2022,RMS,Travis Perkins Trading Company Ltd,Building Alterations And Materials,220.8,0,COMMERCIAL SUPPLIER
02-09-2022,RMS,Travis Perkins Trading Company Ltd,Building Alterations And Materials,41.2,0,COMMERCIAL SUPPLIER
02-09-2022,RMS,Travis Perkins Trading Company Ltd,Building Alterations And Materials,202.04,0,COMMERCIAL SUPPLIER
02-09-2022,RMS,Travis Perkins Trading Company Ltd,Building Alterations And Materials,155.24,0,COMMERCIAL SUPPLIER
02-09-2022,RMS,Travis Perkins Trading Company Ltd,Building Alterations And Materials,589.59,0,COMMERCIAL SUPPLIER
02-09-2022,RMS,Travis Perkins Trading Company Ltd,Building Alterations And Materials,488.37,0,COMMERCIAL SUPPLIER
02-09-2022,RMS,Travis Perkins Trading Company Ltd,Building Alterations And Materials,372.24,0,COMMERCIAL SUPPLIER
02-09-2022,RMS,Travis Perkins Trading Company Ltd,Building Alterations And Materials,157,0,COMMERCIAL SUPPLIER
02-09-2022,RMS,Travis Perkins Trading Company Ltd,Building Alterations And Materials,375,0,COMMERCIAL SUPPLIER
02-09-2022,RMS,Travis Perkins Trading Company Ltd,Building Alterations And Materials,449.82,0,COMMERCIAL SUPPLIER
02-09-2022,Adults & Health,Kaf Healthcare Training Ltd,Home Care - Private Contractors Payment,56.16,0,VENDOR
02-09-2022,Adults & Health,Kaf Healthcare Training Ltd,Home Care - Private Contractors Payment,608.4,0,VENDOR
02-09-2022,Adults & Health,Kaf Healthcare Training Ltd,Home Care - Private Contractors Payment,851.76,0,VENDOR
02-09-2022,Adults & Health,Kaf Healthcare Training Ltd,Home Care - Private Contractors Payment,56.16,0,VENDOR
02-09-2022,Adults & Health,Kaf Healthcare Training Ltd,Home Care - Private Contractors Payment,851.76,0,VENDOR
02-09-2022,Adults & Health,Kaf Healthcare Training Ltd,Home Care - Private Contractors Payment,56.16,0,VENDOR
02-09-2022,Adults & Health,Kaf Healthcare Training Ltd,Home Care - Private Contractors Payment,851.76,0,VENDOR
02-09-2022,Adults & Health,Kaf Healthcare Training Ltd,Home Care - Private Contractors Payment,56.16,0,VENDOR
02-09-2022,Adults & Health,Kaf Healthcare Training Ltd,Home Care - Private Contractors Payment,243.36,0,VENDOR
02-09-2022,Children and Young People,Hutchison 3G UK Ltd,Legal Fees,450,0,COMMERCIAL SUPPLIER
02-09-2022,Housing Revenue Account,Penna Plc.,Staff Recruitment Costs,1560,0,VENDOR
02-09-2022,Housing Revenue Account,Penna Plc.,Staff Recruitment Costs,3120,0,VENDOR
02-09-2022,RMS,Rehau Ltd,Building Alterations And Materials,8741.94,0,VENDOR
02-09-2022,RMS,Benchmarx Kitchens and Joinery,Building Alterations And Materials,774.86,0,COMMERCIAL SUPPLIER
02-09-2022,RMS,Benchmarx Kitchens and Joinery,Building Alterations And Materials,772.43,0,COMMERCIAL SUPPLIER
02-09-2022,RMS,Benchmarx Kitchens and Joinery,Building Alterations And Materials,428.76,0,COMMERCIAL SUPPLIER
02-09-2022,RMS,Benchmarx Kitchens and Joinery,Building Alterations And Materials,991.43,0,COMMERCIAL SUPPLIER
02-09-2022,RMS,Benchmarx Kitchens and Joinery,Building Alterations And Materials,261.12,0,COMMERCIAL SUPPLIER
02-09-2022,Marketing,FG Library Products Ltd,Professional Services - General,1650,0,COMMERCIAL SUPPLIER
02-09-2022,Adults & Health,Aevus Ltd t/a Home Instead,Home Care - Private Contractors Payment,513,0,INDIVIDUALS
02-09-2022,Adults & Health,Aevus Ltd t/a Home Instead,Home Care - Private Contractors Payment,114,0,INDIVIDUALS
02-09-2022,oneSource - Non Shared,Resolution Property Surveyors Ltd,General Office Expenses,400,0,COMMERCIAL SUPPLIER
02-09-2022,Inclusive Economy & Housing,A DAKRI AND CO LTD T/A GREENLEAF HOTEL,Rents Payable,14775,0,CARERS
02-09-2022,Adults & Health,Ask Care Ltd,Home Care - Private Contractors Payment,74.88,0,VENDOR
02-09-2022,Adults & Health,Ask Care Ltd,Home Care - Private Contractors Payment,84.24,0,VENDOR
02-09-2022,Adults & Health,Ask Care Ltd,Home Care - Private Contractors Payment,74.88,0,VENDOR
02-09-2022,Adults & Health,Ask Care Ltd,Home Care - Private Contractors Payment,84.24,0,VENDOR
02-09-2022,Adults & Health,Ask Care Ltd,Home Care - Private Contractors Payment,449.28,0,VENDOR
02-09-2022,Adults & Health,Ask Care Ltd,Home Care - Private Contractors Payment,229.32,0,VENDOR
02-09-2022,Adults & Health,Ask Care Ltd,Home Care - Private Contractors Payment,229.32,0,VENDOR
02-09-2022,Adults & Health,Ask Care Ltd,Home Care - Private Contractors Payment,229.32,0,VENDOR
02-09-2022,Adults & Health,Ask Care Ltd,Respite Care - Private Contractors Payment,18.72,0,VENDOR
02-09-2022,Adults & Health,Ask Care Ltd,Daycare - Private Contractors Payment,93.6,0,VENDOR
02-09-2022,Adults & Health,Ask Care Ltd,Home Care - Private Contractors Payment,18.72,0,VENDOR
02-09-2022,Adults & Health,Ask Care Ltd,Home Care - Private Contractors Payment,18.72,0,VENDOR
02-09-2022,Adults & Health,Ask Care Ltd,Home Care - Private Contractors Payment,229.32,0,VENDOR
02-09-2022,Adults & Health,Ask Care Ltd,Daycare - Private Contractors Payment,93.6,0,VENDOR
02-09-2022,Adults & Health,Ask Care Ltd,Respite Care - Private Contractors Payment,18.72,0,VENDOR
02-09-2022,Adults & Health,Ask Care Ltd,Home Care - Private Contractors Payment,1216.8,0,VENDOR
02-09-2022,Adults & Health,Ask Care Ltd,Home Care - Private Contractors Payment,93.6,0,VENDOR
02-09-2022,Adults & Health,Ask Care Ltd,Home Care - Private Contractors Payment,294.84,0,VENDOR
02-09-2022,Adults & Health,Ask Care Ltd,Home Care - Private Contractors Payment,294.84,0,VENDOR
02-09-2022,Adults & Health,Ask Care Ltd,Home Care - Private Contractors Payment,163.8,0,VENDOR
02-09-2022,Adults & Health,Ask Care Ltd,Daycare - Private Contractors Payment,74.88,0,VENDOR
02-09-2022,Adults & Health,Ask Care Ltd,Home Care - Private Contractors Payment,163.8,0,VENDOR
02-09-2022,Adults & Health,Ask Care Ltd,Daycare - Private Contractors Payment,74.88,0,VENDOR
02-09-2022,Adults & Health,Ask Care Ltd,Home Care - Private Contractors Payment,365.04,0,VENDOR
02-09-2022,Adults & Health,Ask Care Ltd,Home Care - Private Contractors Payment,37.44,0,VENDOR
02-09-2022,Adults & Health,Ask Care Ltd,Home Care - Private Contractors Payment,28.08,0,VENDOR
02-09-2022,Adults & Health,Ask Care Ltd,Home Care - Private Contractors Payment,14.04,0,VENDOR
02-09-2022,Adults & Health,Ask Care Ltd,Home Care - Private Contractors Payment,18.72,0,VENDOR
02-09-2022,Adults & Health,Ask Care Ltd,Home Care - Private Contractors Payment,18.72,0,VENDOR
02-09-2022,Adults & Health,Ask Care Ltd,Home Care - Private Contractors Payment,191.88,0,VENDOR
02-09-2022,Adults & Health,Ask Care Ltd,Respite Care - Private Contractors Payment,112.32,0,VENDOR
02-09-2022,Adults & Health,Ask Care Ltd,Home Care - Private Contractors Payment,229.32,0,VENDOR
02-09-2022,Adults & Health,Ask Care Ltd,Home Care - Private Contractors Payment,229.32,0,VENDOR
02-09-2022,Inclusive Economy & Housing,ERND Building Services (UK) Ltd,"Maintenance - Equipment, Furniture And Materials",6123.04,0,COMMERCIAL SUPPLIER
02-09-2022,oneSource,Stripe OLT,Ict Maintenance And Support,14595,0,VENDOR
02-09-2022,Environment and Sustainable Transport,RFW Engineering Ltd,"Purchase - Equipment, Furniture And Materials",760,0,COMMERCIAL SUPPLIER
02-09-2022,RMS,Beacon Scaffolding Ltd,Private Contractors Payment - Other,743.04,0,CIS
02-09-2022,Children and Young People,Aspire Youth Services ltd,Supported Other Accommodation - Private Contractors Payment,335.43,0,COMMERCIAL SUPPLIER
02-09-2022,Children and Young People,Aspire Youth Services ltd,Supported Other Accommodation - Private Contractors Payment,364,0,COMMERCIAL SUPPLIER
02-09-2022,Children and Young People,Aspire Youth Services ltd,Supported Other Accommodation - Private Contractors Payment,364,0,COMMERCIAL SUPPLIER
02-09-2022,Children and Young People,Aspire Youth Services ltd,Supported Other Accommodation - Private Contractors Payment,48,0,COMMERCIAL SUPPLIER
02-09-2022,Children and Young People,Aspire Youth Services ltd,Supported Other Accommodation - Private Contractors Payment,550.57,0,COMMERCIAL SUPPLIER
02-09-2022,Children and Young People,Aspire Youth Services ltd,Supported Other Accommodation - Private Contractors Payment,48,0,COMMERCIAL SUPPLIER
02-09-2022,Children and Young People,Aspire Youth Services ltd,Supported Other Accommodation - Private Contractors Payment,371,0,COMMERCIAL SUPPLIER
02-09-2022,Children and Young People,Aspire Youth Services ltd,Supported Other Accommodation - Private Contractors Payment,48,0,COMMERCIAL SUPPLIER
02-09-2022,Children and Young People,Aspire Youth Services ltd,Supported Other Accommodation - Private Contractors Payment,371,0,COMMERCIAL SUPPLIER
02-09-2022,Children and Young People,Aspire Youth Services ltd,Supported Other Accommodation - Private Contractors Payment,48,0,COMMERCIAL SUPPLIER
02-09-2022,Children and Young People,Aspire Youth Services ltd,Supported Other Accommodation - Private Contractors Payment,371,0,COMMERCIAL SUPPLIER
02-09-2022,RMS,London Network for Pest Solutions Ltd,Private Contractors Payment - Other,150,0,COMMERCIAL SUPPLIER
02-09-2022,RMS,London Network for Pest Solutions Ltd,Private Contractors Payment - Other,450,0,COMMERCIAL SUPPLIER
02-09-2022,Environment and Sustainable Transport,Riverside Truck Rental Ltd,Vehicle Hire,4577,0,COMMERCIAL SUPPLIER
02-09-2022,Children and Young People,Personal Information - Redacted,Professional Services - General,330,0,Employee
02-09-2022,Resources,Personal Information - Redacted,"Books, Publications And Resources",381.53,0,Employee
02-09-2022,Adults & Health,Ask Care Ltd,Home Care - Private Contractors Payment,9.36,0,VENDOR
02-09-2022,Adults & Health,Ask Care Ltd,Home Care - Private Contractors Payment,486.72,0,VENDOR
02-09-2022,Environment and Sustainable Transport,Personal Information - Redacted,Car Parking Fees - On Street Income,240,0,INDIVIDUALS
02-09-2022,Environment and Sustainable Transport,Personal Information - Redacted,Pcn Income,65,0,INDIVIDUALS
02-09-2022,Dedicated Schools Budget,Personal Information - Redacted,Independent Units Within The Council,326994,0,VENDOR
02-09-2022,Dedicated Schools Budget,Personal Information - Redacted,Independent Units Within The Council,266126,0,VENDOR
02-09-2022,Dedicated Schools Budget,Personal Information - Redacted,Independent Units Within The Council,399904,0,VENDOR
02-09-2022,Dedicated Schools Budget,Personal Information - Redacted,Independent Units Within The Council,436050,0,VENDOR
02-09-2022,Dedicated Schools Budget,Personal Information - Redacted,Independent Units Within The Council,258817,0,NON COMMERCIAL SUPPLIER
02-09-2022,Dedicated Schools Budget,Personal Information - Redacted,Independent Units Within The Council,304101,0,VENDOR
02-09-2022,Dedicated Schools Budget,Personal Information - Redacted,Independent Units Within The Council,503305,0,VENDOR
02-09-2022,Dedicated Schools Budget,Personal Information - Redacted,Independent Units Within The Council,539782,0,NON COMMERCIAL SUPPLIER
02-09-2022,Dedicated Schools Budget,Personal Information - Redacted,Independent Units Within The Council,139496,0,NON COMMERCIAL SUPPLIER
02-09-2022,Dedicated Schools Budget,Personal Information - Redacted,Independent Units Within The Council,341223,0,VENDOR
02-09-2022,Dedicated Schools Budget,Personal Information - Redacted,Independent Units Within The Council,392849,0,VENDOR
02-09-2022,Dedicated Schools Budget,Personal Information - Redacted,Independent Units Within The Council,273940,0,VENDOR
02-09-2022,Dedicated Schools Budget,Personal Information - Redacted,Independent Units Within The Council,136666,0,VENDOR
02-09-2022,Dedicated Schools Budget,Personal Information - Redacted,Independent Units Within The Council,303461,0,COMMERCIAL SUPPLIER
02-09-2022,Dedicated Schools Budget,Personal Information - Redacted,Independent Units Within The Council,229142,0,VENDOR
02-09-2022,Dedicated Schools Budget,Personal Information - Redacted,Independent Units Within The Council,379118,0,VENDOR
02-09-2022,Dedicated Schools Budget,Personal Information - Redacted,Independent Units Within The Council,188079,0,VENDOR
02-09-2022,Dedicated Schools Budget,Personal Information - Redacted,Independent Units Within The Council,322872,0,VENDOR
02-09-2022,Dedicated Schools Budget,Personal Information - Redacted,Independent Units Within The Council,566114,0,LOCAL AUTHORITY SERVICES
02-09-2022,Dedicated Schools Budget,Personal Information - Redacted,Independent Units Within The Council,445433,0,VENDOR
02-09-2022,Children and Young People,Personal Information - Redacted,Staff Development And Training,278,0,INDIVIDUALS
02-09-2022,Children and Young People,Tillian Consultancy Ltd,Consultancy Fees,6750,0,COMMERCIAL SUPPLIER
02-09-2022,RMS,Travis Perkins Trading Company Ltd,"Purchase - Equipment, Furniture And Materials",2266.9,0,COMMERCIAL SUPPLIER
02-09-2022,RMS,Travis Perkins Trading Company Ltd,"Purchase - Equipment, Furniture And Materials",568.24,0,COMMERCIAL SUPPLIER
02-09-2022,RMS,Travis Perkins Trading Company Ltd,"Purchase - Equipment, Furniture And Materials",12360.32,0,COMMERCIAL SUPPLIER
02-09-2022,RMS,Travis Perkins Trading Company Ltd,"Purchase - Equipment, Furniture And Materials",1242.42,0,COMMERCIAL SUPPLIER
02-09-2022,RMS,Travis Perkins Trading Company Ltd,"Purchase - Equipment, Furniture And Materials",1042.9,0,COMMERCIAL SUPPLIER
02-09-2022,RMS,Travis Perkins Trading Company Ltd,"Purchase - Equipment, Furniture And Materials",1323.29,0,COMMERCIAL SUPPLIER
02-09-2022,RMS,Travis Perkins Trading Company Ltd,"Purchase - Equipment, Furniture And Materials",2640.87,0,COMMERCIAL SUPPLIER
02-09-2022,RMS,Travis Perkins Trading Company Ltd,"Purchase - Equipment, Furniture And Materials",60203.01,0,COMMERCIAL SUPPLIER
02-09-2022,RMS,Travis Perkins Trading Company Ltd,"Purchase - Equipment, Furniture And Materials",218927.51,0,COMMERCIAL SUPPLIER
02-09-2022,RMS,Travis Perkins Trading Company Ltd,"Purchase - Equipment, Furniture And Materials",60.21,0,COMMERCIAL SUPPLIER
02-09-2022,RMS,Travis Perkins Trading Company Ltd,"Purchase - Equipment, Furniture And Materials",3827.97,0,COMMERCIAL SUPPLIER
02-09-2022,RMS,Titon Hardware Ltd,Building Alterations And Materials,288.5,0,NON COMMERCIAL SUPPLIER
02-09-2022,Adults & Health,Supporting Care,Home Care - Private Contractors Payment,34.2,0,VENDOR
02-09-2022,Adults & Health,Supporting Care,Home Care - Private Contractors Payment,98.28,0,VENDOR
02-09-2022,Adults & Health,Supporting Care,Home Care - Private Contractors Payment,43.11,0,VENDOR
02-09-2022,Adults & Health,Supporting Care,Home Care - Private Contractors Payment,100.59,0,VENDOR
02-09-2022,Adults & Health,Supporting Care,Home Care - Private Contractors Payment,100.59,0,VENDOR
02-09-2022,Adults & Health,Supporting Care,Home Care - Private Contractors Payment,100.59,0,VENDOR
02-09-2022,RMS,Beacon Scaffolding Ltd,Private Contractors Payment - Other,743.04,0,CIS
03-09-2022,oneSource - Non Shared,Juniper Ventures Ltd,Cleaning Services,805.43,0,COMMERCIAL SUPPLIER
03-09-2022,oneSource - Non Shared,Juniper Ventures Ltd,Cleaning Services,522.86,0,COMMERCIAL SUPPLIER
03-09-2022,oneSource - Non Shared,Juniper Ventures Ltd,Cleaning Services,537.52,0,COMMERCIAL SUPPLIER
03-09-2022,Dedicated Schools Budget,Cressey Oasis Education Ltd,Professional Services - General,23970.3,0,COMMERCIAL SUPPLIER
03-09-2022,Marketing,Rights & Equalities In Newham (Rein),Private Contractors Payment - Other,300,0,VENDOR
03-09-2022,Adults & Health,Chosen Care Group Ltd,Home Care - Private Contractors Payment,234.71,0,VENDOR
03-09-2022,Adults & Health,Chosen Care Group Ltd,Home Care - Private Contractors Payment,162.86,0,VENDOR
03-09-2022,Adults & Health,Chosen Care Group Ltd,Home Care - Private Contractors Payment,325.5,0,VENDOR
03-09-2022,Adults & Health,Chosen Care Group Ltd,Home Care - Private Contractors Payment,100.59,0,VENDOR
03-09-2022,Adults & Health,Chosen Care Group Ltd,Home Care - Private Contractors Payment,38.32,0,VENDOR
03-09-2022,Adults & Health,Chosen Care Group Ltd,Home Care - Private Contractors Payment,359.25,0,VENDOR
03-09-2022,Adults & Health,Chosen Care Group Ltd,Home Care - Private Contractors Payment,67.06,0,VENDOR
03-09-2022,Adults & Health,Chosen Care Group Ltd,Home Care - Private Contractors Payment,407.15,0,VENDOR
03-09-2022,Adults & Health,Chosen Care Group Ltd,Home Care - Private Contractors Payment,95.8,0,VENDOR
03-09-2022,Adults & Health,Chosen Care Group Ltd,Home Care - Private Contractors Payment,636,0,VENDOR
03-09-2022,Adults & Health,Chosen Care Group Ltd,Daycare - Private Contractors Payment,306.56,0,VENDOR
03-09-2022,Adults & Health,Chosen Care Group Ltd,Home Care - Private Contractors Payment,100.59,0,VENDOR
03-09-2022,Adults & Health,Chosen Care Group Ltd,Home Care - Private Contractors Payment,268.24,0,VENDOR
03-09-2022,Adults & Health,Chosen Care Group Ltd,Daycare - Private Contractors Payment,28.74,0,VENDOR
03-09-2022,Adults & Health,Chosen Care Group Ltd,Daycare - Private Contractors Payment,38.32,0,VENDOR
03-09-2022,Adults & Health,Chosen Care Group Ltd,Home Care - Private Contractors Payment,134.12,0,VENDOR
03-09-2022,Adults & Health,Chosen Care Group Ltd,Home Care - Private Contractors Payment,167.65,0,VENDOR
03-09-2022,Adults & Health,Chosen Care Group Ltd,Home Care - Private Contractors Payment,19.16,0,VENDOR
03-09-2022,Adults & Health,Chosen Care Group Ltd,Home Care - Private Contractors Payment,603.54,0,VENDOR
03-09-2022,Adults & Health,Chosen Care Group Ltd,Home Care - Private Contractors Payment,1572.48,0,VENDOR
03-09-2022,Adults & Health,Chosen Care Group Ltd,Home Care - Private Contractors Payment,340.09,0,VENDOR
03-09-2022,Adults & Health,Chosen Care Group Ltd,Home Care - Private Contractors Payment,57.48,0,VENDOR
03-09-2022,Adults & Health,Chosen Care Group Ltd,Daycare - Private Contractors Payment,287.4,0,VENDOR
03-09-2022,Adults & Health,Chosen Care Group Ltd,Home Care - Private Contractors Payment,134.12,0,VENDOR
03-09-2022,Adults & Health,Chosen Care Group Ltd,Home Care - Private Contractors Payment,234.71,0,VENDOR
03-09-2022,Adults & Health,Chosen Care Group Ltd,Home Care - Private Contractors Payment,38.32,0,VENDOR
03-09-2022,Adults & Health,Chosen Care Group Ltd,Home Care - Private Contractors Payment,201.18,0,VENDOR
03-09-2022,Adults & Health,Chosen Care Group Ltd,Home Care - Private Contractors Payment,215.55,0,VENDOR
03-09-2022,Adults & Health,Chosen Care Group Ltd,Daycare - Private Contractors Payment,172.44,0,VENDOR
03-09-2022,Adults & Health,Chosen Care Group Ltd,Home Care - Private Contractors Payment,167.65,0,VENDOR
03-09-2022,Adults & Health,Chosen Care Group Ltd,Home Care - Private Contractors Payment,57.48,0,VENDOR
03-09-2022,Adults & Health,Chosen Care Group Ltd,Home Care - Private Contractors Payment,743.52,0,VENDOR
03-09-2022,Adults & Health,Chosen Care Group Ltd,Daycare - Private Contractors Payment,28.74,0,VENDOR
03-09-2022,Adults & Health,Chosen Care Group Ltd,Home Care - Private Contractors Payment,67.06,0,VENDOR
03-09-2022,Adults & Health,Chosen Care Group Ltd,Home Care - Private Contractors Payment,603.54,0,VENDOR
03-09-2022,Adults & Health,Chosen Care Group Ltd,Home Care - Private Contractors Payment,162.86,0,VENDOR
03-09-2022,Adults & Health,Chosen Care Group Ltd,Daycare - Private Contractors Payment,67.06,0,VENDOR
03-09-2022,Adults & Health,Chosen Care Group Ltd,Home Care - Private Contractors Payment,182.02,0,VENDOR
03-09-2022,Adults & Health,Chosen Care Group Ltd,Home Care - Private Contractors Payment,536.48,0,VENDOR
03-09-2022,Adults & Health,Chosen Care Group Ltd,Daycare - Private Contractors Payment,38.32,0,VENDOR
03-09-2022,Adults & Health,Chosen Care Group Ltd,Home Care - Private Contractors Payment,268.24,0,VENDOR
03-09-2022,Adults & Health,Chosen Care Group Ltd,Home Care - Private Contractors Payment,234.71,0,VENDOR
03-09-2022,Adults & Health,Chosen Care Group Ltd,Home Care - Private Contractors Payment,234.71,0,VENDOR
03-09-2022,Adults & Health,Chosen Care Group Ltd,Daycare - Private Contractors Payment,76.64,0,VENDOR
03-09-2022,Adults & Health,Chosen Care Group Ltd,Home Care - Private Contractors Payment,67.06,0,VENDOR
03-09-2022,Adults & Health,Chosen Care Group Ltd,Home Care - Private Contractors Payment,301.77,0,VENDOR
03-09-2022,Adults & Health,Chosen Care Group Ltd,Home Care - Private Contractors Payment,95.8,0,VENDOR
03-09-2022,Adults & Health,Chosen Care Group Ltd,Home Care - Private Contractors Payment,95.8,0,VENDOR
03-09-2022,Adults & Health,Chosen Care Group Ltd,Home Care - Private Contractors Payment,325.5,0,VENDOR
03-09-2022,Adults & Health,Chosen Care Group Ltd,Home Care - Private Contractors Payment,359.25,0,VENDOR
03-09-2022,Adults & Health,Chosen Care Group Ltd,Daycare - Private Contractors Payment,95.8,0,VENDOR
03-09-2022,Adults & Health,Chosen Care Group Ltd,Home Care - Private Contractors Payment,268.24,0,VENDOR
03-09-2022,Adults & Health,Chosen Care Group Ltd,Daycare - Private Contractors Payment,28.74,0,VENDOR
03-09-2022,Adults & Health,Chosen Care Group Ltd,Daycare - Private Contractors Payment,67.06,0,VENDOR
03-09-2022,Adults & Health,Chosen Care Group Ltd,Home Care - Private Contractors Payment,167.65,0,VENDOR
03-09-2022,Adults & Health,Chosen Care Group Ltd,Home Care - Private Contractors Payment,114.96,0,VENDOR
03-09-2022,Adults & Health,Chosen Care Group Ltd,Daycare - Private Contractors Payment,19.16,0,VENDOR
03-09-2022,Adults & Health,Chosen Care Group Ltd,Home Care - Private Contractors Payment,301.77,0,VENDOR
03-09-2022,Adults & Health,Chosen Care Group Ltd,Home Care - Private Contractors Payment,234.71,0,VENDOR
03-09-2022,Adults & Health,Chosen Care Group Ltd,Daycare - Private Contractors Payment,76.64,0,VENDOR
03-09-2022,Adults & Health,Chosen Care Group Ltd,Home Care - Private Contractors Payment,38.32,0,VENDOR
03-09-2022,Adults & Health,Chosen Care Group Ltd,Daycare - Private Contractors Payment,287.4,0,VENDOR
03-09-2022,Adults & Health,Chosen Care Group Ltd,Respite Care - Private Contractors Payment,134.12,0,VENDOR
03-09-2022,Adults & Health,Chosen Care Group Ltd,Home Care - Private Contractors Payment,71.85,0,VENDOR
03-09-2022,Adults & Health,Chosen Care Group Ltd,Home Care - Private Contractors Payment,191.6,0,VENDOR
03-09-2022,Adults & Health,Chosen Care Group Ltd,Home Care - Private Contractors Payment,100.59,0,VENDOR
03-09-2022,Adults & Health,Chosen Care Group Ltd,Home Care - Private Contractors Payment,95.8,0,VENDOR
03-09-2022,Adults & Health,Chosen Care Group Ltd,Home Care - Private Contractors Payment,134.12,0,VENDOR
03-09-2022,Adults & Health,Chosen Care Group Ltd,Home Care - Private Contractors Payment,38.32,0,VENDOR
03-09-2022,Adults & Health,Chosen Care Group Ltd,Home Care - Private Contractors Payment,100.59,0,VENDOR
03-09-2022,Adults & Health,Chosen Care Group Ltd,Home Care - Private Contractors Payment,234.71,0,VENDOR
03-09-2022,Adults & Health,Chosen Care Group Ltd,Home Care - Private Contractors Payment,268.24,0,VENDOR
03-09-2022,Adults & Health,Chosen Care Group Ltd,Home Care - Private Contractors Payment,215.55,0,VENDOR
03-09-2022,Adults & Health,Chosen Care Group Ltd,Home Care - Private Contractors Payment,67.06,0,VENDOR
03-09-2022,Adults & Health,Chosen Care Group Ltd,Daycare - Private Contractors Payment,28.74,0,VENDOR
03-09-2022,Adults & Health,Chosen Care Group Ltd,Daycare - Private Contractors Payment,172.44,0,VENDOR
03-09-2022,Adults & Health,Chosen Care Group Ltd,Home Care - Private Contractors Payment,234.71,0,VENDOR
03-09-2022,Adults & Health,Chosen Care Group Ltd,Home Care - Private Contractors Payment,86.22,0,VENDOR
03-09-2022,Adults & Health,Chosen Care Group Ltd,Home Care - Private Contractors Payment,301.77,0,VENDOR
03-09-2022,Adults & Health,Chosen Care Group Ltd,Home Care - Private Contractors Payment,201.18,0,VENDOR
03-09-2022,Adults & Health,Chosen Care Group Ltd,Home Care - Private Contractors Payment,536.48,0,VENDOR
03-09-2022,Adults & Health,Chosen Care Group Ltd,Home Care - Private Contractors Payment,1572.48,0,VENDOR
03-09-2022,Adults & Health,Chosen Care Group Ltd,Home Care - Private Contractors Payment,134.12,0,VENDOR
03-09-2022,Adults & Health,Chosen Care Group Ltd,Home Care - Private Contractors Payment,81.43,0,VENDOR
03-09-2022,Adults & Health,Chosen Care Group Ltd,Home Care - Private Contractors Payment,38.32,0,VENDOR
03-09-2022,Adults & Health,Chosen Care Group Ltd,Home Care - Private Contractors Payment,340.09,0,VENDOR
03-09-2022,Adults & Health,Chosen Care Group Ltd,Home Care - Private Contractors Payment,134.12,0,VENDOR
03-09-2022,Adults & Health,Chosen Care Group Ltd,Home Care - Private Contractors Payment,100.59,0,VENDOR
03-09-2022,Adults & Health,Chosen Care Group Ltd,Home Care - Private Contractors Payment,172.44,0,VENDOR
03-09-2022,Adults & Health,Chosen Care Group Ltd,Home Care - Private Contractors Payment,287.4,0,VENDOR
03-09-2022,Adults & Health,Chosen Care Group Ltd,Home Care - Private Contractors Payment,292.19,0,VENDOR
03-09-2022,Adults & Health,Chosen Care Group Ltd,Home Care - Private Contractors Payment,143.7,0,VENDOR
03-09-2022,Adults & Health,Chosen Care Group Ltd,Home Care - Private Contractors Payment,603.54,0,VENDOR
03-09-2022,Adults & Health,Chosen Care Group Ltd,Daycare - Private Contractors Payment,38.32,0,VENDOR
03-09-2022,Adults & Health,Chosen Care Group Ltd,Daycare - Private Contractors Payment,28.74,0,VENDOR
03-09-2022,Adults & Health,Chosen Care Group Ltd,Home Care - Private Contractors Payment,134.12,0,VENDOR
03-09-2022,Adults & Health,Chosen Care Group Ltd,Home Care - Private Contractors Payment,182.02,0,VENDOR
03-09-2022,Adults & Health,Chosen Care Group Ltd,Home Care - Private Contractors Payment,9.58,0,VENDOR
03-09-2022,Adults & Health,Chosen Care Group Ltd,Home Care - Private Contractors Payment,234.71,0,VENDOR
03-09-2022,Adults & Health,Chosen Care Group Ltd,Daycare - Private Contractors Payment,19.16,0,VENDOR
03-09-2022,Adults & Health,Chosen Care Group Ltd,Home Care - Private Contractors Payment,234.71,0,VENDOR
03-09-2022,Adults & Health,Chosen Care Group Ltd,Home Care - Private Contractors Payment,38.32,0,VENDOR
03-09-2022,Adults & Health,Chosen Care Group Ltd,Home Care - Private Contractors Payment,536.48,0,VENDOR
03-09-2022,Adults & Health,Chosen Care Group Ltd,Home Care - Private Contractors Payment,301.77,0,VENDOR
03-09-2022,Adults & Health,Chosen Care Group Ltd,Home Care - Private Contractors Payment,38.32,0,VENDOR
03-09-2022,Adults & Health,Chosen Care Group Ltd,Home Care - Private Contractors Payment,234.71,0,VENDOR
03-09-2022,Adults & Health,Chosen Care Group Ltd,Home Care - Private Contractors Payment,71.85,0,VENDOR
03-09-2022,Adults & Health,Chosen Care Group Ltd,Daycare - Private Contractors Payment,287.4,0,VENDOR
03-09-2022,Adults & Health,Chosen Care Group Ltd,Home Care - Private Contractors Payment,67.06,0,VENDOR
03-09-2022,Adults & Health,Chosen Care Group Ltd,Home Care - Private Contractors Payment,134.12,0,VENDOR
03-09-2022,Adults & Health,Chosen Care Group Ltd,Home Care - Private Contractors Payment,38.32,0,VENDOR
03-09-2022,Adults & Health,Chosen Care Group Ltd,Home Care - Private Contractors Payment,167.65,0,VENDOR
03-09-2022,Adults & Health,Chosen Care Group Ltd,Daycare - Private Contractors Payment,38.32,0,VENDOR
03-09-2022,Adults & Health,Chosen Care Group Ltd,Home Care - Private Contractors Payment,76.64,0,VENDOR
03-09-2022,Adults & Health,Chosen Care Group Ltd,Home Care - Private Contractors Payment,387.99,0,VENDOR
03-09-2022,Adults & Health,Chosen Care Group Ltd,Home Care - Private Contractors Payment,229.92,0,VENDOR
03-09-2022,Adults & Health,Chosen Care Group Ltd,Home Care - Private Contractors Payment,167.65,0,VENDOR
03-09-2022,Adults & Health,Chosen Care Group Ltd,Daycare - Private Contractors Payment,67.06,0,VENDOR
03-09-2022,Adults & Health,Chosen Care Group Ltd,Home Care - Private Contractors Payment,38.32,0,VENDOR
03-09-2022,Adults & Health,Chosen Care Group Ltd,Home Care - Private Contractors Payment,71.85,0,VENDOR
03-09-2022,Adults & Health,Chosen Care Group Ltd,Home Care - Private Contractors Payment,177.23,0,VENDOR
03-09-2022,Adults & Health,Chosen Care Group Ltd,Home Care - Private Contractors Payment,268.24,0,VENDOR
03-09-2022,Adults & Health,Chosen Care Group Ltd,Home Care - Private Contractors Payment,1720.32,0,VENDOR
03-09-2022,Adults & Health,Chosen Care Group Ltd,Home Care - Private Contractors Payment,215.55,0,VENDOR
03-09-2022,Adults & Health,Chosen Care Group Ltd,Home Care - Private Contractors Payment,167.65,0,VENDOR
03-09-2022,Adults & Health,Chosen Care Group Ltd,Daycare - Private Contractors Payment,172.44,0,VENDOR
03-09-2022,Adults & Health,Chosen Care Group Ltd,Home Care - Private Contractors Payment,95.8,0,VENDOR
03-09-2022,Adults & Health,Chosen Care Group Ltd,Home Care - Private Contractors Payment,67.06,0,VENDOR
03-09-2022,Adults & Health,Chosen Care Group Ltd,Respite Care - Private Contractors Payment,134.12,0,VENDOR
03-09-2022,Adults & Health,Chosen Care Group Ltd,Daycare - Private Contractors Payment,19.16,0,VENDOR
03-09-2022,Adults & Health,Chosen Care Group Ltd,Home Care - Private Contractors Payment,364.7,0,VENDOR
03-09-2022,Adults & Health,Chosen Care Group Ltd,Home Care - Private Contractors Payment,301.77,0,VENDOR
03-09-2022,Adults & Health,Chosen Care Group Ltd,Home Care - Private Contractors Payment,234.71,0,VENDOR
03-09-2022,Adults & Health,Chosen Care Group Ltd,Home Care - Private Contractors Payment,234.71,0,VENDOR
03-09-2022,Adults & Health,Chosen Care Group Ltd,Daycare - Private Contractors Payment,19.16,0,VENDOR
03-09-2022,Adults & Health,Chosen Care Group Ltd,Respite Care - Private Contractors Payment,134.12,0,VENDOR
03-09-2022,Adults & Health,Chosen Care Group Ltd,Home Care - Private Contractors Payment,71.85,0,VENDOR
03-09-2022,Adults & Health,Chosen Care Group Ltd,Home Care - Private Contractors Payment,67.06,0,VENDOR
03-09-2022,Adults & Health,Chosen Care Group Ltd,Home Care - Private Contractors Payment,134.12,0,VENDOR
03-09-2022,Adults & Health,Chosen Care Group Ltd,Home Care - Private Contractors Payment,38.32,0,VENDOR
03-09-2022,Adults & Health,Chosen Care Group Ltd,Home Care - Private Contractors Payment,134.12,0,VENDOR
03-09-2022,Adults & Health,Chosen Care Group Ltd,Home Care - Private Contractors Payment,19.16,0,VENDOR
03-09-2022,Adults & Health,Chosen Care Group Ltd,Home Care - Private Contractors Payment,38.32,0,VENDOR
03-09-2022,Adults & Health,Chosen Care Group Ltd,Home Care - Private Contractors Payment,134.12,0,VENDOR
03-09-2022,Adults & Health,Chosen Care Group Ltd,Home Care - Private Contractors Payment,234.71,0,VENDOR
03-09-2022,Adults & Health,Chosen Care Group Ltd,Home Care - Private Contractors Payment,100.59,0,VENDOR
03-09-2022,Adults & Health,Chosen Care Group Ltd,Home Care - Private Contractors Payment,38.32,0,VENDOR
03-09-2022,Adults & Health,Chosen Care Group Ltd,Home Care - Private Contractors Payment,38.32,0,VENDOR
03-09-2022,Adults & Health,Chosen Care Group Ltd,Home Care - Private Contractors Payment,52.69,0,VENDOR
03-09-2022,Adults & Health,Chosen Care Group Ltd,Home Care - Private Contractors Payment,340.09,0,VENDOR
03-09-2022,Adults & Health,Chosen Care Group Ltd,Home Care - Private Contractors Payment,234.71,0,VENDOR
03-09-2022,Adults & Health,Chosen Care Group Ltd,Home Care - Private Contractors Payment,201.18,0,VENDOR
03-09-2022,Adults & Health,Chosen Care Group Ltd,Home Care - Private Contractors Payment,234.71,0,VENDOR
03-09-2022,Adults & Health,Chosen Care Group Ltd,Home Care - Private Contractors Payment,38.32,0,VENDOR
03-09-2022,Adults & Health,Chosen Care Group Ltd,Home Care - Private Contractors Payment,38.32,0,VENDOR
03-09-2022,Adults & Health,Chosen Care Group Ltd,Home Care - Private Contractors Payment,38.32,0,VENDOR
03-09-2022,Adults & Health,Chosen Care Group Ltd,Daycare - Private Contractors Payment,287.4,0,VENDOR
03-09-2022,Adults & Health,Chosen Care Group Ltd,Daycare - Private Contractors Payment,67.06,0,VENDOR
03-09-2022,Adults & Health,Chosen Care Group Ltd,Daycare - Private Contractors Payment,19.16,0,VENDOR
03-09-2022,Adults & Health,Chosen Care Group Ltd,Home Care - Private Contractors Payment,234.71,0,VENDOR
03-09-2022,Adults & Health,Chosen Care Group Ltd,Home Care - Private Contractors Payment,167.65,0,VENDOR
03-09-2022,Adults & Health,Chosen Care Group Ltd,Home Care - Private Contractors Payment,234.71,0,VENDOR
03-09-2022,Adults & Health,Chosen Care Group Ltd,Home Care - Private Contractors Payment,234.71,0,VENDOR
03-09-2022,Adults & Health,Chosen Care Group Ltd,Home Care - Private Contractors Payment,67.06,0,VENDOR
03-09-2022,Adults & Health,Chosen Care Group Ltd,Daycare - Private Contractors Payment,28.74,0,VENDOR
03-09-2022,Adults & Health,Chosen Care Group Ltd,Respite Care - Private Contractors Payment,134.12,0,VENDOR
03-09-2022,Adults & Health,Chosen Care Group Ltd,Home Care - Private Contractors Payment,234.71,0,VENDOR
03-09-2022,Adults & Health,Chosen Care Group Ltd,Home Care - Private Contractors Payment,301.77,0,VENDOR
03-09-2022,Adults & Health,Chosen Care Group Ltd,Home Care - Private Contractors Payment,57.48,0,VENDOR
03-09-2022,Adults & Health,Chosen Care Group Ltd,Home Care - Private Contractors Payment,71.85,0,VENDOR
03-09-2022,Adults & Health,Chosen Care Group Ltd,Home Care - Private Contractors Payment,201.18,0,VENDOR
03-09-2022,Adults & Health,Chosen Care Group Ltd,Home Care - Private Contractors Payment,134.12,0,VENDOR
03-09-2022,Adults & Health,Chosen Care Group Ltd,Home Care - Private Contractors Payment,67.06,0,VENDOR
03-09-2022,Adults & Health,Chosen Care Group Ltd,Home Care - Private Contractors Payment,38.32,0,VENDOR
03-09-2022,Adults & Health,Chosen Care Group Ltd,Home Care - Private Contractors Payment,234.71,0,VENDOR
03-09-2022,Adults & Health,Chosen Care Group Ltd,Home Care - Private Contractors Payment,167.65,0,VENDOR
03-09-2022,Adults & Health,Chosen Care Group Ltd,Home Care - Private Contractors Payment,268.24,0,VENDOR
03-09-2022,Adults & Health,Chosen Care Group Ltd,Home Care - Private Contractors Payment,100.59,0,VENDOR
03-09-2022,Adults & Health,Chosen Care Group Ltd,Home Care - Private Contractors Payment,215.55,0,VENDOR
03-09-2022,Adults & Health,Chosen Care Group Ltd,Home Care - Private Contractors Payment,38.32,0,VENDOR
03-09-2022,Adults & Health,Chosen Care Group Ltd,Home Care - Private Contractors Payment,359.25,0,VENDOR
03-09-2022,Adults & Health,Chosen Care Group Ltd,Daycare - Private Contractors Payment,172.44,0,VENDOR
03-09-2022,Adults & Health,Chosen Care Group Ltd,Home Care - Private Contractors Payment,301.77,0,VENDOR
03-09-2022,Adults & Health,Chosen Care Group Ltd,Home Care - Private Contractors Payment,86.22,0,VENDOR
03-09-2022,Adults & Health,Chosen Care Group Ltd,Home Care - Private Contractors Payment,201.18,0,VENDOR
03-09-2022,Adults & Health,Chosen Care Group Ltd,Home Care - Private Contractors Payment,301.77,0,VENDOR
03-09-2022,Adults & Health,Chosen Care Group Ltd,Daycare - Private Contractors Payment,28.74,0,VENDOR
03-09-2022,Adults & Health,Chosen Care Group Ltd,Daycare - Private Contractors Payment,76.64,0,VENDOR
03-09-2022,Adults & Health,Chosen Care Group Ltd,Home Care - Private Contractors Payment,100.59,0,VENDOR
03-09-2022,Adults & Health,Chosen Care Group Ltd,Home Care - Private Contractors Payment,325.5,0,VENDOR
03-09-2022,Adults & Health,Chosen Care Group Ltd,Home Care - Private Contractors Payment,95.8,0,VENDOR
03-09-2022,Adults & Health,Chosen Care Group Ltd,Daycare - Private Contractors Payment,38.32,0,VENDOR
03-09-2022,Adults & Health,Chosen Care Group Ltd,Home Care - Private Contractors Payment,95.8,0,VENDOR
03-09-2022,Adults & Health,Chosen Care Group Ltd,Home Care - Private Contractors Payment,100.59,0,VENDOR
03-09-2022,Adults & Health,Chosen Care Group Ltd,Home Care - Private Contractors Payment,119.75,0,VENDOR
03-09-2022,Adults & Health,Chosen Care Group Ltd,Home Care - Private Contractors Payment,268.24,0,VENDOR
03-09-2022,Adults & Health,Chosen Care Group Ltd,Home Care - Private Contractors Payment,340.09,0,VENDOR
03-09-2022,Adults & Health,Chosen Care Group Ltd,Daycare - Private Contractors Payment,306.56,0,VENDOR
03-09-2022,Adults & Health,Chosen Care Group Ltd,Home Care - Private Contractors Payment,536.48,0,VENDOR
03-09-2022,Adults & Health,Chosen Care Group Ltd,Home Care - Private Contractors Payment,1572.48,0,VENDOR
03-09-2022,Adults & Health,Chosen Care Group Ltd,Home Care - Private Contractors Payment,134.12,0,VENDOR
03-09-2022,Adults & Health,Chosen Care Group Ltd,Home Care - Private Contractors Payment,234.71,0,VENDOR
03-09-2022,Adults & Health,Chosen Care Group Ltd,Home Care - Private Contractors Payment,134.12,0,VENDOR
03-09-2022,Adults & Health,Chosen Care Group Ltd,Home Care - Private Contractors Payment,162.86,0,VENDOR
03-09-2022,Adults & Health,Chosen Care Group Ltd,Home Care - Private Contractors Payment,19.16,0,VENDOR
03-09-2022,Adults & Health,Chosen Care Group Ltd,Home Care - Private Contractors Payment,268.24,0,VENDOR
03-09-2022,Adults & Health,Chosen Care Group Ltd,Home Care - Private Contractors Payment,603.54,0,VENDOR
03-09-2022,Adults & Health,Chosen Care Group Ltd,Home Care - Private Contractors Payment,38.32,0,VENDOR
03-09-2022,Adults & Health,Chosen Care Group Ltd,Home Care - Private Contractors Payment,105.38,0,VENDOR
03-09-2022,Children and Young People,Jackson Resolutions Ltd,Legal Fees,5095,0,COMMERCIAL SUPPLIER
03-09-2022,Environment and Sustainable Transport,Sparshatt Truck & Van Ltd,Highway Services,588.8,0,COMMERCIAL SUPPLIER
03-09-2022,RMS,Roseview Windows,"Purchase - Equipment, Furniture And Materials",1097.2,0,COMMERCIAL SUPPLIER
03-09-2022,Marketing,Personal Information - Redacted,Events,500,0,
03-09-2022,Inclusive Economy & Housing,Personal Information - Redacted,"Purchase - Equipment, Furniture And Materials",118.31,0,Employee
03-09-2022,Inclusive Economy & Housing,Personal Information - Redacted,"Purchase - Equipment, Furniture And Materials",350,0,Employee
03-09-2022,Inclusive Economy & Housing,Personal Information - Redacted,"Purchase - Equipment, Furniture And Materials",108.44,0,Employee
03-09-2022,Inclusive Economy & Housing,Personal Information - Redacted,"Purchase - Equipment, Furniture And Materials",15.45,0,Employee
03-09-2022,Inclusive Economy & Housing,Personal Information - Redacted,Catering And Vending Supplies,11.94,0,Employee
03-09-2022,Children and Young People,Personal Information - Redacted,Ict Software,76.66,0,Employee
03-09-2022,Children and Young People,Personal Information - Redacted,Ict Software,6.66,0,Employee
03-09-2022,Children and Young People,Luxe Star Events,Arts And Leisure Costs,280,0,
04-09-2022,Marketing,Personal Information - Redacted,Events,500,0,INDIVIDUALS
04-09-2022,Adults & Health,Care Avenues Ltd,Daycare - Private Contractors Payment,440,0,VENDOR
04-09-2022,Adults & Health,Care Avenues Ltd,Daycare - Private Contractors Payment,440,0,VENDOR
04-09-2022,Adults & Health,Care Avenues Ltd,Daycare - Private Contractors Payment,440,0,VENDOR
04-09-2022,Adults & Health,Care Avenues Ltd,Daycare - Private Contractors Payment,130,0,VENDOR
04-09-2022,RMS,cer Financial Ltd,Agency Staff,320,0,COMMERCIAL SUPPLIER
04-09-2022,RMS,cer Financial Ltd,Agency Staff,360,0,COMMERCIAL SUPPLIER
04-09-2022,RMS,cer Financial Ltd,Agency Staff,320,0,COMMERCIAL SUPPLIER
04-09-2022,RMS,cer Financial Ltd,Agency Staff,360,0,COMMERCIAL SUPPLIER
04-09-2022,RMS,cer Financial Ltd,Agency Staff,360,0,COMMERCIAL SUPPLIER
04-09-2022,RMS,cer Financial Ltd,Agency Staff,320,0,COMMERCIAL SUPPLIER
04-09-2022,RMS,cer Financial Ltd,Agency Staff,320,0,COMMERCIAL SUPPLIER
04-09-2022,RMS,cer Financial Ltd,Agency Staff,360,0,COMMERCIAL SUPPLIER
04-09-2022,RMS,cer Financial Ltd,Agency Staff,360,0,COMMERCIAL SUPPLIER
04-09-2022,RMS,cer Financial Ltd,Agency Staff,360,0,COMMERCIAL SUPPLIER
04-09-2022,RMS,cer Financial Ltd,Agency Staff,360,0,COMMERCIAL SUPPLIER
04-09-2022,RMS,cer Financial Ltd,Agency Staff,320,0,COMMERCIAL SUPPLIER
04-09-2022,RMS,cer Financial Ltd,Agency Staff,360,0,COMMERCIAL SUPPLIER
04-09-2022,RMS,cer Financial Ltd,Agency Staff,320,0,COMMERCIAL SUPPLIER
04-09-2022,RMS,cer Financial Ltd,Agency Staff,360,0,COMMERCIAL SUPPLIER
04-09-2022,RMS,cer Financial Ltd,Agency Staff,360,0,COMMERCIAL SUPPLIER
04-09-2022,RMS,cer Financial Ltd,Agency Staff,360,0,COMMERCIAL SUPPLIER
04-09-2022,RMS,cer Financial Ltd,Agency Staff,360,0,COMMERCIAL SUPPLIER
04-09-2022,RMS,cer Financial Ltd,Agency Staff,360,0,COMMERCIAL SUPPLIER
04-09-2022,RMS,cer Financial Ltd,Agency Staff,360,0,COMMERCIAL SUPPLIER
04-09-2022,RMS,cer Financial Ltd,Agency Staff,360,0,COMMERCIAL SUPPLIER
04-09-2022,RMS,cer Financial Ltd,Agency Staff,400,0,COMMERCIAL SUPPLIER
04-09-2022,RMS,cer Financial Ltd,Agency Staff,360,0,COMMERCIAL SUPPLIER
04-09-2022,RMS,cer Financial Ltd,Agency Staff,410,0,COMMERCIAL SUPPLIER
04-09-2022,RMS,cer Financial Ltd,Agency Staff,360,0,COMMERCIAL SUPPLIER
04-09-2022,Children and Young People,Personal Information - Redacted,Payment To Private Sector Landlords (Psl),1000,0,INDIVIDUALS
04-09-2022,Marketing,Personal Information - Redacted,Events,1500,0,INDIVIDUALS
05-09-2022,Marketing,Personal Information - Redacted,Events,3150,0,INDIVIDUALS
05-09-2022,oneSource - Non Shared,Sully Form Ltd,"Maintenance - Equipment, Furniture And Materials",3365.08,0,VENDOR
05-09-2022,Children and Young People,Paradigm Project,Staff Development And Training,5000,0,
05-09-2022,Marketing,Personal Information - Redacted,Events,500,0,INDIVIDUALS
05-09-2022,Marketing,Askews and Holts Library Services Ltd,"Books, Publications And Resources",411.65,0,COMMERCIAL SUPPLIER
05-09-2022,Marketing,Askews and Holts Library Services Ltd,"Books, Publications And Resources",619.33,0,COMMERCIAL SUPPLIER
05-09-2022,Marketing,Askews and Holts Library Services Ltd,"Books, Publications And Resources",669.15,0,COMMERCIAL SUPPLIER
05-09-2022,Marketing,Askews and Holts Library Services Ltd,"Books, Publications And Resources",46.91,0,COMMERCIAL SUPPLIER
05-09-2022,Marketing,Askews and Holts Library Services Ltd,"Books, Publications And Resources",104.94,0,COMMERCIAL SUPPLIER
05-09-2022,Environment and Sustainable Transport,Quality TM & Events Ltd,"Purchase - Equipment, Furniture And Materials",365,0,COMMERCIAL SUPPLIER
05-09-2022,Environment and Sustainable Transport,AirCon Direct t/a Buy It Direct Ltd,"Purchase - Equipment, Furniture And Materials",253,0,COMMERCIAL SUPPLIER
05-09-2022,Dedicated Schools Budget,Personal Information - Redacted,Occupational Health,300,0,COMMERCIAL SUPPLIER
05-09-2022,Dedicated Schools Budget,Personal Information - Redacted,Private Contractors Payment - Other,300,0,COMMERCIAL SUPPLIER
05-09-2022,oneSource,Restore Plc.,Storage And Archiving,223.81,0,VENDOR
05-09-2022,Environment and Sustainable Transport,Greener Solutions,Highway Services,249.5,0,VENDOR
05-09-2022,Environment and Sustainable Transport,Greener Solutions,Highway Services,30.4,0,VENDOR
05-09-2022,Environment and Sustainable Transport,Greener Solutions,Highway Services,47.5,0,VENDOR
05-09-2022,Environment and Sustainable Transport,Greener Solutions,Highway Services,27.5,0,VENDOR
05-09-2022,Environment and Sustainable Transport,Greener Solutions,Highway Services,185,0,VENDOR
05-09-2022,Environment and Sustainable Transport,Greener Solutions,Highway Services,45,0,VENDOR
05-09-2022,Children and Young People,Lola's Cuisine Limited,Catering Services,774,0,VENDOR
05-09-2022,Children and Young People,Lola's Cuisine Limited,Catering Services,3656,0,VENDOR
05-09-2022,Environment and Sustainable Transport,Enterprise Flex-E-Rent,Client Transport,444.57,0,COMMERCIAL SUPPLIER
05-09-2022,Environment and Sustainable Transport,Enterprise Flex-E-Rent,Client Transport,279.39,0,COMMERCIAL SUPPLIER
05-09-2022,Environment and Sustainable Transport,Enterprise Flex-E-Rent,Client Transport,444.57,0,COMMERCIAL SUPPLIER
05-09-2022,Environment and Sustainable Transport,Enterprise Flex-E-Rent,Client Transport,1205.67,0,COMMERCIAL SUPPLIER
05-09-2022,Environment and Sustainable Transport,Enterprise Flex-E-Rent,Client Transport,301.33,0,COMMERCIAL SUPPLIER
05-09-2022,Environment and Sustainable Transport,Enterprise Flex-E-Rent,Client Transport,415.89,0,COMMERCIAL SUPPLIER
05-09-2022,Environment and Sustainable Transport,Enterprise Flex-E-Rent,Client Transport,255.83,0,COMMERCIAL SUPPLIER
05-09-2022,Environment and Sustainable Transport,Enterprise Flex-E-Rent,Client Transport,444.54,0,COMMERCIAL SUPPLIER
05-09-2022,Environment and Sustainable Transport,Enterprise Flex-E-Rent,Client Transport,1076.83,0,COMMERCIAL SUPPLIER
05-09-2022,Environment and Sustainable Transport,Enterprise Flex-E-Rent,Client Transport,600.28,0,COMMERCIAL SUPPLIER
05-09-2022,Environment and Sustainable Transport,Enterprise Flex-E-Rent,Client Transport,584.89,0,COMMERCIAL SUPPLIER
05-09-2022,Environment and Sustainable Transport,Enterprise Flex-E-Rent,Client Transport,584.89,0,COMMERCIAL SUPPLIER
05-09-2022,Environment and Sustainable Transport,Enterprise Flex-E-Rent,Client Transport,381.61,0,COMMERCIAL SUPPLIER
05-09-2022,Environment and Sustainable Transport,Enterprise Flex-E-Rent,Client Transport,584.89,0,COMMERCIAL SUPPLIER
05-09-2022,Environment and Sustainable Transport,Enterprise Flex-E-Rent,Client Transport,584.89,0,COMMERCIAL SUPPLIER
05-09-2022,Environment and Sustainable Transport,Enterprise Flex-E-Rent,Client Transport,600.28,0,COMMERCIAL SUPPLIER
05-09-2022,Environment and Sustainable Transport,Enterprise Flex-E-Rent,Client Transport,279.39,0,COMMERCIAL SUPPLIER
05-09-2022,Environment and Sustainable Transport,Enterprise Flex-E-Rent,Client Transport,444.57,0,COMMERCIAL SUPPLIER
05-09-2022,Environment and Sustainable Transport,Enterprise Flex-E-Rent,Client Transport,444.57,0,COMMERCIAL SUPPLIER
05-09-2022,Environment and Sustainable Transport,Enterprise Flex-E-Rent,Client Transport,444.57,0,COMMERCIAL SUPPLIER
05-09-2022,Environment and Sustainable Transport,Enterprise Flex-E-Rent,Client Transport,444.57,0,COMMERCIAL SUPPLIER
05-09-2022,Environment and Sustainable Transport,Enterprise Flex-E-Rent,Client Transport,444.57,0,COMMERCIAL SUPPLIER
05-09-2022,Environment and Sustainable Transport,Enterprise Flex-E-Rent,Client Transport,444.57,0,COMMERCIAL SUPPLIER
05-09-2022,Environment and Sustainable Transport,Enterprise Flex-E-Rent,Client Transport,444.57,0,COMMERCIAL SUPPLIER
05-09-2022,Environment and Sustainable Transport,Enterprise Flex-E-Rent,Client Transport,444.57,0,COMMERCIAL SUPPLIER
05-09-2022,Environment and Sustainable Transport,Enterprise Flex-E-Rent,Client Transport,444.57,0,COMMERCIAL SUPPLIER
05-09-2022,Environment and Sustainable Transport,Enterprise Flex-E-Rent,Client Transport,444.57,0,COMMERCIAL SUPPLIER
05-09-2022,Environment and Sustainable Transport,Enterprise Flex-E-Rent,Client Transport,444.57,0,COMMERCIAL SUPPLIER
05-09-2022,Children and Young People,Zfa Limited,Section 17 - Private Contractors Payment,525,0,VENDOR
05-09-2022,Children and Young People,Zfa Limited,Section 17 - Private Contractors Payment,525,0,VENDOR
05-09-2022,Children and Young People,Zfa Limited,Section 17 - Private Contractors Payment,525,0,VENDOR
05-09-2022,Children and Young People,Zfa Limited,Section 17 - Private Contractors Payment,525,0,VENDOR
05-09-2022,Children and Young People,Zfa Limited,Section 17 - Private Contractors Payment,315,0,VENDOR
05-09-2022,Children and Young People,Zfa Limited,Section 17 - Private Contractors Payment,315,0,VENDOR
05-09-2022,Children and Young People,Zfa Limited,Section 17 - Private Contractors Payment,315,0,VENDOR
05-09-2022,Children and Young People,Zfa Limited,Section 17 - Private Contractors Payment,315,0,VENDOR
05-09-2022,Children and Young People,Jamma Umoja (Residential Services) Ltd,Residential Placements - Private Contractors Payment,3465,0,COMMERCIAL SUPPLIER
05-09-2022,Children and Young People,Willemsen Consulting,Legal Fees,907.2,0,COMMERCIAL SUPPLIER
05-09-2022,Children and Young People,Lextox,Legal Fees,429.75,0,COMMERCIAL SUPPLIER
05-09-2022,Housing Revenue Account,MLCS3 Limited,Surveys,2700,0,NON COMMERCIAL SUPPLIER
05-09-2022,Children and Young People,The Kennedy and Elliott Partnership LLP,Residential Placements - Private Contractors Payment,4000,0,
05-09-2022,Children and Young People,The Kennedy and Elliott Partnership LLP,Residential Placements - Private Contractors Payment,4000,0,
05-09-2022,Children and Young People,The Kennedy and Elliott Partnership LLP,Residential Placements - Private Contractors Payment,1600,0,
05-09-2022,Children and Young People,The Kennedy and Elliott Partnership LLP,Residential Placements - Private Contractors Payment,1600,0,
05-09-2022,Children and Young People,The Kennedy and Elliott Partnership LLP,Residential Placements - Private Contractors Payment,1600,0,
05-09-2022,Children and Young People,The Kennedy and Elliott Partnership LLP,Residential Placements - Private Contractors Payment,4000,0,
05-09-2022,Children and Young People,The Kennedy and Elliott Partnership LLP,Residential Placements - Private Contractors Payment,6400,0,
05-09-2022,Children and Young People,The Kennedy and Elliott Partnership LLP,Residential Placements - Private Contractors Payment,1600,0,
05-09-2022,Resources,Freeths LLP,Legal Fees,18937.5,0,LEGAL SERVICES
05-09-2022,Environment and Sustainable Transport,The Knowledge Academy Ltd,Staff Development And Training,499,0,VENDOR
05-09-2022,oneSource,CCS Media Limited.,Ict Software,3750,0,COMMERCIAL SUPPLIER
05-09-2022,oneSource,CCS Media Limited.,Ict Software,7.99,0,COMMERCIAL SUPPLIER
05-09-2022,oneSource,CCS Media Limited.,Ict Software,1655,0,COMMERCIAL SUPPLIER
05-09-2022,oneSource,CCS Media Limited.,Ict Hardware,2200,0,COMMERCIAL SUPPLIER
05-09-2022,oneSource,CCS Media Limited.,Ict Hardware,231,0,COMMERCIAL SUPPLIER
05-09-2022,oneSource,CCS Media Limited.,Ict Hardware,6643,0,COMMERCIAL SUPPLIER
05-09-2022,oneSource,Rushton Workwear Ltd,"Clothes, Uniform And Laundry",1535.25,0,COMMERCIAL SUPPLIER
05-09-2022,oneSource,Rushton Workwear Ltd,"Clothes, Uniform And Laundry",263.8,0,COMMERCIAL SUPPLIER
05-09-2022,Adults & Health,De Vere Care Partnership Ltd,Home Care - Private Contractors Payment,385.05,0,NON COMMERCIAL SUPPLIER
05-09-2022,Adults & Health,De Vere Care Partnership Ltd,Home Care - Private Contractors Payment,50.4,0,NON COMMERCIAL SUPPLIER
05-09-2022,Adults & Health,De Vere Care Partnership Ltd,Home Care - Private Contractors Payment,13.25,0,NON COMMERCIAL SUPPLIER
05-09-2022,Adults & Health,De Vere Care Partnership Ltd,Home Care - Private Contractors Payment,589.68,0,NON COMMERCIAL SUPPLIER
05-09-2022,Adults & Health,De Vere Care Partnership Ltd,Home Care - Private Contractors Payment,98.28,0,NON COMMERCIAL SUPPLIER
05-09-2022,Adults & Health,De Vere Care Partnership Ltd,Home Care - Private Contractors Payment,171.86,0,NON COMMERCIAL SUPPLIER
05-09-2022,Adults & Health,De Vere Care Partnership Ltd,Home Care - Private Contractors Payment,98.28,0,NON COMMERCIAL SUPPLIER
05-09-2022,Adults & Health,De Vere Care Partnership Ltd,Home Care - Private Contractors Payment,425.88,0,NON COMMERCIAL SUPPLIER
05-09-2022,Adults & Health,De Vere Care Partnership Ltd,Home Care - Private Contractors Payment,121.46,0,NON COMMERCIAL SUPPLIER
05-09-2022,Adults & Health,De Vere Care Partnership Ltd,Home Care - Private Contractors Payment,171.86,0,NON COMMERCIAL SUPPLIER
05-09-2022,Adults & Health,De Vere Care Partnership Ltd,Home Care - Private Contractors Payment,50.4,0,NON COMMERCIAL SUPPLIER
05-09-2022,Adults & Health,De Vere Care Partnership Ltd,Home Care - Private Contractors Payment,13.25,0,NON COMMERCIAL SUPPLIER
05-09-2022,Adults & Health,De Vere Care Partnership Ltd,Home Care - Private Contractors Payment,50.4,0,NON COMMERCIAL SUPPLIER
05-09-2022,Adults & Health,De Vere Care Partnership Ltd,Home Care - Private Contractors Payment,100.8,0,NON COMMERCIAL SUPPLIER
05-09-2022,Adults & Health,De Vere Care Partnership Ltd,Home Care - Private Contractors Payment,19.88,0,NON COMMERCIAL SUPPLIER
05-09-2022,Adults & Health,De Vere Care Partnership Ltd,Home Care - Private Contractors Payment,121.46,0,NON COMMERCIAL SUPPLIER
05-09-2022,Adults & Health,De Vere Care Partnership Ltd,Home Care - Private Contractors Payment,171.86,0,NON COMMERCIAL SUPPLIER
05-09-2022,Adults & Health,De Vere Care Partnership Ltd,Home Care - Private Contractors Payment,71.06,0,NON COMMERCIAL SUPPLIER
05-09-2022,Adults & Health,De Vere Care Partnership Ltd,Home Care - Private Contractors Payment,294.84,0,NON COMMERCIAL SUPPLIER
05-09-2022,Adults & Health,De Vere Care Partnership Ltd,Home Care - Private Contractors Payment,100.8,0,NON COMMERCIAL SUPPLIER
05-09-2022,Adults & Health,De Vere Care Partnership Ltd,Home Care - Private Contractors Payment,151.2,0,NON COMMERCIAL SUPPLIER
05-09-2022,Adults & Health,De Vere Care Partnership Ltd,Home Care - Private Contractors Payment,65.52,0,NON COMMERCIAL SUPPLIER
05-09-2022,Adults & Health,De Vere Care Partnership Ltd,Home Care - Private Contractors Payment,13.25,0,NON COMMERCIAL SUPPLIER
05-09-2022,Adults & Health,De Vere Care Partnership Ltd,Home Care - Private Contractors Payment,524.16,0,NON COMMERCIAL SUPPLIER
05-09-2022,Adults & Health,De Vere Care Partnership Ltd,Home Care - Private Contractors Payment,171.86,0,NON COMMERCIAL SUPPLIER
05-09-2022,Adults & Health,De Vere Care Partnership Ltd,Home Care - Private Contractors Payment,159.12,0,NON COMMERCIAL SUPPLIER
05-09-2022,Adults & Health,De Vere Care Partnership Ltd,Home Care - Private Contractors Payment,425.88,0,NON COMMERCIAL SUPPLIER
05-09-2022,Adults & Health,De Vere Care Partnership Ltd,Home Care - Private Contractors Payment,294.84,0,NON COMMERCIAL SUPPLIER
05-09-2022,Adults & Health,De Vere Care Partnership Ltd,Home Care - Private Contractors Payment,171.86,0,NON COMMERCIAL SUPPLIER
05-09-2022,Adults & Health,De Vere Care Partnership Ltd,Home Care - Private Contractors Payment,50.4,0,NON COMMERCIAL SUPPLIER
05-09-2022,Adults & Health,De Vere Care Partnership Ltd,Home Care - Private Contractors Payment,13.25,0,NON COMMERCIAL SUPPLIER
05-09-2022,Adults & Health,De Vere Care Partnership Ltd,Home Care - Private Contractors Payment,823.68,0,NON COMMERCIAL SUPPLIER
05-09-2022,Adults & Health,De Vere Care Partnership Ltd,Home Care - Private Contractors Payment,500.46,0,NON COMMERCIAL SUPPLIER
05-09-2022,Adults & Health,De Vere Care Partnership Ltd,Home Care - Private Contractors Payment,121.46,0,NON COMMERCIAL SUPPLIER
05-09-2022,Adults & Health,De Vere Care Partnership Ltd,Home Care - Private Contractors Payment,98.28,0,NON COMMERCIAL SUPPLIER
05-09-2022,Adults & Health,De Vere Care Partnership Ltd,Home Care - Private Contractors Payment,13.25,0,NON COMMERCIAL SUPPLIER
05-09-2022,Adults & Health,De Vere Care Partnership Ltd,Home Care - Private Contractors Payment,589.68,0,NON COMMERCIAL SUPPLIER
05-09-2022,Adults & Health,De Vere Care Partnership Ltd,Home Care - Private Contractors Payment,98.28,0,NON COMMERCIAL SUPPLIER
05-09-2022,Adults & Health,De Vere Care Partnership Ltd,Home Care - Private Contractors Payment,172.22,0,NON COMMERCIAL SUPPLIER
05-09-2022,Adults & Health,De Vere Care Partnership Ltd,Home Care - Private Contractors Payment,50.4,0,NON COMMERCIAL SUPPLIER
05-09-2022,Adults & Health,De Vere Care Partnership Ltd,Home Care - Private Contractors Payment,71.06,0,NON COMMERCIAL SUPPLIER
05-09-2022,Adults & Health,De Vere Care Partnership Ltd,Home Care - Private Contractors Payment,50.4,0,NON COMMERCIAL SUPPLIER
05-09-2022,Adults & Health,De Vere Care Partnership Ltd,Home Care - Private Contractors Payment,229.32,0,NON COMMERCIAL SUPPLIER
05-09-2022,Adults & Health,De Vere Care Partnership Ltd,Home Care - Private Contractors Payment,42.12,0,NON COMMERCIAL SUPPLIER
05-09-2022,Adults & Health,De Vere Care Partnership Ltd,Home Care - Private Contractors Payment,131.04,0,NON COMMERCIAL SUPPLIER
05-09-2022,Adults & Health,De Vere Care Partnership Ltd,Home Care - Private Contractors Payment,131.04,0,NON COMMERCIAL SUPPLIER
05-09-2022,Adults & Health,De Vere Care Partnership Ltd,Home Care - Private Contractors Payment,13.25,0,NON COMMERCIAL SUPPLIER
05-09-2022,Adults & Health,De Vere Care Partnership Ltd,Home Care - Private Contractors Payment,142.13,0,NON COMMERCIAL SUPPLIER
05-09-2022,Adults & Health,De Vere Care Partnership Ltd,Home Care - Private Contractors Payment,201.6,0,NON COMMERCIAL SUPPLIER
05-09-2022,Adults & Health,De Vere Care Partnership Ltd,Home Care - Private Contractors Payment,333.22,0,NON COMMERCIAL SUPPLIER
05-09-2022,Adults & Health,De Vere Care Partnership Ltd,Home Care - Private Contractors Payment,240.11,0,NON COMMERCIAL SUPPLIER
05-09-2022,Adults & Health,De Vere Care Partnership Ltd,Home Care - Private Contractors Payment,382.97,0,NON COMMERCIAL SUPPLIER
05-09-2022,Adults & Health,De Vere Care Partnership Ltd,Home Care - Private Contractors Payment,401.69,0,NON COMMERCIAL SUPPLIER
05-09-2022,Adults & Health,De Vere Care Partnership Ltd,Home Care - Private Contractors Payment,291.89,0,NON COMMERCIAL SUPPLIER
05-09-2022,Adults & Health,De Vere Care Partnership Ltd,Daycare - Private Contractors Payment,18.72,0,NON COMMERCIAL SUPPLIER
05-09-2022,Adults & Health,De Vere Care Partnership Ltd,Home Care - Private Contractors Payment,20.81,0,NON COMMERCIAL SUPPLIER
05-09-2022,Adults & Health,De Vere Care Partnership Ltd,Home Care - Private Contractors Payment,48.95,0,NON COMMERCIAL SUPPLIER
05-09-2022,Adults & Health,De Vere Care Partnership Ltd,Home Care - Private Contractors Payment,320.11,0,NON COMMERCIAL SUPPLIER
05-09-2022,Adults & Health,De Vere Care Partnership Ltd,Home Care - Private Contractors Payment,255.25,0,NON COMMERCIAL SUPPLIER
05-09-2022,Adults & Health,De Vere Care Partnership Ltd,Home Care - Private Contractors Payment,115.27,0,NON COMMERCIAL SUPPLIER
05-09-2022,Adults & Health,De Vere Care Partnership Ltd,Home Care - Private Contractors Payment,56.16,0,NON COMMERCIAL SUPPLIER
05-09-2022,Adults & Health,De Vere Care Partnership Ltd,Home Care - Private Contractors Payment,171.86,0,NON COMMERCIAL SUPPLIER
05-09-2022,Adults & Health,De Vere Care Partnership Ltd,Home Care - Private Contractors Payment,262.08,0,NON COMMERCIAL SUPPLIER
05-09-2022,Adults & Health,De Vere Care Partnership Ltd,Home Care - Private Contractors Payment,19.88,0,NON COMMERCIAL SUPPLIER
05-09-2022,Adults & Health,De Vere Care Partnership Ltd,Home Care - Private Contractors Payment,163.8,0,NON COMMERCIAL SUPPLIER
05-09-2022,Adults & Health,De Vere Care Partnership Ltd,Daycare - Private Contractors Payment,84.24,0,NON COMMERCIAL SUPPLIER
05-09-2022,Adults & Health,De Vere Care Partnership Ltd,Home Care - Private Contractors Payment,201.24,0,NON COMMERCIAL SUPPLIER
05-09-2022,Adults & Health,De Vere Care Partnership Ltd,Home Care - Private Contractors Payment,220.25,0,NON COMMERCIAL SUPPLIER
05-09-2022,Adults & Health,De Vere Care Partnership Ltd,Home Care - Private Contractors Payment,19.88,0,NON COMMERCIAL SUPPLIER
05-09-2022,Adults & Health,De Vere Care Partnership Ltd,Home Care - Private Contractors Payment,121.46,0,NON COMMERCIAL SUPPLIER
05-09-2022,Adults & Health,De Vere Care Partnership Ltd,Home Care - Private Contractors Payment,2.3,0,NON COMMERCIAL SUPPLIER
05-09-2022,Adults & Health,De Vere Care Partnership Ltd,Home Care - Private Contractors Payment,44.93,0,NON COMMERCIAL SUPPLIER
05-09-2022,Adults & Health,De Vere Care Partnership Ltd,Home Care - Private Contractors Payment,50.4,0,NON COMMERCIAL SUPPLIER
05-09-2022,Adults & Health,De Vere Care Partnership Ltd,Home Care - Private Contractors Payment,42.12,0,NON COMMERCIAL SUPPLIER
05-09-2022,Adults & Health,De Vere Care Partnership Ltd,Home Care - Private Contractors Payment,100.8,0,NON COMMERCIAL SUPPLIER
05-09-2022,Adults & Health,De Vere Care Partnership Ltd,Home Care - Private Contractors Payment,524.16,0,NON COMMERCIAL SUPPLIER
05-09-2022,Adults & Health,De Vere Care Partnership Ltd,Daycare - Private Contractors Payment,18.72,0,NON COMMERCIAL SUPPLIER
05-09-2022,Adults & Health,De Vere Care Partnership Ltd,Home Care - Private Contractors Payment,26.5,0,NON COMMERCIAL SUPPLIER
05-09-2022,Adults & Health,De Vere Care Partnership Ltd,Home Care - Private Contractors Payment,171.86,0,NON COMMERCIAL SUPPLIER
05-09-2022,Adults & Health,De Vere Care Partnership Ltd,Home Care - Private Contractors Payment,16.85,0,NON COMMERCIAL SUPPLIER
05-09-2022,Adults & Health,De Vere Care Partnership Ltd,Home Care - Private Contractors Payment,360.36,0,NON COMMERCIAL SUPPLIER
05-09-2022,Adults & Health,De Vere Care Partnership Ltd,Home Care - Private Contractors Payment,50.4,0,NON COMMERCIAL SUPPLIER
05-09-2022,Adults & Health,De Vere Care Partnership Ltd,Home Care - Private Contractors Payment,82.37,0,NON COMMERCIAL SUPPLIER
05-09-2022,Adults & Health,De Vere Care Partnership Ltd,Home Care - Private Contractors Payment,13.25,0,NON COMMERCIAL SUPPLIER
05-09-2022,Adults & Health,De Vere Care Partnership Ltd,Home Care - Private Contractors Payment,13.26,0,NON COMMERCIAL SUPPLIER
05-09-2022,Adults & Health,De Vere Care Partnership Ltd,Home Care - Private Contractors Payment,589.68,0,NON COMMERCIAL SUPPLIER
05-09-2022,Adults & Health,De Vere Care Partnership Ltd,Home Care - Private Contractors Payment,80.93,0,NON COMMERCIAL SUPPLIER
05-09-2022,Adults & Health,De Vere Care Partnership Ltd,Home Care - Private Contractors Payment,163.8,0,NON COMMERCIAL SUPPLIER
05-09-2022,Adults & Health,De Vere Care Partnership Ltd,Home Care - Private Contractors Payment,197.5,0,NON COMMERCIAL SUPPLIER
05-09-2022,Adults & Health,De Vere Care Partnership Ltd,Home Care - Private Contractors Payment,74.88,0,NON COMMERCIAL SUPPLIER
05-09-2022,Adults & Health,De Vere Care Partnership Ltd,Home Care - Private Contractors Payment,52.69,0,NON COMMERCIAL SUPPLIER
05-09-2022,Adults & Health,De Vere Care Partnership Ltd,Home Care - Private Contractors Payment,82.8,0,NON COMMERCIAL SUPPLIER
05-09-2022,Adults & Health,De Vere Care Partnership Ltd,Home Care - Private Contractors Payment,393.28,0,NON COMMERCIAL SUPPLIER
05-09-2022,Adults & Health,De Vere Care Partnership Ltd,Home Care - Private Contractors Payment,276.12,0,NON COMMERCIAL SUPPLIER
05-09-2022,Adults & Health,De Vere Care Partnership Ltd,Home Care - Private Contractors Payment,254.47,0,NON COMMERCIAL SUPPLIER
05-09-2022,Adults & Health,De Vere Care Partnership Ltd,Home Care - Private Contractors Payment,254.59,0,NON COMMERCIAL SUPPLIER
05-09-2022,Adults & Health,De Vere Care Partnership Ltd,Home Care - Private Contractors Payment,171.86,0,NON COMMERCIAL SUPPLIER
05-09-2022,Adults & Health,De Vere Care Partnership Ltd,Home Care - Private Contractors Payment,500.46,0,NON COMMERCIAL SUPPLIER
05-09-2022,Adults & Health,De Vere Care Partnership Ltd,Home Care - Private Contractors Payment,50.4,0,NON COMMERCIAL SUPPLIER
05-09-2022,Adults & Health,De Vere Care Partnership Ltd,Home Care - Private Contractors Payment,389.67,0,NON COMMERCIAL SUPPLIER
05-09-2022,Adults & Health,De Vere Care Partnership Ltd,Home Care - Private Contractors Payment,19.88,0,NON COMMERCIAL SUPPLIER
05-09-2022,Adults & Health,De Vere Care Partnership Ltd,Home Care - Private Contractors Payment,26.21,0,NON COMMERCIAL SUPPLIER
05-09-2022,Adults & Health,De Vere Care Partnership Ltd,Home Care - Private Contractors Payment,346.32,0,NON COMMERCIAL SUPPLIER
05-09-2022,Adults & Health,De Vere Care Partnership Ltd,Home Care - Private Contractors Payment,848.02,0,NON COMMERCIAL SUPPLIER
05-09-2022,Adults & Health,De Vere Care Partnership Ltd,Home Care - Private Contractors Payment,204.49,0,NON COMMERCIAL SUPPLIER
05-09-2022,Adults & Health,De Vere Care Partnership Ltd,Home Care - Private Contractors Payment,100.8,0,NON COMMERCIAL SUPPLIER
05-09-2022,Adults & Health,De Vere Care Partnership Ltd,Home Care - Private Contractors Payment,71.06,0,NON COMMERCIAL SUPPLIER
05-09-2022,Adults & Health,De Vere Care Partnership Ltd,Home Care - Private Contractors Payment,56.16,0,NON COMMERCIAL SUPPLIER
05-09-2022,Adults & Health,De Vere Care Partnership Ltd,Home Care - Private Contractors Payment,171.86,0,NON COMMERCIAL SUPPLIER
05-09-2022,Adults & Health,De Vere Care Partnership Ltd,Home Care - Private Contractors Payment,205.92,0,NON COMMERCIAL SUPPLIER
05-09-2022,Adults & Health,De Vere Care Partnership Ltd,Home Care - Private Contractors Payment,50.4,0,NON COMMERCIAL SUPPLIER
05-09-2022,Adults & Health,De Vere Care Partnership Ltd,Home Care - Private Contractors Payment,294.84,0,NON COMMERCIAL SUPPLIER
05-09-2022,Adults & Health,De Vere Care Partnership Ltd,Home Care - Private Contractors Payment,65.52,0,NON COMMERCIAL SUPPLIER
05-09-2022,Adults & Health,De Vere Care Partnership Ltd,Home Care - Private Contractors Payment,823.68,0,NON COMMERCIAL SUPPLIER
05-09-2022,Adults & Health,De Vere Care Partnership Ltd,Home Care - Private Contractors Payment,500.46,0,NON COMMERCIAL SUPPLIER
05-09-2022,Adults & Health,De Vere Care Partnership Ltd,Home Care - Private Contractors Payment,163.8,0,NON COMMERCIAL SUPPLIER
05-09-2022,Adults & Health,De Vere Care Partnership Ltd,Home Care - Private Contractors Payment,205.92,0,NON COMMERCIAL SUPPLIER
05-09-2022,Adults & Health,De Vere Care Partnership Ltd,Home Care - Private Contractors Payment,46.8,0,NON COMMERCIAL SUPPLIER
05-09-2022,Adults & Health,De Vere Care Partnership Ltd,Home Care - Private Contractors Payment,19.88,0,NON COMMERCIAL SUPPLIER
05-09-2022,Adults & Health,De Vere Care Partnership Ltd,Home Care - Private Contractors Payment,294.84,0,NON COMMERCIAL SUPPLIER
05-09-2022,Adults & Health,De Vere Care Partnership Ltd,Home Care - Private Contractors Payment,131.04,0,NON COMMERCIAL SUPPLIER
05-09-2022,Adults & Health,De Vere Care Partnership Ltd,Home Care - Private Contractors Payment,71.06,0,NON COMMERCIAL SUPPLIER
05-09-2022,Adults & Health,De Vere Care Partnership Ltd,Home Care - Private Contractors Payment,50.4,0,NON COMMERCIAL SUPPLIER
05-09-2022,Adults & Health,De Vere Care Partnership Ltd,Home Care - Private Contractors Payment,294.84,0,NON COMMERCIAL SUPPLIER
05-09-2022,Adults & Health,De Vere Care Partnership Ltd,Home Care - Private Contractors Payment,324.79,0,NON COMMERCIAL SUPPLIER
05-09-2022,Adults & Health,De Vere Care Partnership Ltd,Home Care - Private Contractors Payment,171.86,0,NON COMMERCIAL SUPPLIER
05-09-2022,Adults & Health,De Vere Care Partnership Ltd,Home Care - Private Contractors Payment,1.87,0,NON COMMERCIAL SUPPLIER
05-09-2022,Adults & Health,De Vere Care Partnership Ltd,Home Care - Private Contractors Payment,151.2,0,NON COMMERCIAL SUPPLIER
05-09-2022,Adults & Health,De Vere Care Partnership Ltd,Home Care - Private Contractors Payment,65.52,0,NON COMMERCIAL SUPPLIER
05-09-2022,Adults & Health,De Vere Care Partnership Ltd,Home Care - Private Contractors Payment,13.25,0,NON COMMERCIAL SUPPLIER
05-09-2022,Adults & Health,De Vere Care Partnership Ltd,Home Care - Private Contractors Payment,556.92,0,NON COMMERCIAL SUPPLIER
05-09-2022,Adults & Health,De Vere Care Partnership Ltd,Home Care - Private Contractors Payment,103.9,0,NON COMMERCIAL SUPPLIER
05-09-2022,Adults & Health,De Vere Care Partnership Ltd,Home Care - Private Contractors Payment,163.8,0,NON COMMERCIAL SUPPLIER
05-09-2022,Adults & Health,De Vere Care Partnership Ltd,Home Care - Private Contractors Payment,98.28,0,NON COMMERCIAL SUPPLIER
05-09-2022,Adults & Health,De Vere Care Partnership Ltd,Home Care - Private Contractors Payment,19.88,0,NON COMMERCIAL SUPPLIER
05-09-2022,Adults & Health,De Vere Care Partnership Ltd,Home Care - Private Contractors Payment,100.8,0,NON COMMERCIAL SUPPLIER
05-09-2022,Adults & Health,De Vere Care Partnership Ltd,Home Care - Private Contractors Payment,385.05,0,NON COMMERCIAL SUPPLIER
05-09-2022,Adults & Health,De Vere Care Partnership Ltd,Home Care - Private Contractors Payment,171.86,0,NON COMMERCIAL SUPPLIER
05-09-2022,Adults & Health,De Vere Care Partnership Ltd,Home Care - Private Contractors Payment,50.4,0,NON COMMERCIAL SUPPLIER
05-09-2022,Adults & Health,De Vere Care Partnership Ltd,Home Care - Private Contractors Payment,262.08,0,NON COMMERCIAL SUPPLIER
05-09-2022,Adults & Health,De Vere Care Partnership Ltd,Home Care - Private Contractors Payment,988.37,0,NON COMMERCIAL SUPPLIER
05-09-2022,Adults & Health,De Vere Care Partnership Ltd,Home Care - Private Contractors Payment,171.22,0,NON COMMERCIAL SUPPLIER
05-09-2022,Adults & Health,De Vere Care Partnership Ltd,Home Care - Private Contractors Payment,8.92,0,NON COMMERCIAL SUPPLIER
05-09-2022,Adults & Health,De Vere Care Partnership Ltd,Home Care - Private Contractors Payment,69.49,0,NON COMMERCIAL SUPPLIER
05-09-2022,Adults & Health,De Vere Care Partnership Ltd,Home Care - Private Contractors Payment,132.91,0,NON COMMERCIAL SUPPLIER
05-09-2022,Adults & Health,De Vere Care Partnership Ltd,Home Care - Private Contractors Payment,54.72,0,NON COMMERCIAL SUPPLIER
05-09-2022,Adults & Health,De Vere Care Partnership Ltd,Home Care - Private Contractors Payment,57.1,0,NON COMMERCIAL SUPPLIER
05-09-2022,Adults & Health,De Vere Care Partnership Ltd,Home Care - Private Contractors Payment,107.14,0,NON COMMERCIAL SUPPLIER
05-09-2022,Adults & Health,De Vere Care Partnership Ltd,Home Care - Private Contractors Payment,332.64,0,NON COMMERCIAL SUPPLIER
05-09-2022,Adults & Health,De Vere Care Partnership Ltd,Home Care - Private Contractors Payment,177.84,0,NON COMMERCIAL SUPPLIER
05-09-2022,Adults & Health,De Vere Care Partnership Ltd,Home Care - Private Contractors Payment,385.05,0,NON COMMERCIAL SUPPLIER
05-09-2022,Adults & Health,De Vere Care Partnership Ltd,Home Care - Private Contractors Payment,294.84,0,NON COMMERCIAL SUPPLIER
05-09-2022,Adults & Health,De Vere Care Partnership Ltd,Home Care - Private Contractors Payment,182.16,0,NON COMMERCIAL SUPPLIER
05-09-2022,Adults & Health,De Vere Care Partnership Ltd,Home Care - Private Contractors Payment,50.4,0,NON COMMERCIAL SUPPLIER
05-09-2022,Adults & Health,De Vere Care Partnership Ltd,Home Care - Private Contractors Payment,19.88,0,NON COMMERCIAL SUPPLIER
05-09-2022,Adults & Health,De Vere Care Partnership Ltd,Home Care - Private Contractors Payment,71.06,0,NON COMMERCIAL SUPPLIER
05-09-2022,Adults & Health,De Vere Care Partnership Ltd,Home Care - Private Contractors Payment,153.5,0,NON COMMERCIAL SUPPLIER
05-09-2022,Adults & Health,De Vere Care Partnership Ltd,Home Care - Private Contractors Payment,13.25,0,NON COMMERCIAL SUPPLIER
05-09-2022,Adults & Health,De Vere Care Partnership Ltd,Home Care - Private Contractors Payment,98.28,0,NON COMMERCIAL SUPPLIER
05-09-2022,Adults & Health,De Vere Care Partnership Ltd,Home Care - Private Contractors Payment,589.68,0,NON COMMERCIAL SUPPLIER
05-09-2022,Adults & Health,De Vere Care Partnership Ltd,Home Care - Private Contractors Payment,121.46,0,NON COMMERCIAL SUPPLIER
05-09-2022,Adults & Health,De Vere Care Partnership Ltd,Home Care - Private Contractors Payment,126.36,0,NON COMMERCIAL SUPPLIER
05-09-2022,Adults & Health,De Vere Care Partnership Ltd,Home Care - Private Contractors Payment,142.13,0,NON COMMERCIAL SUPPLIER
05-09-2022,Adults & Health,De Vere Care Partnership Ltd,Home Care - Private Contractors Payment,201.6,0,NON COMMERCIAL SUPPLIER
05-09-2022,Adults & Health,De Vere Care Partnership Ltd,Home Care - Private Contractors Payment,131.04,0,NON COMMERCIAL SUPPLIER
05-09-2022,Adults & Health,De Vere Care Partnership Ltd,Home Care - Private Contractors Payment,13.25,0,NON COMMERCIAL SUPPLIER
05-09-2022,Adults & Health,De Vere Care Partnership Ltd,Home Care - Private Contractors Payment,636.48,0,NON COMMERCIAL SUPPLIER
05-09-2022,Adults & Health,De Vere Care Partnership Ltd,Home Care - Private Contractors Payment,171.86,0,NON COMMERCIAL SUPPLIER
05-09-2022,Adults & Health,De Vere Care Partnership Ltd,Home Care - Private Contractors Payment,50.4,0,NON COMMERCIAL SUPPLIER
05-09-2022,Adults & Health,De Vere Care Partnership Ltd,Home Care - Private Contractors Payment,163.8,0,NON COMMERCIAL SUPPLIER
05-09-2022,Adults & Health,De Vere Care Partnership Ltd,Home Care - Private Contractors Payment,100.8,0,NON COMMERCIAL SUPPLIER
05-09-2022,Adults & Health,De Vere Care Partnership Ltd,Daycare - Private Contractors Payment,18.72,0,NON COMMERCIAL SUPPLIER
05-09-2022,Adults & Health,De Vere Care Partnership Ltd,Home Care - Private Contractors Payment,229.32,0,NON COMMERCIAL SUPPLIER
05-09-2022,Adults & Health,De Vere Care Partnership Ltd,Home Care - Private Contractors Payment,262.08,0,NON COMMERCIAL SUPPLIER
05-09-2022,Adults & Health,De Vere Care Partnership Ltd,Home Care - Private Contractors Payment,566.28,0,NON COMMERCIAL SUPPLIER
05-09-2022,Adults & Health,De Vere Care Partnership Ltd,Daycare - Private Contractors Payment,84.24,0,NON COMMERCIAL SUPPLIER
05-09-2022,Adults & Health,De Vere Care Partnership Ltd,Home Care - Private Contractors Payment,171.86,0,NON COMMERCIAL SUPPLIER
05-09-2022,Adults & Health,De Vere Care Partnership Ltd,Home Care - Private Contractors Payment,31.82,0,NON COMMERCIAL SUPPLIER
05-09-2022,Adults & Health,De Vere Care Partnership Ltd,Daycare - Private Contractors Payment,18.72,0,NON COMMERCIAL SUPPLIER
05-09-2022,Adults & Health,De Vere Care Partnership Ltd,Home Care - Private Contractors Payment,556.92,0,NON COMMERCIAL SUPPLIER
05-09-2022,Adults & Health,De Vere Care Partnership Ltd,Home Care - Private Contractors Payment,100.8,0,NON COMMERCIAL SUPPLIER
05-09-2022,Adults & Health,De Vere Care Partnership Ltd,Home Care - Private Contractors Payment,229.32,0,NON COMMERCIAL SUPPLIER
05-09-2022,Adults & Health,De Vere Care Partnership Ltd,Home Care - Private Contractors Payment,120.53,0,NON COMMERCIAL SUPPLIER
05-09-2022,Adults & Health,De Vere Care Partnership Ltd,Daycare - Private Contractors Payment,18.72,0,NON COMMERCIAL SUPPLIER
05-09-2022,Adults & Health,De Vere Care Partnership Ltd,Home Care - Private Contractors Payment,383.76,0,NON COMMERCIAL SUPPLIER
05-09-2022,Adults & Health,De Vere Care Partnership Ltd,Daycare - Private Contractors Payment,56.16,0,NON COMMERCIAL SUPPLIER
05-09-2022,Adults & Health,De Vere Care Partnership Ltd,Home Care - Private Contractors Payment,168.48,0,NON COMMERCIAL SUPPLIER
05-09-2022,Adults & Health,De Vere Care Partnership Ltd,Home Care - Private Contractors Payment,28.08,0,NON COMMERCIAL SUPPLIER
05-09-2022,Adults & Health,De Vere Care Partnership Ltd,Home Care - Private Contractors Payment,37.44,0,NON COMMERCIAL SUPPLIER
05-09-2022,Adults & Health,De Vere Care Partnership Ltd,Home Care - Private Contractors Payment,294.84,0,NON COMMERCIAL SUPPLIER
05-09-2022,Adults & Health,De Vere Care Partnership Ltd,Home Care - Private Contractors Payment,151.2,0,NON COMMERCIAL SUPPLIER
05-09-2022,Adults & Health,De Vere Care Partnership Ltd,Home Care - Private Contractors Payment,65.52,0,NON COMMERCIAL SUPPLIER
05-09-2022,Adults & Health,De Vere Care Partnership Ltd,Home Care - Private Contractors Payment,171.86,0,NON COMMERCIAL SUPPLIER
05-09-2022,Adults & Health,De Vere Care Partnership Ltd,Home Care - Private Contractors Payment,232.12,0,NON COMMERCIAL SUPPLIER
05-09-2022,Adults & Health,De Vere Care Partnership Ltd,Home Care - Private Contractors Payment,171.86,0,NON COMMERCIAL SUPPLIER
05-09-2022,Adults & Health,De Vere Care Partnership Ltd,Home Care - Private Contractors Payment,56.16,0,NON COMMERCIAL SUPPLIER
05-09-2022,Adults & Health,De Vere Care Partnership Ltd,Home Care - Private Contractors Payment,524.16,0,NON COMMERCIAL SUPPLIER
05-09-2022,Adults & Health,De Vere Care Partnership Ltd,Home Care - Private Contractors Payment,131.04,0,NON COMMERCIAL SUPPLIER
05-09-2022,Adults & Health,De Vere Care Partnership Ltd,Home Care - Private Contractors Payment,201.6,0,NON COMMERCIAL SUPPLIER
05-09-2022,Adults & Health,De Vere Care Partnership Ltd,Home Care - Private Contractors Payment,56.16,0,NON COMMERCIAL SUPPLIER
05-09-2022,Adults & Health,De Vere Care Partnership Ltd,Home Care - Private Contractors Payment,50.4,0,NON COMMERCIAL SUPPLIER
05-09-2022,Adults & Health,De Vere Care Partnership Ltd,Home Care - Private Contractors Payment,10.94,0,NON COMMERCIAL SUPPLIER
05-09-2022,Adults & Health,De Vere Care Partnership Ltd,Home Care - Private Contractors Payment,71.06,0,NON COMMERCIAL SUPPLIER
05-09-2022,Adults & Health,De Vere Care Partnership Ltd,Home Care - Private Contractors Payment,100.8,0,NON COMMERCIAL SUPPLIER
05-09-2022,Adults & Health,Kaf Healthcare Training Ltd,Home Care - Private Contractors Payment,294.84,0,VENDOR
05-09-2022,Adults & Health,Kaf Healthcare Training Ltd,Home Care - Private Contractors Payment,294.84,0,VENDOR
05-09-2022,Adults & Health,Kaf Healthcare Training Ltd,Home Care - Private Contractors Payment,131.04,0,VENDOR
05-09-2022,Adults & Health,Kaf Healthcare Training Ltd,Home Care - Private Contractors Payment,131.04,0,VENDOR
05-09-2022,Adults & Health,Kaf Healthcare Training Ltd,Home Care - Private Contractors Payment,131.04,0,VENDOR
05-09-2022,Adults & Health,Kaf Healthcare Training Ltd,Home Care - Private Contractors Payment,294.84,0,VENDOR
05-09-2022,Adults & Health,Kaf Healthcare Training Ltd,Home Care - Private Contractors Payment,294.84,0,VENDOR
05-09-2022,Adults & Health,Kaf Healthcare Training Ltd,Home Care - Private Contractors Payment,131.04,0,VENDOR
05-09-2022,Adults & Health,Kaf Healthcare Training Ltd,Home Care - Private Contractors Payment,131.04,0,VENDOR
05-09-2022,Adults & Health,Kaf Healthcare Training Ltd,Home Care - Private Contractors Payment,131.04,0,VENDOR
05-09-2022,Adults & Health,Kaf Healthcare Training Ltd,Home Care - Private Contractors Payment,294.84,0,VENDOR
05-09-2022,Adults & Health,Kaf Healthcare Training Ltd,Home Care - Private Contractors Payment,294.84,0,VENDOR
05-09-2022,Adults & Health,Kaf Healthcare Training Ltd,Home Care - Private Contractors Payment,131.04,0,VENDOR
05-09-2022,Adults & Health,Kaf Healthcare Training Ltd,Home Care - Private Contractors Payment,294.84,0,VENDOR
05-09-2022,Adults & Health,Kaf Healthcare Training Ltd,Home Care - Private Contractors Payment,294.84,0,VENDOR
05-09-2022,Adults & Health,Kaf Healthcare Training Ltd,Home Care - Private Contractors Payment,131.04,0,VENDOR
05-09-2022,RMS,Travis Perkins Trading Company Ltd,Building Alterations And Materials,26.6,0,COMMERCIAL SUPPLIER
05-09-2022,RMS,Travis Perkins Trading Company Ltd,Building Alterations And Materials,94.2,0,COMMERCIAL SUPPLIER
05-09-2022,RMS,Travis Perkins Trading Company Ltd,Building Alterations And Materials,55,0,COMMERCIAL SUPPLIER
05-09-2022,RMS,Travis Perkins Trading Company Ltd,Building Alterations And Materials,55,0,COMMERCIAL SUPPLIER
05-09-2022,RMS,Travis Perkins Trading Company Ltd,Building Alterations And Materials,3515.5,0,COMMERCIAL SUPPLIER
05-09-2022,RMS,Travis Perkins Trading Company Ltd,Building Alterations And Materials,2464,0,COMMERCIAL SUPPLIER
05-09-2022,RMS,Travis Perkins Trading Company Ltd,Building Alterations And Materials,54,0,COMMERCIAL SUPPLIER
05-09-2022,RMS,Travis Perkins Trading Company Ltd,Building Alterations And Materials,94,0,COMMERCIAL SUPPLIER
05-09-2022,RMS,Travis Perkins Trading Company Ltd,Building Alterations And Materials,110,0,COMMERCIAL SUPPLIER
05-09-2022,RMS,Travis Perkins Trading Company Ltd,Building Alterations And Materials,334.72,0,COMMERCIAL SUPPLIER
05-09-2022,RMS,Travis Perkins Trading Company Ltd,Building Alterations And Materials,254.36,0,COMMERCIAL SUPPLIER
05-09-2022,RMS,Travis Perkins Trading Company Ltd,Building Alterations And Materials,444.9,0,COMMERCIAL SUPPLIER
05-09-2022,RMS,Travis Perkins Trading Company Ltd,Building Alterations And Materials,1742.4,0,COMMERCIAL SUPPLIER
05-09-2022,RMS,Travis Perkins Trading Company Ltd,Building Alterations And Materials,60.6,0,COMMERCIAL SUPPLIER
05-09-2022,RMS,Travis Perkins Trading Company Ltd,Building Alterations And Materials,48,0,COMMERCIAL SUPPLIER
05-09-2022,RMS,Travis Perkins Trading Company Ltd,Building Alterations And Materials,1047.6,0,COMMERCIAL SUPPLIER
05-09-2022,RMS,Travis Perkins Trading Company Ltd,Building Alterations And Materials,786.12,0,COMMERCIAL SUPPLIER
05-09-2022,RMS,Travis Perkins Trading Company Ltd,Building Alterations And Materials,2355,0,COMMERCIAL SUPPLIER
05-09-2022,RMS,Travis Perkins Trading Company Ltd,Building Alterations And Materials,1179.18,0,COMMERCIAL SUPPLIER
05-09-2022,RMS,Travis Perkins Trading Company Ltd,Building Alterations And Materials,4625.4,0,COMMERCIAL SUPPLIER
05-09-2022,RMS,Travis Perkins Trading Company Ltd,Building Alterations And Materials,225.3,0,COMMERCIAL SUPPLIER
05-09-2022,RMS,Travis Perkins Trading Company Ltd,Building Alterations And Materials,8547,0,COMMERCIAL SUPPLIER
05-09-2022,RMS,Travis Perkins Trading Company Ltd,Building Alterations And Materials,1342.8,0,COMMERCIAL SUPPLIER
05-09-2022,oneSource - Non Shared,County Shutters & Doors Ltd,Security Services (Excluding Premises),914.2,0,COMMERCIAL SUPPLIER
05-09-2022,Adults & Health,De Vere Care Partnership Ltd,Home Care - Private Contractors Payment,693.06,0,NON COMMERCIAL SUPPLIER
05-09-2022,Adults & Health,De Vere Care Partnership Ltd,Home Care - Private Contractors Payment,16.41,0,NON COMMERCIAL SUPPLIER
05-09-2022,Adults & Health,De Vere Care Partnership Ltd,Home Care - Private Contractors Payment,72,0,NON COMMERCIAL SUPPLIER
05-09-2022,Adults & Health,De Vere Care Partnership Ltd,Home Care - Private Contractors Payment,5.89,0,NON COMMERCIAL SUPPLIER
05-09-2022,Adults & Health,De Vere Care Partnership Ltd,Home Care - Private Contractors Payment,142.13,0,NON COMMERCIAL SUPPLIER
05-09-2022,Adults & Health,De Vere Care Partnership Ltd,Home Care - Private Contractors Payment,50.4,0,NON COMMERCIAL SUPPLIER
05-09-2022,Adults & Health,De Vere Care Partnership Ltd,Home Care - Private Contractors Payment,131.04,0,NON COMMERCIAL SUPPLIER
05-09-2022,Adults & Health,De Vere Care Partnership Ltd,Home Care - Private Contractors Payment,100.8,0,NON COMMERCIAL SUPPLIER
05-09-2022,Adults & Health,De Vere Care Partnership Ltd,Home Care - Private Contractors Payment,229.32,0,NON COMMERCIAL SUPPLIER
05-09-2022,Adults & Health,De Vere Care Partnership Ltd,Home Care - Private Contractors Payment,50.4,0,NON COMMERCIAL SUPPLIER
05-09-2022,Adults & Health,De Vere Care Partnership Ltd,Home Care - Private Contractors Payment,13.25,0,NON COMMERCIAL SUPPLIER
05-09-2022,Adults & Health,De Vere Care Partnership Ltd,Home Care - Private Contractors Payment,71.06,0,NON COMMERCIAL SUPPLIER
05-09-2022,Adults & Health,De Vere Care Partnership Ltd,Home Care - Private Contractors Payment,294.84,0,NON COMMERCIAL SUPPLIER
05-09-2022,Adults & Health,De Vere Care Partnership Ltd,Home Care - Private Contractors Payment,524.16,0,NON COMMERCIAL SUPPLIER
05-09-2022,Adults & Health,De Vere Care Partnership Ltd,Home Care - Private Contractors Payment,71.06,0,NON COMMERCIAL SUPPLIER
05-09-2022,Adults & Health,De Vere Care Partnership Ltd,Home Care - Private Contractors Payment,126.36,0,NON COMMERCIAL SUPPLIER
05-09-2022,Adults & Health,De Vere Care Partnership Ltd,Home Care - Private Contractors Payment,10.94,0,NON COMMERCIAL SUPPLIER
05-09-2022,Adults & Health,De Vere Care Partnership Ltd,Home Care - Private Contractors Payment,556.92,0,NON COMMERCIAL SUPPLIER
05-09-2022,Adults & Health,De Vere Care Partnership Ltd,Daycare - Private Contractors Payment,56.16,0,NON COMMERCIAL SUPPLIER
05-09-2022,Adults & Health,De Vere Care Partnership Ltd,Home Care - Private Contractors Payment,13.25,0,NON COMMERCIAL SUPPLIER
05-09-2022,Adults & Health,De Vere Care Partnership Ltd,Home Care - Private Contractors Payment,210.6,0,NON COMMERCIAL SUPPLIER
05-09-2022,Adults & Health,De Vere Care Partnership Ltd,Home Care - Private Contractors Payment,589.68,0,NON COMMERCIAL SUPPLIER
05-09-2022,Adults & Health,De Vere Care Partnership Ltd,Home Care - Private Contractors Payment,500.46,0,NON COMMERCIAL SUPPLIER
05-09-2022,Adults & Health,De Vere Care Partnership Ltd,Daycare - Private Contractors Payment,56.16,0,NON COMMERCIAL SUPPLIER
05-09-2022,Adults & Health,De Vere Care Partnership Ltd,Home Care - Private Contractors Payment,199.37,0,NON COMMERCIAL SUPPLIER
05-09-2022,Adults & Health,De Vere Care Partnership Ltd,Home Care - Private Contractors Payment,131.04,0,NON COMMERCIAL SUPPLIER
05-09-2022,Adults & Health,De Vere Care Partnership Ltd,Home Care - Private Contractors Payment,171.86,0,NON COMMERCIAL SUPPLIER
05-09-2022,Adults & Health,De Vere Care Partnership Ltd,Home Care - Private Contractors Payment,71.06,0,NON COMMERCIAL SUPPLIER
05-09-2022,Adults & Health,De Vere Care Partnership Ltd,Home Care - Private Contractors Payment,163.8,0,NON COMMERCIAL SUPPLIER
05-09-2022,Adults & Health,De Vere Care Partnership Ltd,Home Care - Private Contractors Payment,151.2,0,NON COMMERCIAL SUPPLIER
05-09-2022,Adults & Health,De Vere Care Partnership Ltd,Home Care - Private Contractors Payment,19.88,0,NON COMMERCIAL SUPPLIER
05-09-2022,Adults & Health,De Vere Care Partnership Ltd,Home Care - Private Contractors Payment,50.4,0,NON COMMERCIAL SUPPLIER
05-09-2022,Adults & Health,De Vere Care Partnership Ltd,Daycare - Private Contractors Payment,37.44,0,NON COMMERCIAL SUPPLIER
05-09-2022,Adults & Health,De Vere Care Partnership Ltd,Home Care - Private Contractors Payment,144.37,0,NON COMMERCIAL SUPPLIER
05-09-2022,Adults & Health,De Vere Care Partnership Ltd,Home Care - Private Contractors Payment,28.08,0,NON COMMERCIAL SUPPLIER
05-09-2022,Adults & Health,De Vere Care Partnership Ltd,Home Care - Private Contractors Payment,179.94,0,NON COMMERCIAL SUPPLIER
05-09-2022,Adults & Health,De Vere Care Partnership Ltd,Home Care - Private Contractors Payment,52.69,0,NON COMMERCIAL SUPPLIER
05-09-2022,Adults & Health,De Vere Care Partnership Ltd,Home Care - Private Contractors Payment,168.76,0,NON COMMERCIAL SUPPLIER
05-09-2022,Adults & Health,De Vere Care Partnership Ltd,Home Care - Private Contractors Payment,137.66,0,NON COMMERCIAL SUPPLIER
05-09-2022,Adults & Health,De Vere Care Partnership Ltd,Home Care - Private Contractors Payment,292.03,0,NON COMMERCIAL SUPPLIER
05-09-2022,Adults & Health,De Vere Care Partnership Ltd,Home Care - Private Contractors Payment,283.32,0,NON COMMERCIAL SUPPLIER
05-09-2022,Adults & Health,De Vere Care Partnership Ltd,Home Care - Private Contractors Payment,81.43,0,NON COMMERCIAL SUPPLIER
05-09-2022,Adults & Health,De Vere Care Partnership Ltd,Home Care - Private Contractors Payment,401.69,0,NON COMMERCIAL SUPPLIER
05-09-2022,Adults & Health,De Vere Care Partnership Ltd,Home Care - Private Contractors Payment,252.72,0,NON COMMERCIAL SUPPLIER
05-09-2022,Adults & Health,De Vere Care Partnership Ltd,Home Care - Private Contractors Payment,56.16,0,NON COMMERCIAL SUPPLIER
05-09-2022,Adults & Health,De Vere Care Partnership Ltd,Home Care - Private Contractors Payment,28.08,0,NON COMMERCIAL SUPPLIER
05-09-2022,Adults & Health,De Vere Care Partnership Ltd,Home Care - Private Contractors Payment,229.29,0,NON COMMERCIAL SUPPLIER
05-09-2022,Adults & Health,De Vere Care Partnership Ltd,Home Care - Private Contractors Payment,90.29,0,NON COMMERCIAL SUPPLIER
05-09-2022,Adults & Health,De Vere Care Partnership Ltd,Home Care - Private Contractors Payment,26.5,0,NON COMMERCIAL SUPPLIER
05-09-2022,Adults & Health,De Vere Care Partnership Ltd,Home Care - Private Contractors Payment,50.4,0,NON COMMERCIAL SUPPLIER
05-09-2022,Adults & Health,De Vere Care Partnership Ltd,Home Care - Private Contractors Payment,171.86,0,NON COMMERCIAL SUPPLIER
05-09-2022,Adults & Health,De Vere Care Partnership Ltd,Home Care - Private Contractors Payment,121.46,0,NON COMMERCIAL SUPPLIER
05-09-2022,Adults & Health,De Vere Care Partnership Ltd,Home Care - Private Contractors Payment,556.92,0,NON COMMERCIAL SUPPLIER
05-09-2022,Adults & Health,De Vere Care Partnership Ltd,Daycare - Private Contractors Payment,18.72,0,NON COMMERCIAL SUPPLIER
05-09-2022,Adults & Health,De Vere Care Partnership Ltd,Home Care - Private Contractors Payment,171.86,0,NON COMMERCIAL SUPPLIER
05-09-2022,Adults & Health,De Vere Care Partnership Ltd,Home Care - Private Contractors Payment,65.52,0,NON COMMERCIAL SUPPLIER
05-09-2022,Adults & Health,De Vere Care Partnership Ltd,Home Care - Private Contractors Payment,131.04,0,NON COMMERCIAL SUPPLIER
05-09-2022,Adults & Health,De Vere Care Partnership Ltd,Home Care - Private Contractors Payment,19.88,0,NON COMMERCIAL SUPPLIER
05-09-2022,Adults & Health,De Vere Care Partnership Ltd,Home Care - Private Contractors Payment,42.12,0,NON COMMERCIAL SUPPLIER
05-09-2022,Adults & Health,De Vere Care Partnership Ltd,Home Care - Private Contractors Payment,262.08,0,NON COMMERCIAL SUPPLIER
05-09-2022,Adults & Health,De Vere Care Partnership Ltd,Home Care - Private Contractors Payment,13.25,0,NON COMMERCIAL SUPPLIER
05-09-2022,Adults & Health,De Vere Care Partnership Ltd,Home Care - Private Contractors Payment,171.86,0,NON COMMERCIAL SUPPLIER
05-09-2022,Adults & Health,De Vere Care Partnership Ltd,Home Care - Private Contractors Payment,50.4,0,NON COMMERCIAL SUPPLIER
05-09-2022,Adults & Health,De Vere Care Partnership Ltd,Home Care - Private Contractors Payment,163.8,0,NON COMMERCIAL SUPPLIER
05-09-2022,Adults & Health,De Vere Care Partnership Ltd,Home Care - Private Contractors Payment,131.04,0,NON COMMERCIAL SUPPLIER
05-09-2022,Adults & Health,De Vere Care Partnership Ltd,Home Care - Private Contractors Payment,71.06,0,NON COMMERCIAL SUPPLIER
05-09-2022,Adults & Health,De Vere Care Partnership Ltd,Home Care - Private Contractors Payment,98.28,0,NON COMMERCIAL SUPPLIER
05-09-2022,Adults & Health,De Vere Care Partnership Ltd,Home Care - Private Contractors Payment,151.2,0,NON COMMERCIAL SUPPLIER
05-09-2022,Adults & Health,De Vere Care Partnership Ltd,Home Care - Private Contractors Payment,112.32,0,NON COMMERCIAL SUPPLIER
05-09-2022,Adults & Health,De Vere Care Partnership Ltd,Home Care - Private Contractors Payment,229.32,0,NON COMMERCIAL SUPPLIER
05-09-2022,Adults & Health,De Vere Care Partnership Ltd,Home Care - Private Contractors Payment,823.68,0,NON COMMERCIAL SUPPLIER
05-09-2022,Adults & Health,De Vere Care Partnership Ltd,Home Care - Private Contractors Payment,268.99,0,NON COMMERCIAL SUPPLIER
05-09-2022,Adults & Health,De Vere Care Partnership Ltd,Home Care - Private Contractors Payment,272.38,0,NON COMMERCIAL SUPPLIER
05-09-2022,Adults & Health,De Vere Care Partnership Ltd,Home Care - Private Contractors Payment,556.92,0,NON COMMERCIAL SUPPLIER
05-09-2022,Adults & Health,De Vere Care Partnership Ltd,Home Care - Private Contractors Payment,167.47,0,NON COMMERCIAL SUPPLIER
05-09-2022,Adults & Health,De Vere Care Partnership Ltd,Home Care - Private Contractors Payment,589.68,0,NON COMMERCIAL SUPPLIER
05-09-2022,Adults & Health,De Vere Care Partnership Ltd,Home Care - Private Contractors Payment,110.88,0,NON COMMERCIAL SUPPLIER
05-09-2022,Adults & Health,De Vere Care Partnership Ltd,Home Care - Private Contractors Payment,281.59,0,NON COMMERCIAL SUPPLIER
05-09-2022,Adults & Health,De Vere Care Partnership Ltd,Home Care - Private Contractors Payment,13.25,0,NON COMMERCIAL SUPPLIER
05-09-2022,Adults & Health,De Vere Care Partnership Ltd,Home Care - Private Contractors Payment,397.96,0,NON COMMERCIAL SUPPLIER
05-09-2022,Adults & Health,De Vere Care Partnership Ltd,Home Care - Private Contractors Payment,179.94,0,NON COMMERCIAL SUPPLIER
05-09-2022,Adults & Health,De Vere Care Partnership Ltd,Home Care - Private Contractors Payment,322.92,0,NON COMMERCIAL SUPPLIER
05-09-2022,Adults & Health,De Vere Care Partnership Ltd,Home Care - Private Contractors Payment,52.69,0,NON COMMERCIAL SUPPLIER
05-09-2022,Adults & Health,De Vere Care Partnership Ltd,Home Care - Private Contractors Payment,19.88,0,NON COMMERCIAL SUPPLIER
05-09-2022,Adults & Health,De Vere Care Partnership Ltd,Home Care - Private Contractors Payment,74.88,0,NON COMMERCIAL SUPPLIER
05-09-2022,Adults & Health,De Vere Care Partnership Ltd,Home Care - Private Contractors Payment,1185.87,0,NON COMMERCIAL SUPPLIER
05-09-2022,Adults & Health,De Vere Care Partnership Ltd,Home Care - Private Contractors Payment,124.49,0,NON COMMERCIAL SUPPLIER
05-09-2022,Adults & Health,De Vere Care Partnership Ltd,Home Care - Private Contractors Payment,262.08,0,NON COMMERCIAL SUPPLIER
05-09-2022,Adults & Health,De Vere Care Partnership Ltd,Home Care - Private Contractors Payment,294.84,0,NON COMMERCIAL SUPPLIER
05-09-2022,Adults & Health,De Vere Care Partnership Ltd,Home Care - Private Contractors Payment,104.83,0,NON COMMERCIAL SUPPLIER
05-09-2022,Adults & Health,De Vere Care Partnership Ltd,Home Care - Private Contractors Payment,404.23,0,NON COMMERCIAL SUPPLIER
05-09-2022,Adults & Health,De Vere Care Partnership Ltd,Home Care - Private Contractors Payment,401.69,0,NON COMMERCIAL SUPPLIER
05-09-2022,Adults & Health,De Vere Care Partnership Ltd,Daycare - Private Contractors Payment,40.02,0,NON COMMERCIAL SUPPLIER
05-09-2022,Adults & Health,De Vere Care Partnership Ltd,Home Care - Private Contractors Payment,292.02,0,NON COMMERCIAL SUPPLIER
05-09-2022,Adults & Health,De Vere Care Partnership Ltd,Home Care - Private Contractors Payment,159.12,0,NON COMMERCIAL SUPPLIER
05-09-2022,Adults & Health,De Vere Care Partnership Ltd,Home Care - Private Contractors Payment,401.69,0,NON COMMERCIAL SUPPLIER
05-09-2022,Adults & Health,De Vere Care Partnership Ltd,Daycare - Private Contractors Payment,18.72,0,NON COMMERCIAL SUPPLIER
05-09-2022,Adults & Health,De Vere Care Partnership Ltd,Home Care - Private Contractors Payment,201.6,0,NON COMMERCIAL SUPPLIER
05-09-2022,Adults & Health,De Vere Care Partnership Ltd,Home Care - Private Contractors Payment,19.88,0,NON COMMERCIAL SUPPLIER
05-09-2022,Adults & Health,De Vere Care Partnership Ltd,Home Care - Private Contractors Payment,121.46,0,NON COMMERCIAL SUPPLIER
05-09-2022,Adults & Health,De Vere Care Partnership Ltd,Home Care - Private Contractors Payment,116.06,0,NON COMMERCIAL SUPPLIER
05-09-2022,Adults & Health,De Vere Care Partnership Ltd,Home Care - Private Contractors Payment,18.72,0,NON COMMERCIAL SUPPLIER
05-09-2022,Adults & Health,De Vere Care Partnership Ltd,Home Care - Private Contractors Payment,171.86,0,NON COMMERCIAL SUPPLIER
05-09-2022,Adults & Health,De Vere Care Partnership Ltd,Home Care - Private Contractors Payment,100.8,0,NON COMMERCIAL SUPPLIER
05-09-2022,Adults & Health,De Vere Care Partnership Ltd,Home Care - Private Contractors Payment,724.46,0,NON COMMERCIAL SUPPLIER
05-09-2022,Adults & Health,De Vere Care Partnership Ltd,Home Care - Private Contractors Payment,171.86,0,NON COMMERCIAL SUPPLIER
05-09-2022,Adults & Health,De Vere Care Partnership Ltd,Daycare - Private Contractors Payment,56.16,0,NON COMMERCIAL SUPPLIER
05-09-2022,Adults & Health,De Vere Care Partnership Ltd,Home Care - Private Contractors Payment,19.88,0,NON COMMERCIAL SUPPLIER
05-09-2022,Adults & Health,De Vere Care Partnership Ltd,Home Care - Private Contractors Payment,455.83,0,NON COMMERCIAL SUPPLIER
05-09-2022,Adults & Health,De Vere Care Partnership Ltd,Home Care - Private Contractors Payment,360.36,0,NON COMMERCIAL SUPPLIER
05-09-2022,Adults & Health,De Vere Care Partnership Ltd,Home Care - Private Contractors Payment,243.36,0,NON COMMERCIAL SUPPLIER
05-09-2022,Adults & Health,De Vere Care Partnership Ltd,Home Care - Private Contractors Payment,50.4,0,NON COMMERCIAL SUPPLIER
05-09-2022,Adults & Health,De Vere Care Partnership Ltd,Home Care - Private Contractors Payment,294.84,0,NON COMMERCIAL SUPPLIER
05-09-2022,Adults & Health,De Vere Care Partnership Ltd,Home Care - Private Contractors Payment,160.99,0,NON COMMERCIAL SUPPLIER
05-09-2022,Adults & Health,De Vere Care Partnership Ltd,Home Care - Private Contractors Payment,165.67,0,NON COMMERCIAL SUPPLIER
05-09-2022,Adults & Health,De Vere Care Partnership Ltd,Home Care - Private Contractors Payment,54.72,0,NON COMMERCIAL SUPPLIER
05-09-2022,Adults & Health,De Vere Care Partnership Ltd,Home Care - Private Contractors Payment,35.13,0,NON COMMERCIAL SUPPLIER
05-09-2022,Adults & Health,De Vere Care Partnership Ltd,Daycare - Private Contractors Payment,37.44,0,NON COMMERCIAL SUPPLIER
05-09-2022,Adults & Health,De Vere Care Partnership Ltd,Home Care - Private Contractors Payment,84.67,0,NON COMMERCIAL SUPPLIER
05-09-2022,Adults & Health,De Vere Care Partnership Ltd,Home Care - Private Contractors Payment,92.66,0,NON COMMERCIAL SUPPLIER
05-09-2022,Adults & Health,De Vere Care Partnership Ltd,Home Care - Private Contractors Payment,360.36,0,NON COMMERCIAL SUPPLIER
05-09-2022,Adults & Health,De Vere Care Partnership Ltd,Home Care - Private Contractors Payment,221.76,0,NON COMMERCIAL SUPPLIER
05-09-2022,Adults & Health,De Vere Care Partnership Ltd,Home Care - Private Contractors Payment,65.52,0,NON COMMERCIAL SUPPLIER
05-09-2022,Adults & Health,De Vere Care Partnership Ltd,Home Care - Private Contractors Payment,294.84,0,NON COMMERCIAL SUPPLIER
05-09-2022,Adults & Health,De Vere Care Partnership Ltd,Home Care - Private Contractors Payment,50.4,0,NON COMMERCIAL SUPPLIER
05-09-2022,Adults & Health,De Vere Care Partnership Ltd,Home Care - Private Contractors Payment,26.5,0,NON COMMERCIAL SUPPLIER
05-09-2022,Adults & Health,De Vere Care Partnership Ltd,Home Care - Private Contractors Payment,64.8,0,NON COMMERCIAL SUPPLIER
05-09-2022,Adults & Health,De Vere Care Partnership Ltd,Home Care - Private Contractors Payment,823.68,0,NON COMMERCIAL SUPPLIER
05-09-2022,Adults & Health,De Vere Care Partnership Ltd,Home Care - Private Contractors Payment,19.88,0,NON COMMERCIAL SUPPLIER
05-09-2022,Adults & Health,De Vere Care Partnership Ltd,Home Care - Private Contractors Payment,63.08,0,NON COMMERCIAL SUPPLIER
05-09-2022,Adults & Health,De Vere Care Partnership Ltd,Home Care - Private Contractors Payment,524.16,0,NON COMMERCIAL SUPPLIER
05-09-2022,Adults & Health,De Vere Care Partnership Ltd,Home Care - Private Contractors Payment,121.46,0,NON COMMERCIAL SUPPLIER
05-09-2022,Adults & Health,De Vere Care Partnership Ltd,Home Care - Private Contractors Payment,171.86,0,NON COMMERCIAL SUPPLIER
05-09-2022,Adults & Health,De Vere Care Partnership Ltd,Home Care - Private Contractors Payment,290.16,0,NON COMMERCIAL SUPPLIER
05-09-2022,Adults & Health,De Vere Care Partnership Ltd,Home Care - Private Contractors Payment,360.36,0,NON COMMERCIAL SUPPLIER
05-09-2022,Adults & Health,De Vere Care Partnership Ltd,Home Care - Private Contractors Payment,171.86,0,NON COMMERCIAL SUPPLIER
05-09-2022,Adults & Health,De Vere Care Partnership Ltd,Home Care - Private Contractors Payment,556.92,0,NON COMMERCIAL SUPPLIER
05-09-2022,Adults & Health,De Vere Care Partnership Ltd,Home Care - Private Contractors Payment,121.69,0,NON COMMERCIAL SUPPLIER
05-09-2022,Adults & Health,De Vere Care Partnership Ltd,Home Care - Private Contractors Payment,171.86,0,NON COMMERCIAL SUPPLIER
05-09-2022,Adults & Health,De Vere Care Partnership Ltd,Home Care - Private Contractors Payment,71.14,0,NON COMMERCIAL SUPPLIER
05-09-2022,Adults & Health,De Vere Care Partnership Ltd,Home Care - Private Contractors Payment,98.28,0,NON COMMERCIAL SUPPLIER
05-09-2022,Adults & Health,De Vere Care Partnership Ltd,Home Care - Private Contractors Payment,71.06,0,NON COMMERCIAL SUPPLIER
05-09-2022,Adults & Health,De Vere Care Partnership Ltd,Home Care - Private Contractors Payment,500.46,0,NON COMMERCIAL SUPPLIER
05-09-2022,Adults & Health,De Vere Care Partnership Ltd,Home Care - Private Contractors Payment,70.2,0,NON COMMERCIAL SUPPLIER
05-09-2022,Adults & Health,De Vere Care Partnership Ltd,Home Care - Private Contractors Payment,294.84,0,NON COMMERCIAL SUPPLIER
05-09-2022,Adults & Health,De Vere Care Partnership Ltd,Home Care - Private Contractors Payment,262.08,0,NON COMMERCIAL SUPPLIER
05-09-2022,Adults & Health,De Vere Care Partnership Ltd,Home Care - Private Contractors Payment,294.84,0,NON COMMERCIAL SUPPLIER
05-09-2022,Adults & Health,De Vere Care Partnership Ltd,Home Care - Private Contractors Payment,169.92,0,NON COMMERCIAL SUPPLIER
05-09-2022,Adults & Health,De Vere Care Partnership Ltd,Home Care - Private Contractors Payment,229.32,0,NON COMMERCIAL SUPPLIER
05-09-2022,Adults & Health,De Vere Care Partnership Ltd,Home Care - Private Contractors Payment,26.5,0,NON COMMERCIAL SUPPLIER
05-09-2022,Adults & Health,De Vere Care Partnership Ltd,Home Care - Private Contractors Payment,151.2,0,NON COMMERCIAL SUPPLIER
05-09-2022,Adults & Health,De Vere Care Partnership Ltd,Home Care - Private Contractors Payment,100.8,0,NON COMMERCIAL SUPPLIER
05-09-2022,Adults & Health,De Vere Care Partnership Ltd,Home Care - Private Contractors Payment,19.88,0,NON COMMERCIAL SUPPLIER
05-09-2022,Adults & Health,De Vere Care Partnership Ltd,Home Care - Private Contractors Payment,11.52,0,NON COMMERCIAL SUPPLIER
05-09-2022,Adults & Health,De Vere Care Partnership Ltd,Daycare - Private Contractors Payment,37.44,0,NON COMMERCIAL SUPPLIER
05-09-2022,Adults & Health,De Vere Care Partnership Ltd,Home Care - Private Contractors Payment,71.06,0,NON COMMERCIAL SUPPLIER
05-09-2022,Adults & Health,De Vere Care Partnership Ltd,Home Care - Private Contractors Payment,56.16,0,NON COMMERCIAL SUPPLIER
05-09-2022,Adults & Health,De Vere Care Partnership Ltd,Home Care - Private Contractors Payment,97.34,0,NON COMMERCIAL SUPPLIER
05-09-2022,Adults & Health,De Vere Care Partnership Ltd,Home Care - Private Contractors Payment,385.05,0,NON COMMERCIAL SUPPLIER
05-09-2022,Adults & Health,De Vere Care Partnership Ltd,Home Care - Private Contractors Payment,50.4,0,NON COMMERCIAL SUPPLIER
05-09-2022,Adults & Health,De Vere Care Partnership Ltd,Home Care - Private Contractors Payment,46.8,0,NON COMMERCIAL SUPPLIER
05-09-2022,Adults & Health,De Vere Care Partnership Ltd,Home Care - Private Contractors Payment,121.46,0,NON COMMERCIAL SUPPLIER
05-09-2022,Adults & Health,De Vere Care Partnership Ltd,Home Care - Private Contractors Payment,19.88,0,NON COMMERCIAL SUPPLIER
05-09-2022,Adults & Health,De Vere Care Partnership Ltd,Home Care - Private Contractors Payment,294.84,0,NON COMMERCIAL SUPPLIER
05-09-2022,Adults & Health,De Vere Care Partnership Ltd,Home Care - Private Contractors Payment,425.88,0,NON COMMERCIAL SUPPLIER
05-09-2022,Adults & Health,De Vere Care Partnership Ltd,Home Care - Private Contractors Payment,524.16,0,NON COMMERCIAL SUPPLIER
05-09-2022,Adults & Health,De Vere Care Partnership Ltd,Home Care - Private Contractors Payment,100.8,0,NON COMMERCIAL SUPPLIER
05-09-2022,Adults & Health,De Vere Care Partnership Ltd,Home Care - Private Contractors Payment,19.88,0,NON COMMERCIAL SUPPLIER
05-09-2022,Adults & Health,De Vere Care Partnership Ltd,Home Care - Private Contractors Payment,50.4,0,NON COMMERCIAL SUPPLIER
05-09-2022,Adults & Health,De Vere Care Partnership Ltd,Home Care - Private Contractors Payment,71.06,0,NON COMMERCIAL SUPPLIER
05-09-2022,Adults & Health,De Vere Care Partnership Ltd,Home Care - Private Contractors Payment,26.5,0,NON COMMERCIAL SUPPLIER
05-09-2022,Adults & Health,De Vere Care Partnership Ltd,Home Care - Private Contractors Payment,64.8,0,NON COMMERCIAL SUPPLIER
05-09-2022,Adults & Health,De Vere Care Partnership Ltd,Home Care - Private Contractors Payment,19.88,0,NON COMMERCIAL SUPPLIER
05-09-2022,Adults & Health,De Vere Care Partnership Ltd,Home Care - Private Contractors Payment,98.28,0,NON COMMERCIAL SUPPLIER
05-09-2022,Adults & Health,De Vere Care Partnership Ltd,Home Care - Private Contractors Payment,294.84,0,NON COMMERCIAL SUPPLIER
05-09-2022,Adults & Health,De Vere Care Partnership Ltd,Home Care - Private Contractors Payment,196.56,0,NON COMMERCIAL SUPPLIER
05-09-2022,Adults & Health,De Vere Care Partnership Ltd,Home Care - Private Contractors Payment,189.23,0,NON COMMERCIAL SUPPLIER
05-09-2022,Adults & Health,De Vere Care Partnership Ltd,Home Care - Private Contractors Payment,98.28,0,NON COMMERCIAL SUPPLIER
05-09-2022,Adults & Health,De Vere Care Partnership Ltd,Home Care - Private Contractors Payment,71.06,0,NON COMMERCIAL SUPPLIER
05-09-2022,Adults & Health,De Vere Care Partnership Ltd,Home Care - Private Contractors Payment,201.6,0,NON COMMERCIAL SUPPLIER
05-09-2022,Adults & Health,De Vere Care Partnership Ltd,Home Care - Private Contractors Payment,98.28,0,NON COMMERCIAL SUPPLIER
05-09-2022,Adults & Health,De Vere Care Partnership Ltd,Home Care - Private Contractors Payment,294.84,0,NON COMMERCIAL SUPPLIER
05-09-2022,Adults & Health,De Vere Care Partnership Ltd,Home Care - Private Contractors Payment,131.04,0,NON COMMERCIAL SUPPLIER
05-09-2022,Adults & Health,De Vere Care Partnership Ltd,Daycare - Private Contractors Payment,18.72,0,NON COMMERCIAL SUPPLIER
05-09-2022,Adults & Health,De Vere Care Partnership Ltd,Home Care - Private Contractors Payment,71.06,0,NON COMMERCIAL SUPPLIER
05-09-2022,Adults & Health,De Vere Care Partnership Ltd,Home Care - Private Contractors Payment,13.25,0,NON COMMERCIAL SUPPLIER
05-09-2022,Adults & Health,De Vere Care Partnership Ltd,Home Care - Private Contractors Payment,196.56,0,NON COMMERCIAL SUPPLIER
05-09-2022,Adults & Health,De Vere Care Partnership Ltd,Home Care - Private Contractors Payment,294.84,0,NON COMMERCIAL SUPPLIER
05-09-2022,Adults & Health,De Vere Care Partnership Ltd,Home Care - Private Contractors Payment,71.06,0,NON COMMERCIAL SUPPLIER
05-09-2022,Adults & Health,De Vere Care Partnership Ltd,Home Care - Private Contractors Payment,238.68,0,NON COMMERCIAL SUPPLIER
05-09-2022,Adults & Health,De Vere Care Partnership Ltd,Home Care - Private Contractors Payment,50.4,0,NON COMMERCIAL SUPPLIER
05-09-2022,Adults & Health,De Vere Care Partnership Ltd,Home Care - Private Contractors Payment,100.8,0,NON COMMERCIAL SUPPLIER
05-09-2022,Adults & Health,De Vere Care Partnership Ltd,Home Care - Private Contractors Payment,13.25,0,NON COMMERCIAL SUPPLIER
05-09-2022,Adults & Health,De Vere Care Partnership Ltd,Home Care - Private Contractors Payment,19.88,0,NON COMMERCIAL SUPPLIER
05-09-2022,Adults & Health,De Vere Care Partnership Ltd,Home Care - Private Contractors Payment,425.88,0,NON COMMERCIAL SUPPLIER
05-09-2022,Adults & Health,De Vere Care Partnership Ltd,Home Care - Private Contractors Payment,100.8,0,NON COMMERCIAL SUPPLIER
05-09-2022,Adults & Health,De Vere Care Partnership Ltd,Home Care - Private Contractors Payment,556.92,0,NON COMMERCIAL SUPPLIER
05-09-2022,Adults & Health,De Vere Care Partnership Ltd,Home Care - Private Contractors Payment,229.32,0,NON COMMERCIAL SUPPLIER
05-09-2022,Adults & Health,De Vere Care Partnership Ltd,Home Care - Private Contractors Payment,252.72,0,NON COMMERCIAL SUPPLIER
05-09-2022,Adults & Health,De Vere Care Partnership Ltd,Home Care - Private Contractors Payment,99.38,0,NON COMMERCIAL SUPPLIER
05-09-2022,Adults & Health,De Vere Care Partnership Ltd,Home Care - Private Contractors Payment,171.86,0,NON COMMERCIAL SUPPLIER
05-09-2022,Adults & Health,De Vere Care Partnership Ltd,Home Care - Private Contractors Payment,294.84,0,NON COMMERCIAL SUPPLIER
05-09-2022,Adults & Health,De Vere Care Partnership Ltd,Home Care - Private Contractors Payment,100.8,0,NON COMMERCIAL SUPPLIER
05-09-2022,Adults & Health,De Vere Care Partnership Ltd,Home Care - Private Contractors Payment,360.36,0,NON COMMERCIAL SUPPLIER
05-09-2022,Adults & Health,De Vere Care Partnership Ltd,Home Care - Private Contractors Payment,201.6,0,NON COMMERCIAL SUPPLIER
05-09-2022,Adults & Health,De Vere Care Partnership Ltd,Home Care - Private Contractors Payment,71.06,0,NON COMMERCIAL SUPPLIER
05-09-2022,Adults & Health,De Vere Care Partnership Ltd,Home Care - Private Contractors Payment,229.32,0,NON COMMERCIAL SUPPLIER
05-09-2022,Adults & Health,De Vere Care Partnership Ltd,Home Care - Private Contractors Payment,84.24,0,NON COMMERCIAL SUPPLIER
05-09-2022,Adults & Health,De Vere Care Partnership Ltd,Home Care - Private Contractors Payment,294.84,0,NON COMMERCIAL SUPPLIER
05-09-2022,Adults & Health,De Vere Care Partnership Ltd,Home Care - Private Contractors Payment,29.81,0,NON COMMERCIAL SUPPLIER
05-09-2022,Adults & Health,De Vere Care Partnership Ltd,Home Care - Private Contractors Payment,556.92,0,NON COMMERCIAL SUPPLIER
05-09-2022,Adults & Health,De Vere Care Partnership Ltd,Home Care - Private Contractors Payment,121.46,0,NON COMMERCIAL SUPPLIER
05-09-2022,Adults & Health,De Vere Care Partnership Ltd,Home Care - Private Contractors Payment,100.8,0,NON COMMERCIAL SUPPLIER
05-09-2022,Adults & Health,De Vere Care Partnership Ltd,Home Care - Private Contractors Payment,71.06,0,NON COMMERCIAL SUPPLIER
05-09-2022,Adults & Health,De Vere Care Partnership Ltd,Home Care - Private Contractors Payment,50.4,0,NON COMMERCIAL SUPPLIER
05-09-2022,Adults & Health,De Vere Care Partnership Ltd,Home Care - Private Contractors Payment,13.25,0,NON COMMERCIAL SUPPLIER
05-09-2022,Adults & Health,De Vere Care Partnership Ltd,Daycare - Private Contractors Payment,56.16,0,NON COMMERCIAL SUPPLIER
05-09-2022,Adults & Health,De Vere Care Partnership Ltd,Home Care - Private Contractors Payment,385.05,0,NON COMMERCIAL SUPPLIER
05-09-2022,Adults & Health,De Vere Care Partnership Ltd,Daycare - Private Contractors Payment,56.16,0,NON COMMERCIAL SUPPLIER
05-09-2022,Adults & Health,De Vere Care Partnership Ltd,Daycare - Private Contractors Payment,37.44,0,NON COMMERCIAL SUPPLIER
05-09-2022,Adults & Health,De Vere Care Partnership Ltd,Home Care - Private Contractors Payment,500.46,0,NON COMMERCIAL SUPPLIER
05-09-2022,Adults & Health,De Vere Care Partnership Ltd,Home Care - Private Contractors Payment,50.4,0,NON COMMERCIAL SUPPLIER
05-09-2022,Adults & Health,De Vere Care Partnership Ltd,Home Care - Private Contractors Payment,13.25,0,NON COMMERCIAL SUPPLIER
05-09-2022,Adults & Health,De Vere Care Partnership Ltd,Home Care - Private Contractors Payment,13.25,0,NON COMMERCIAL SUPPLIER
05-09-2022,Adults & Health,De Vere Care Partnership Ltd,Home Care - Private Contractors Payment,50.4,0,NON COMMERCIAL SUPPLIER
05-09-2022,Adults & Health,De Vere Care Partnership Ltd,Home Care - Private Contractors Payment,385.05,0,NON COMMERCIAL SUPPLIER
05-09-2022,Adults & Health,De Vere Care Partnership Ltd,Home Care - Private Contractors Payment,171.86,0,NON COMMERCIAL SUPPLIER
05-09-2022,Adults & Health,De Vere Care Partnership Ltd,Home Care - Private Contractors Payment,100.8,0,NON COMMERCIAL SUPPLIER
05-09-2022,Adults & Health,De Vere Care Partnership Ltd,Home Care - Private Contractors Payment,262.08,0,NON COMMERCIAL SUPPLIER
05-09-2022,Adults & Health,De Vere Care Partnership Ltd,Home Care - Private Contractors Payment,171.86,0,NON COMMERCIAL SUPPLIER
05-09-2022,Adults & Health,De Vere Care Partnership Ltd,Home Care - Private Contractors Payment,19.88,0,NON COMMERCIAL SUPPLIER
05-09-2022,Adults & Health,De Vere Care Partnership Ltd,Daycare - Private Contractors Payment,56.16,0,NON COMMERCIAL SUPPLIER
05-09-2022,Adults & Health,De Vere Care Partnership Ltd,Home Care - Private Contractors Payment,50.4,0,NON COMMERCIAL SUPPLIER
05-09-2022,Adults & Health,De Vere Care Partnership Ltd,Home Care - Private Contractors Payment,608.4,0,NON COMMERCIAL SUPPLIER
05-09-2022,Adults & Health,De Vere Care Partnership Ltd,Home Care - Private Contractors Payment,29.81,0,NON COMMERCIAL SUPPLIER
05-09-2022,Adults & Health,De Vere Care Partnership Ltd,Home Care - Private Contractors Payment,121.46,0,NON COMMERCIAL SUPPLIER
05-09-2022,Adults & Health,De Vere Care Partnership Ltd,Home Care - Private Contractors Payment,163.8,0,NON COMMERCIAL SUPPLIER
05-09-2022,Adults & Health,De Vere Care Partnership Ltd,Home Care - Private Contractors Payment,89.21,0,NON COMMERCIAL SUPPLIER
05-09-2022,Adults & Health,De Vere Care Partnership Ltd,Home Care - Private Contractors Payment,9.36,0,NON COMMERCIAL SUPPLIER
05-09-2022,Adults & Health,De Vere Care Partnership Ltd,Home Care - Private Contractors Payment,272.1,0,NON COMMERCIAL SUPPLIER
05-09-2022,Adults & Health,De Vere Care Partnership Ltd,Home Care - Private Contractors Payment,361.3,0,NON COMMERCIAL SUPPLIER
05-09-2022,RMS,Southern Drain Services Ltd,Private Contractors Payment - Other,350,0,COMMERCIAL SUPPLIER
05-09-2022,Adults & Health,York Hotel,Supported Other Accommodation - Private Contractors Payment,600,0,COMMERCIAL SUPPLIER
05-09-2022,Adults & Health,York Hotel,Supported Other Accommodation - Private Contractors Payment,240,0,COMMERCIAL SUPPLIER
05-09-2022,oneSource - Non Shared,GatenbySanderson Ltd,Agency Staff,1180,0,COMMERCIAL SUPPLIER
05-09-2022,Adults & Health,Headway East London,Daycare - Private Contractors Payment,100,0,COMMERCIAL SUPPLIER
05-09-2022,Adults & Health,Headway East London,Daycare - Private Contractors Payment,100,0,COMMERCIAL SUPPLIER
05-09-2022,Adults & Health,Headway East London,Daycare - Private Contractors Payment,100,0,COMMERCIAL SUPPLIER
05-09-2022,Adults & Health,Headway East London,Daycare - Private Contractors Payment,432,0,COMMERCIAL SUPPLIER
05-09-2022,Adults & Health,Headway East London,Daycare - Private Contractors Payment,200,0,COMMERCIAL SUPPLIER
05-09-2022,Adults & Health,Headway East London,Daycare - Private Contractors Payment,200,0,COMMERCIAL SUPPLIER
05-09-2022,Adults & Health,Headway East London,Daycare - Private Contractors Payment,200,0,COMMERCIAL SUPPLIER
05-09-2022,Adults & Health,Headway East London,Daycare - Private Contractors Payment,200,0,COMMERCIAL SUPPLIER
05-09-2022,Adults & Health,Headway East London,Daycare - Private Contractors Payment,200,0,COMMERCIAL SUPPLIER
05-09-2022,Adults & Health,Headway East London,Daycare - Private Contractors Payment,200,0,COMMERCIAL SUPPLIER
05-09-2022,Adults & Health,Headway East London,Daycare - Private Contractors Payment,200,0,COMMERCIAL SUPPLIER
05-09-2022,Adults & Health,De Vere Care Partnership Ltd,Home Care - Private Contractors Payment,71.06,0,NON COMMERCIAL SUPPLIER
05-09-2022,Adults & Health,De Vere Care Partnership Ltd,Home Care - Private Contractors Payment,13.25,0,NON COMMERCIAL SUPPLIER
05-09-2022,Adults & Health,De Vere Care Partnership Ltd,Home Care - Private Contractors Payment,360.36,0,NON COMMERCIAL SUPPLIER
05-09-2022,Adults & Health,De Vere Care Partnership Ltd,Daycare - Private Contractors Payment,18.72,0,NON COMMERCIAL SUPPLIER
05-09-2022,Adults & Health,De Vere Care Partnership Ltd,Home Care - Private Contractors Payment,171.86,0,NON COMMERCIAL SUPPLIER
05-09-2022,Adults & Health,De Vere Care Partnership Ltd,Home Care - Private Contractors Payment,98.28,0,NON COMMERCIAL SUPPLIER
05-09-2022,Adults & Health,De Vere Care Partnership Ltd,Home Care - Private Contractors Payment,171.86,0,NON COMMERCIAL SUPPLIER
05-09-2022,Adults & Health,De Vere Care Partnership Ltd,Home Care - Private Contractors Payment,50.4,0,NON COMMERCIAL SUPPLIER
05-09-2022,Adults & Health,De Vere Care Partnership Ltd,Home Care - Private Contractors Payment,171.86,0,NON COMMERCIAL SUPPLIER
05-09-2022,Adults & Health,De Vere Care Partnership Ltd,Home Care - Private Contractors Payment,100.8,0,NON COMMERCIAL SUPPLIER
05-09-2022,Adults & Health,De Vere Care Partnership Ltd,Home Care - Private Contractors Payment,524.16,0,NON COMMERCIAL SUPPLIER
05-09-2022,Adults & Health,De Vere Care Partnership Ltd,Home Care - Private Contractors Payment,14.98,0,NON COMMERCIAL SUPPLIER
05-09-2022,Adults & Health,De Vere Care Partnership Ltd,Home Care - Private Contractors Payment,171.86,0,NON COMMERCIAL SUPPLIER
05-09-2022,Adults & Health,De Vere Care Partnership Ltd,Home Care - Private Contractors Payment,272.38,0,NON COMMERCIAL SUPPLIER
05-09-2022,Adults & Health,De Vere Care Partnership Ltd,Home Care - Private Contractors Payment,110.88,0,NON COMMERCIAL SUPPLIER
05-09-2022,Adults & Health,De Vere Care Partnership Ltd,Home Care - Private Contractors Payment,100.8,0,NON COMMERCIAL SUPPLIER
05-09-2022,Adults & Health,De Vere Care Partnership Ltd,Home Care - Private Contractors Payment,19.88,0,NON COMMERCIAL SUPPLIER
05-09-2022,Adults & Health,De Vere Care Partnership Ltd,Home Care - Private Contractors Payment,149.76,0,NON COMMERCIAL SUPPLIER
05-09-2022,Adults & Health,De Vere Care Partnership Ltd,Home Care - Private Contractors Payment,327.6,0,NON COMMERCIAL SUPPLIER
05-09-2022,Adults & Health,De Vere Care Partnership Ltd,Home Care - Private Contractors Payment,556.92,0,NON COMMERCIAL SUPPLIER
05-09-2022,Adults & Health,De Vere Care Partnership Ltd,Home Care - Private Contractors Payment,131.04,0,NON COMMERCIAL SUPPLIER
05-09-2022,Adults & Health,De Vere Care Partnership Ltd,Daycare - Private Contractors Payment,56.16,0,NON COMMERCIAL SUPPLIER
05-09-2022,Adults & Health,De Vere Care Partnership Ltd,Home Care - Private Contractors Payment,262.08,0,NON COMMERCIAL SUPPLIER
05-09-2022,Adults & Health,De Vere Care Partnership Ltd,Home Care - Private Contractors Payment,238.47,0,NON COMMERCIAL SUPPLIER
05-09-2022,Adults & Health,De Vere Care Partnership Ltd,Home Care - Private Contractors Payment,294.84,0,NON COMMERCIAL SUPPLIER
05-09-2022,Adults & Health,De Vere Care Partnership Ltd,Home Care - Private Contractors Payment,294.84,0,NON COMMERCIAL SUPPLIER
05-09-2022,Adults & Health,De Vere Care Partnership Ltd,Home Care - Private Contractors Payment,121.46,0,NON COMMERCIAL SUPPLIER
05-09-2022,Adults & Health,De Vere Care Partnership Ltd,Home Care - Private Contractors Payment,171.86,0,NON COMMERCIAL SUPPLIER
05-09-2022,Adults & Health,De Vere Care Partnership Ltd,Home Care - Private Contractors Payment,14.04,0,NON COMMERCIAL SUPPLIER
05-09-2022,Adults & Health,De Vere Care Partnership Ltd,Home Care - Private Contractors Payment,201.6,0,NON COMMERCIAL SUPPLIER
05-09-2022,Adults & Health,De Vere Care Partnership Ltd,Home Care - Private Contractors Payment,46.8,0,NON COMMERCIAL SUPPLIER
05-09-2022,Adults & Health,De Vere Care Partnership Ltd,Home Care - Private Contractors Payment,393.12,0,NON COMMERCIAL SUPPLIER
05-09-2022,Adults & Health,De Vere Care Partnership Ltd,Home Care - Private Contractors Payment,177.84,0,NON COMMERCIAL SUPPLIER
05-09-2022,Adults & Health,De Vere Care Partnership Ltd,Home Care - Private Contractors Payment,13.25,0,NON COMMERCIAL SUPPLIER
05-09-2022,Adults & Health,De Vere Care Partnership Ltd,Home Care - Private Contractors Payment,98.28,0,NON COMMERCIAL SUPPLIER
05-09-2022,Adults & Health,De Vere Care Partnership Ltd,Home Care - Private Contractors Payment,294.84,0,NON COMMERCIAL SUPPLIER
05-09-2022,Adults & Health,De Vere Care Partnership Ltd,Home Care - Private Contractors Payment,187.2,0,NON COMMERCIAL SUPPLIER
05-09-2022,Adults & Health,De Vere Care Partnership Ltd,Home Care - Private Contractors Payment,171.86,0,NON COMMERCIAL SUPPLIER
05-09-2022,Adults & Health,De Vere Care Partnership Ltd,Home Care - Private Contractors Payment,50.4,0,NON COMMERCIAL SUPPLIER
05-09-2022,Adults & Health,De Vere Care Partnership Ltd,Home Care - Private Contractors Payment,50.4,0,NON COMMERCIAL SUPPLIER
05-09-2022,Adults & Health,De Vere Care Partnership Ltd,Home Care - Private Contractors Payment,171.86,0,NON COMMERCIAL SUPPLIER
05-09-2022,Adults & Health,De Vere Care Partnership Ltd,Home Care - Private Contractors Payment,1.43,0,NON COMMERCIAL SUPPLIER
05-09-2022,Adults & Health,De Vere Care Partnership Ltd,Home Care - Private Contractors Payment,65.52,0,NON COMMERCIAL SUPPLIER
05-09-2022,Adults & Health,De Vere Care Partnership Ltd,Home Care - Private Contractors Payment,26.5,0,NON COMMERCIAL SUPPLIER
05-09-2022,Adults & Health,De Vere Care Partnership Ltd,Home Care - Private Contractors Payment,500.46,0,NON COMMERCIAL SUPPLIER
05-09-2022,Adults & Health,De Vere Care Partnership Ltd,Home Care - Private Contractors Payment,262.08,0,NON COMMERCIAL SUPPLIER
05-09-2022,Adults & Health,De Vere Care Partnership Ltd,Home Care - Private Contractors Payment,524.16,0,NON COMMERCIAL SUPPLIER
05-09-2022,Adults & Health,De Vere Care Partnership Ltd,Home Care - Private Contractors Payment,100.8,0,NON COMMERCIAL SUPPLIER
05-09-2022,Adults & Health,De Vere Care Partnership Ltd,Home Care - Private Contractors Payment,98.28,0,NON COMMERCIAL SUPPLIER
05-09-2022,Adults & Health,De Vere Care Partnership Ltd,Home Care - Private Contractors Payment,171.86,0,NON COMMERCIAL SUPPLIER
05-09-2022,Adults & Health,De Vere Care Partnership Ltd,Home Care - Private Contractors Payment,50.4,0,NON COMMERCIAL SUPPLIER
05-09-2022,Adults & Health,De Vere Care Partnership Ltd,Home Care - Private Contractors Payment,13.25,0,NON COMMERCIAL SUPPLIER
05-09-2022,Adults & Health,De Vere Care Partnership Ltd,Home Care - Private Contractors Payment,71.06,0,NON COMMERCIAL SUPPLIER
05-09-2022,Adults & Health,De Vere Care Partnership Ltd,Home Care - Private Contractors Payment,71.06,0,NON COMMERCIAL SUPPLIER
05-09-2022,Adults & Health,De Vere Care Partnership Ltd,Home Care - Private Contractors Payment,201.6,0,NON COMMERCIAL SUPPLIER
05-09-2022,Adults & Health,De Vere Care Partnership Ltd,Home Care - Private Contractors Payment,75.82,0,NON COMMERCIAL SUPPLIER
05-09-2022,Adults & Health,De Vere Care Partnership Ltd,Home Care - Private Contractors Payment,98.28,0,NON COMMERCIAL SUPPLIER
05-09-2022,Adults & Health,De Vere Care Partnership Ltd,Home Care - Private Contractors Payment,609.34,0,NON COMMERCIAL SUPPLIER
05-09-2022,Adults & Health,De Vere Care Partnership Ltd,Daycare - Private Contractors Payment,18.72,0,NON COMMERCIAL SUPPLIER
05-09-2022,Adults & Health,De Vere Care Partnership Ltd,Home Care - Private Contractors Payment,45.2,0,NON COMMERCIAL SUPPLIER
05-09-2022,Adults & Health,De Vere Care Partnership Ltd,Home Care - Private Contractors Payment,123.55,0,NON COMMERCIAL SUPPLIER
05-09-2022,Adults & Health,De Vere Care Partnership Ltd,Home Care - Private Contractors Payment,13.25,0,NON COMMERCIAL SUPPLIER
05-09-2022,Adults & Health,De Vere Care Partnership Ltd,Home Care - Private Contractors Payment,65.52,0,NON COMMERCIAL SUPPLIER
05-09-2022,Adults & Health,De Vere Care Partnership Ltd,Home Care - Private Contractors Payment,229.32,0,NON COMMERCIAL SUPPLIER
05-09-2022,Adults & Health,De Vere Care Partnership Ltd,Home Care - Private Contractors Payment,171.86,0,NON COMMERCIAL SUPPLIER
05-09-2022,Adults & Health,De Vere Care Partnership Ltd,Home Care - Private Contractors Payment,200.3,0,NON COMMERCIAL SUPPLIER
05-09-2022,Adults & Health,De Vere Care Partnership Ltd,Home Care - Private Contractors Payment,26.5,0,NON COMMERCIAL SUPPLIER
05-09-2022,Adults & Health,De Vere Care Partnership Ltd,Home Care - Private Contractors Payment,71.06,0,NON COMMERCIAL SUPPLIER
05-09-2022,Adults & Health,De Vere Care Partnership Ltd,Home Care - Private Contractors Payment,229.32,0,NON COMMERCIAL SUPPLIER
05-09-2022,Adults & Health,De Vere Care Partnership Ltd,Home Care - Private Contractors Payment,39.45,0,NON COMMERCIAL SUPPLIER
05-09-2022,Adults & Health,De Vere Care Partnership Ltd,Home Care - Private Contractors Payment,294.84,0,NON COMMERCIAL SUPPLIER
05-09-2022,Adults & Health,De Vere Care Partnership Ltd,Home Care - Private Contractors Payment,163.8,0,NON COMMERCIAL SUPPLIER
05-09-2022,Adults & Health,De Vere Care Partnership Ltd,Home Care - Private Contractors Payment,98.28,0,NON COMMERCIAL SUPPLIER
05-09-2022,Adults & Health,De Vere Care Partnership Ltd,Home Care - Private Contractors Payment,121.46,0,NON COMMERCIAL SUPPLIER
05-09-2022,Adults & Health,De Vere Care Partnership Ltd,Daycare - Private Contractors Payment,18.72,0,NON COMMERCIAL SUPPLIER
05-09-2022,Adults & Health,De Vere Care Partnership Ltd,Home Care - Private Contractors Payment,171.86,0,NON COMMERCIAL SUPPLIER
05-09-2022,Adults & Health,De Vere Care Partnership Ltd,Home Care - Private Contractors Payment,100.8,0,NON COMMERCIAL SUPPLIER
05-09-2022,Adults & Health,De Vere Care Partnership Ltd,Home Care - Private Contractors Payment,360.36,0,NON COMMERCIAL SUPPLIER
05-09-2022,Adults & Health,De Vere Care Partnership Ltd,Home Care - Private Contractors Payment,556.92,0,NON COMMERCIAL SUPPLIER
05-09-2022,Adults & Health,De Vere Care Partnership Ltd,Home Care - Private Contractors Payment,13.25,0,NON COMMERCIAL SUPPLIER
05-09-2022,Adults & Health,De Vere Care Partnership Ltd,Daycare - Private Contractors Payment,37.44,0,NON COMMERCIAL SUPPLIER
05-09-2022,Adults & Health,De Vere Care Partnership Ltd,Home Care - Private Contractors Payment,229.32,0,NON COMMERCIAL SUPPLIER
05-09-2022,Adults & Health,De Vere Care Partnership Ltd,Home Care - Private Contractors Payment,28.37,0,NON COMMERCIAL SUPPLIER
05-09-2022,Adults & Health,De Vere Care Partnership Ltd,Home Care - Private Contractors Payment,121.46,0,NON COMMERCIAL SUPPLIER
05-09-2022,Adults & Health,De Vere Care Partnership Ltd,Home Care - Private Contractors Payment,171.86,0,NON COMMERCIAL SUPPLIER
05-09-2022,Adults & Health,De Vere Care Partnership Ltd,Home Care - Private Contractors Payment,131.04,0,NON COMMERCIAL SUPPLIER
05-09-2022,Adults & Health,De Vere Care Partnership Ltd,Home Care - Private Contractors Payment,36,0,NON COMMERCIAL SUPPLIER
05-09-2022,Adults & Health,De Vere Care Partnership Ltd,Home Care - Private Contractors Payment,171.86,0,NON COMMERCIAL SUPPLIER
05-09-2022,Adults & Health,De Vere Care Partnership Ltd,Home Care - Private Contractors Payment,29.81,0,NON COMMERCIAL SUPPLIER
05-09-2022,Adults & Health,De Vere Care Partnership Ltd,Home Care - Private Contractors Payment,79.5,0,NON COMMERCIAL SUPPLIER
05-09-2022,Adults & Health,De Vere Care Partnership Ltd,Home Care - Private Contractors Payment,368.78,0,NON COMMERCIAL SUPPLIER
05-09-2022,Adults & Health,De Vere Care Partnership Ltd,Home Care - Private Contractors Payment,151.2,0,NON COMMERCIAL SUPPLIER
05-09-2022,Adults & Health,De Vere Care Partnership Ltd,Home Care - Private Contractors Payment,385.05,0,NON COMMERCIAL SUPPLIER
05-09-2022,Adults & Health,De Vere Care Partnership Ltd,Home Care - Private Contractors Payment,71.06,0,NON COMMERCIAL SUPPLIER
05-09-2022,Adults & Health,De Vere Care Partnership Ltd,Home Care - Private Contractors Payment,294.84,0,NON COMMERCIAL SUPPLIER
05-09-2022,Adults & Health,De Vere Care Partnership Ltd,Home Care - Private Contractors Payment,71.06,0,NON COMMERCIAL SUPPLIER
05-09-2022,Adults & Health,De Vere Care Partnership Ltd,Home Care - Private Contractors Payment,75.31,0,NON COMMERCIAL SUPPLIER
05-09-2022,Adults & Health,De Vere Care Partnership Ltd,Home Care - Private Contractors Payment,65.52,0,NON COMMERCIAL SUPPLIER
05-09-2022,Adults & Health,De Vere Care Partnership Ltd,Home Care - Private Contractors Payment,67.54,0,NON COMMERCIAL SUPPLIER
05-09-2022,Adults & Health,De Vere Care Partnership Ltd,Home Care - Private Contractors Payment,229.32,0,NON COMMERCIAL SUPPLIER
05-09-2022,Adults & Health,De Vere Care Partnership Ltd,Home Care - Private Contractors Payment,279.86,0,NON COMMERCIAL SUPPLIER
05-09-2022,Adults & Health,De Vere Care Partnership Ltd,Home Care - Private Contractors Payment,26.5,0,NON COMMERCIAL SUPPLIER
05-09-2022,Adults & Health,De Vere Care Partnership Ltd,Home Care - Private Contractors Payment,229.32,0,NON COMMERCIAL SUPPLIER
05-09-2022,Adults & Health,De Vere Care Partnership Ltd,Home Care - Private Contractors Payment,71.06,0,NON COMMERCIAL SUPPLIER
05-09-2022,Adults & Health,De Vere Care Partnership Ltd,Home Care - Private Contractors Payment,383.76,0,NON COMMERCIAL SUPPLIER
05-09-2022,Adults & Health,De Vere Care Partnership Ltd,Home Care - Private Contractors Payment,171.86,0,NON COMMERCIAL SUPPLIER
05-09-2022,Adults & Health,De Vere Care Partnership Ltd,Home Care - Private Contractors Payment,463.32,0,NON COMMERCIAL SUPPLIER
05-09-2022,Adults & Health,De Vere Care Partnership Ltd,Home Care - Private Contractors Payment,102.94,0,NON COMMERCIAL SUPPLIER
05-09-2022,Adults & Health,De Vere Care Partnership Ltd,Home Care - Private Contractors Payment,121.46,0,NON COMMERCIAL SUPPLIER
05-09-2022,Adults & Health,De Vere Care Partnership Ltd,Home Care - Private Contractors Payment,98.28,0,NON COMMERCIAL SUPPLIER
05-09-2022,Adults & Health,De Vere Care Partnership Ltd,Home Care - Private Contractors Payment,171.86,0,NON COMMERCIAL SUPPLIER
05-09-2022,Adults & Health,De Vere Care Partnership Ltd,Home Care - Private Contractors Payment,79.5,0,NON COMMERCIAL SUPPLIER
05-09-2022,Adults & Health,De Vere Care Partnership Ltd,Home Care - Private Contractors Payment,201.6,0,NON COMMERCIAL SUPPLIER
05-09-2022,Adults & Health,De Vere Care Partnership Ltd,Home Care - Private Contractors Payment,262.08,0,NON COMMERCIAL SUPPLIER
05-09-2022,Adults & Health,De Vere Care Partnership Ltd,Home Care - Private Contractors Payment,19.88,0,NON COMMERCIAL SUPPLIER
05-09-2022,Adults & Health,De Vere Care Partnership Ltd,Home Care - Private Contractors Payment,294.84,0,NON COMMERCIAL SUPPLIER
05-09-2022,Adults & Health,De Vere Care Partnership Ltd,Home Care - Private Contractors Payment,556.92,0,NON COMMERCIAL SUPPLIER
05-09-2022,Adults & Health,De Vere Care Partnership Ltd,Home Care - Private Contractors Payment,556.92,0,NON COMMERCIAL SUPPLIER
05-09-2022,Adults & Health,De Vere Care Partnership Ltd,Home Care - Private Contractors Payment,131.04,0,NON COMMERCIAL SUPPLIER
05-09-2022,Adults & Health,De Vere Care Partnership Ltd,Home Care - Private Contractors Payment,556.92,0,NON COMMERCIAL SUPPLIER
05-09-2022,Adults & Health,De Vere Care Partnership Ltd,Home Care - Private Contractors Payment,100.8,0,NON COMMERCIAL SUPPLIER
05-09-2022,Adults & Health,De Vere Care Partnership Ltd,Home Care - Private Contractors Payment,12.17,0,NON COMMERCIAL SUPPLIER
05-09-2022,Adults & Health,De Vere Care Partnership Ltd,Home Care - Private Contractors Payment,992.12,0,NON COMMERCIAL SUPPLIER
05-09-2022,Adults & Health,De Vere Care Partnership Ltd,Home Care - Private Contractors Payment,186.19,0,NON COMMERCIAL SUPPLIER
05-09-2022,Adults & Health,De Vere Care Partnership Ltd,Home Care - Private Contractors Payment,30.38,0,NON COMMERCIAL SUPPLIER
05-09-2022,Adults & Health,De Vere Care Partnership Ltd,Home Care - Private Contractors Payment,276.96,0,NON COMMERCIAL SUPPLIER
05-09-2022,Adults & Health,De Vere Care Partnership Ltd,Home Care - Private Contractors Payment,26.5,0,NON COMMERCIAL SUPPLIER
05-09-2022,Adults & Health,De Vere Care Partnership Ltd,Home Care - Private Contractors Payment,294.84,0,NON COMMERCIAL SUPPLIER
05-09-2022,Adults & Health,De Vere Care Partnership Ltd,Home Care - Private Contractors Payment,224.64,0,NON COMMERCIAL SUPPLIER
05-09-2022,Adults & Health,De Vere Care Partnership Ltd,Home Care - Private Contractors Payment,65.52,0,NON COMMERCIAL SUPPLIER
05-09-2022,Adults & Health,De Vere Care Partnership Ltd,Home Care - Private Contractors Payment,401.69,0,NON COMMERCIAL SUPPLIER
05-09-2022,Adults & Health,De Vere Care Partnership Ltd,Home Care - Private Contractors Payment,245.74,0,NON COMMERCIAL SUPPLIER
05-09-2022,Adults & Health,De Vere Care Partnership Ltd,Home Care - Private Contractors Payment,500.46,0,NON COMMERCIAL SUPPLIER
05-09-2022,Adults & Health,De Vere Care Partnership Ltd,Home Care - Private Contractors Payment,425.88,0,NON COMMERCIAL SUPPLIER
05-09-2022,Adults & Health,De Vere Care Partnership Ltd,Home Care - Private Contractors Payment,151.2,0,NON COMMERCIAL SUPPLIER
05-09-2022,Adults & Health,De Vere Care Partnership Ltd,Home Care - Private Contractors Payment,13.25,0,NON COMMERCIAL SUPPLIER
05-09-2022,Adults & Health,De Vere Care Partnership Ltd,Home Care - Private Contractors Payment,50.4,0,NON COMMERCIAL SUPPLIER
05-09-2022,Adults & Health,De Vere Care Partnership Ltd,Home Care - Private Contractors Payment,13.25,0,NON COMMERCIAL SUPPLIER
05-09-2022,Adults & Health,De Vere Care Partnership Ltd,Home Care - Private Contractors Payment,131.04,0,NON COMMERCIAL SUPPLIER
05-09-2022,Adults & Health,De Vere Care Partnership Ltd,Home Care - Private Contractors Payment,71.06,0,NON COMMERCIAL SUPPLIER
05-09-2022,Adults & Health,De Vere Care Partnership Ltd,Home Care - Private Contractors Payment,171.86,0,NON COMMERCIAL SUPPLIER
05-09-2022,Adults & Health,De Vere Care Partnership Ltd,Home Care - Private Contractors Payment,294.84,0,NON COMMERCIAL SUPPLIER
05-09-2022,Adults & Health,De Vere Care Partnership Ltd,Home Care - Private Contractors Payment,100.8,0,NON COMMERCIAL SUPPLIER
05-09-2022,Adults & Health,De Vere Care Partnership Ltd,Home Care - Private Contractors Payment,50.4,0,NON COMMERCIAL SUPPLIER
05-09-2022,Adults & Health,De Vere Care Partnership Ltd,Home Care - Private Contractors Payment,823.68,0,NON COMMERCIAL SUPPLIER
05-09-2022,Adults & Health,De Vere Care Partnership Ltd,Home Care - Private Contractors Payment,50.4,0,NON COMMERCIAL SUPPLIER
05-09-2022,Adults & Health,De Vere Care Partnership Ltd,Home Care - Private Contractors Payment,385.05,0,NON COMMERCIAL SUPPLIER
05-09-2022,Adults & Health,De Vere Care Partnership Ltd,Home Care - Private Contractors Payment,29.81,0,NON COMMERCIAL SUPPLIER
05-09-2022,Adults & Health,De Vere Care Partnership Ltd,Home Care - Private Contractors Payment,98.28,0,NON COMMERCIAL SUPPLIER
05-09-2022,Adults & Health,De Vere Care Partnership Ltd,Home Care - Private Contractors Payment,163.8,0,NON COMMERCIAL SUPPLIER
05-09-2022,Adults & Health,De Vere Care Partnership Ltd,Home Care - Private Contractors Payment,121.46,0,NON COMMERCIAL SUPPLIER
05-09-2022,Adults & Health,De Vere Care Partnership Ltd,Home Care - Private Contractors Payment,19.88,0,NON COMMERCIAL SUPPLIER
05-09-2022,Adults & Health,De Vere Care Partnership Ltd,Home Care - Private Contractors Payment,388.44,0,NON COMMERCIAL SUPPLIER
05-09-2022,Adults & Health,De Vere Care Partnership Ltd,Home Care - Private Contractors Payment,327.6,0,NON COMMERCIAL SUPPLIER
05-09-2022,Adults & Health,De Vere Care Partnership Ltd,Home Care - Private Contractors Payment,100.8,0,NON COMMERCIAL SUPPLIER
05-09-2022,Adults & Health,De Vere Care Partnership Ltd,Home Care - Private Contractors Payment,131.04,0,NON COMMERCIAL SUPPLIER
05-09-2022,Adults & Health,De Vere Care Partnership Ltd,Home Care - Private Contractors Payment,1647.36,0,NON COMMERCIAL SUPPLIER
05-09-2022,Adults & Health,De Vere Care Partnership Ltd,Daycare - Private Contractors Payment,56.16,0,NON COMMERCIAL SUPPLIER
05-09-2022,Adults & Health,De Vere Care Partnership Ltd,Daycare - Private Contractors Payment,37.44,0,NON COMMERCIAL SUPPLIER
05-09-2022,Adults & Health,De Vere Care Partnership Ltd,Home Care - Private Contractors Payment,262.08,0,NON COMMERCIAL SUPPLIER
05-09-2022,Adults & Health,De Vere Care Partnership Ltd,Home Care - Private Contractors Payment,19.88,0,NON COMMERCIAL SUPPLIER
05-09-2022,Adults & Health,De Vere Care Partnership Ltd,Home Care - Private Contractors Payment,131.04,0,NON COMMERCIAL SUPPLIER
05-09-2022,Adults & Health,De Vere Care Partnership Ltd,Daycare - Private Contractors Payment,18.72,0,NON COMMERCIAL SUPPLIER
05-09-2022,Adults & Health,De Vere Care Partnership Ltd,Home Care - Private Contractors Payment,163.8,0,NON COMMERCIAL SUPPLIER
05-09-2022,Adults & Health,De Vere Care Partnership Ltd,Home Care - Private Contractors Payment,131.04,0,NON COMMERCIAL SUPPLIER
05-09-2022,Adults & Health,De Vere Care Partnership Ltd,Daycare - Private Contractors Payment,56.16,0,NON COMMERCIAL SUPPLIER
05-09-2022,Adults & Health,De Vere Care Partnership Ltd,Home Care - Private Contractors Payment,13.25,0,NON COMMERCIAL SUPPLIER
05-09-2022,Adults & Health,De Vere Care Partnership Ltd,Daycare - Private Contractors Payment,37.44,0,NON COMMERCIAL SUPPLIER
05-09-2022,Adults & Health,De Vere Care Partnership Ltd,Home Care - Private Contractors Payment,1048.32,0,NON COMMERCIAL SUPPLIER
05-09-2022,Adults & Health,De Vere Care Partnership Ltd,Home Care - Private Contractors Payment,294.84,0,NON COMMERCIAL SUPPLIER
05-09-2022,Adults & Health,De Vere Care Partnership Ltd,Home Care - Private Contractors Payment,171.86,0,NON COMMERCIAL SUPPLIER
05-09-2022,Adults & Health,De Vere Care Partnership Ltd,Home Care - Private Contractors Payment,50.4,0,NON COMMERCIAL SUPPLIER
05-09-2022,Adults & Health,De Vere Care Partnership Ltd,Home Care - Private Contractors Payment,360.36,0,NON COMMERCIAL SUPPLIER
05-09-2022,Adults & Health,De Vere Care Partnership Ltd,Home Care - Private Contractors Payment,171.86,0,NON COMMERCIAL SUPPLIER
05-09-2022,Adults & Health,De Vere Care Partnership Ltd,Home Care - Private Contractors Payment,229.32,0,NON COMMERCIAL SUPPLIER
05-09-2022,Adults & Health,De Vere Care Partnership Ltd,Home Care - Private Contractors Payment,70.84,0,NON COMMERCIAL SUPPLIER
05-09-2022,Adults & Health,De Vere Care Partnership Ltd,Home Care - Private Contractors Payment,100.8,0,NON COMMERCIAL SUPPLIER
05-09-2022,Adults & Health,De Vere Care Partnership Ltd,Home Care - Private Contractors Payment,524.16,0,NON COMMERCIAL SUPPLIER
05-09-2022,Adults & Health,De Vere Care Partnership Ltd,Home Care - Private Contractors Payment,98.32,0,NON COMMERCIAL SUPPLIER
05-09-2022,Adults & Health,De Vere Care Partnership Ltd,Home Care - Private Contractors Payment,360.36,0,NON COMMERCIAL SUPPLIER
05-09-2022,Adults & Health,De Vere Care Partnership Ltd,Home Care - Private Contractors Payment,179.94,0,NON COMMERCIAL SUPPLIER
05-09-2022,Adults & Health,De Vere Care Partnership Ltd,Home Care - Private Contractors Payment,286.14,0,NON COMMERCIAL SUPPLIER
05-09-2022,Adults & Health,De Vere Care Partnership Ltd,Home Care - Private Contractors Payment,217.01,0,NON COMMERCIAL SUPPLIER
05-09-2022,Adults & Health,De Vere Care Partnership Ltd,Home Care - Private Contractors Payment,98.46,0,NON COMMERCIAL SUPPLIER
05-09-2022,Adults & Health,De Vere Care Partnership Ltd,Home Care - Private Contractors Payment,327.6,0,NON COMMERCIAL SUPPLIER
05-09-2022,Adults & Health,De Vere Care Partnership Ltd,Home Care - Private Contractors Payment,98.28,0,NON COMMERCIAL SUPPLIER
05-09-2022,Adults & Health,De Vere Care Partnership Ltd,Home Care - Private Contractors Payment,171.86,0,NON COMMERCIAL SUPPLIER
05-09-2022,Adults & Health,De Vere Care Partnership Ltd,Home Care - Private Contractors Payment,294.84,0,NON COMMERCIAL SUPPLIER
05-09-2022,Adults & Health,De Vere Care Partnership Ltd,Home Care - Private Contractors Payment,93.61,0,NON COMMERCIAL SUPPLIER
